Date the Expenditure was incurred,Local authority department which incurred the expenditure,SUPPLIER_DESC,Summary of the purpose of the expenditure,Amount,Vat,"Merchant category (eg. Computers, software etc)"
PAYMENT_DATE,DEPART_DESC,SUPPLIER_DESC,ANALYSIS_DESC,AMOUNT,Vat,ACCOUNT_DESC
23/03/2018,City Developments and Neighbourhood,360Red productions,Marketing and Advertising,"1,000.00",200.00,Marketing & Advertising
23/03/2018,City Developments and Neighbourhood,360Red productions,Marketing and Advertising,"1,000.00",200.00,Marketing & Advertising
23/03/2018,City Developments and Neighbourhood,360Red productions,Marketing and Advertising,"1,000.00",200.00,Marketing & Advertising
13/03/2018,City Developments and Neighbourhood,68th Leicester Scouts Group,Knighton - Ward Consultative Committees,"1,200.00",0.00,Independent Units Within The Council
21/03/2018,City Developments and Neighbourhood,69 Magazine  Ltd,Marketing and Advertising,900.00,180.00,Marketing & Advertising
26/03/2018,City Developments and Neighbourhood,A E Faulks,Equipment Hire/Lease,"1,790.00",358.00,Equipment Hire / Lease
,City Developments and Neighbourhood,A E Faulks,Equipment Hire/Lease,"1,710.00",342.00,Equipment Hire / Lease
,City Developments and Neighbourhood,A E Faulks,Equipment Hire/Lease,"1,710.00",342.00,Equipment Hire / Lease
21/03/2018,,A Hull Electrical Ltd,Building Works - Alterations,"135,442.33","27,088.47",Building Works - Alterations
21/03/2018,,A Hull Electrical Ltd,Fixtures & Fittings,"2,305.15",461.03,Fixtures & Fittings
21/03/2018,,A Hull Electrical Ltd,Fixtures & Fittings,"1,808.76",361.75,Fixtures & Fittings
21/03/2018,,A Hull Electrical Ltd,Fixtures & Fittings,"7,977.14","1,595.43",Fixtures & Fittings
21/03/2018,City Developments and Neighbourhood,A Hull Electrical Ltd,Project - Responsive,"2,410.35",482.07,Project - Repairs / Maintenance / Alterations
13/03/2018,Education & Childrens Services,A Wilderness Way Ltd,Residential Placements,"29,935.71",0.00,Other Agencies
13/03/2018,Education & Childrens Services,A Wilderness Way Ltd,Residential Placements,"18,321.43",0.00,Other Agencies
13/03/2018,Education & Childrens Services,A Wilderness Way Ltd,Residential Placements,"45,321.16",0.00,Other Agencies
,Education & Childrens Services,A Wilderness Way Ltd,Residential Placements,"28,121.42",0.00,Other Agencies
02/03/2018,Education & Childrens Services,A Zoom Ltd,Employee Taxi Travel Expense,781.00,156.20,Taxi Travel Expense
02/03/2018,Education & Childrens Services,A Zoom Ltd,Employee Taxi Travel Expense,"1,150.00",230.00,Taxi Travel Expense
06/03/2018,Education & Childrens Services,A Zoom Ltd,Employee Taxi Travel Expense,"53,494.88","10,698.98",Taxi Travel Expense
26/03/2018,Adults & Housing Department,A.L.A.Care Ltd,Residential Permanent,798.00,0.00,Residential Care
26/03/2018,Adults & Housing Department,A.L.A.Care Ltd,Residential Permanent,798.00,0.00,Residential Care
26/03/2018,Adults & Housing Department,A.L.A.Care Ltd,Residential Permanent,798.00,0.00,Residential Care
26/03/2018,Adults & Housing Department,A.L.A.Care Ltd,Residential Permanent,798.00,0.00,Residential Care
26/03/2018,Adults & Housing Department,Aarons Unit,Residential Permanent,890.00,0.00,Residential Care
26/03/2018,Adults & Housing Department,Aarons Unit,Residential Permanent,890.00,0.00,Residential Care
26/03/2018,Adults & Housing Department,Aarons Unit,Residential Permanent,890.00,0.00,Residential Care
26/03/2018,Adults & Housing Department,Aarons Unit,Residential Permanent,"2,710.00",0.00,Residential Care
26/03/2018,Adults & Housing Department,Aarons Unit,Residential Permanent,"3,950.00",0.00,Residential Care
26/03/2018,Adults & Housing Department,Aarons Unit,Residential Permanent,890.00,0.00,Residential Care
26/03/2018,Adults & Housing Department,Aarons Unit,Residential Permanent,"3,950.00",0.00,Residential Care
26/03/2018,Adults & Housing Department,Aarons Unit,Residential Permanent,"2,710.00",0.00,Residential Care
09/03/2018,City Developments and Neighbourhood,AB Adcock,Responsive,"1,350.00",270.00,Building Works & Repairs/Maintenance/Alterations
26/03/2018,Adults & Housing Department,Abberdale House,Residential Permanent,"1,117.34",0.00,Residential Care
26/03/2018,Adults & Housing Department,Abberdale House,Residential Permanent,869.04,0.00,Residential Care
26/03/2018,Adults & Housing Department,Abberdale House,Residential Permanent,869.04,0.00,Residential Care
26/03/2018,Adults & Housing Department,Abberdale House,Residential Permanent,869.04,0.00,Residential Care
26/03/2018,Adults & Housing Department,Abberdale House,Residential Permanent,969.00,0.00,Residential Care
26/03/2018,Adults & Housing Department,Abberdale House,Residential Permanent,969.00,0.00,Residential Care
26/03/2018,Adults & Housing Department,Abberdale House,Residential Permanent,869.04,0.00,Residential Care
26/03/2018,Adults & Housing Department,Abberdale House,Residential Permanent,969.00,0.00,Residential Care
26/03/2018,Adults & Housing Department,Abberdale House,Residential Permanent,969.00,0.00,Residential Care
26/03/2018,Adults & Housing Department,Abberdale House,Residential Permanent,969.00,0.00,Residential Care
26/03/2018,Adults & Housing Department,Abberdale House,Residential Permanent,969.00,0.00,Residential Care
26/03/2018,Adults & Housing Department,Abberdale House,Residential Permanent,969.00,0.00,Residential Care
26/03/2018,Adults & Housing Department,Abberdale House,Residential Permanent,969.00,0.00,Residential Care
26/03/2018,Adults & Housing Department,Abberdale House,Residential Permanent,969.00,0.00,Residential Care
26/03/2018,Adults & Housing Department,Abberdale House,Residential Permanent,969.00,0.00,Residential Care
26/03/2018,Adults & Housing Department,Abberdale House,Residential Permanent,969.00,0.00,Residential Care
26/03/2018,Adults & Housing Department,Abberdale House,Residential Permanent,969.00,0.00,Residential Care
26/03/2018,Adults & Housing Department,Abberdale House,Residential Permanent,969.00,0.00,Residential Care
26/03/2018,Adults & Housing Department,Abberdale House,Residential Permanent,969.00,0.00,Residential Care
26/03/2018,Adults & Housing Department,Abberdale House,Residential Permanent,969.00,0.00,Residential Care
26/03/2018,Adults & Housing Department,Abberdale House,Residential Permanent,969.00,0.00,Residential Care
26/03/2018,Adults & Housing Department,Abberdale House,Residential Permanent,969.00,0.00,Residential Care
26/03/2018,Adults & Housing Department,Abberdale House,Residential Permanent,969.00,0.00,Residential Care
26/03/2018,Adults & Housing Department,Abberdale House,Residential Permanent,869.04,0.00,Residential Care
26/03/2018,Adults & Housing Department,Abberdale House,Residential Permanent,969.00,0.00,Residential Care
26/03/2018,Adults & Housing Department,Abberdale House,Residential Permanent,969.00,0.00,Residential Care
26/03/2018,Adults & Housing Department,Abberdale House,Residential Permanent,969.00,0.00,Residential Care
26/03/2018,Adults & Housing Department,Abberdale House,Residential Permanent,969.00,0.00,Residential Care
26/03/2018,Adults & Housing Department,Abberdale House,Residential Permanent,869.04,0.00,Residential Care
26/03/2018,Adults & Housing Department,Abberdale House,Residential Respite,969.00,0.00,Residential Care
26/03/2018,Adults & Housing Department,Abberdale House,Residential Respite,969.00,0.00,Residential Care
26/03/2018,Adults & Housing Department,Abberdale House,Residential Respite,969.00,0.00,Residential Care
26/03/2018,Adults & Housing Department,Abberdale House,Residential Short Stay,869.04,0.00,Residential Care
26/03/2018,Adults & Housing Department,Abberdale House,Residential Short Stay,682.82,0.00,Residential Care
26/03/2018,Adults & Housing Department,Abberdale House,Residential Short Stay,723.62,0.00,Residential Care
26/03/2018,Adults & Housing Department,Abberdale House,Residential Short Stay,931.11,0.00,Residential Care
26/03/2018,Adults & Housing Department,Abbey Healthcare T/a Aaron Court,Nursing Permanent,944.52,0.00,Nursing Care
26/03/2018,Adults & Housing Department,Abbey Healthcare T/a Aaron Court,Nursing Permanent,944.52,0.00,Nursing Care
26/03/2018,Adults & Housing Department,Abbey Healthcare T/a Aaron Court,Nursing Permanent,944.52,0.00,Nursing Care
26/03/2018,Adults & Housing Department,Abbey Healthcare T/a Aaron Court,Nursing Permanent,944.52,0.00,Nursing Care
26/03/2018,Adults & Housing Department,Abbey Healthcare T/a Aaron Court,Nursing Permanent,944.52,0.00,Nursing Care
26/03/2018,Adults & Housing Department,Abbey Healthcare T/a Aaron Court,Nursing Permanent,944.52,0.00,Nursing Care
26/03/2018,Adults & Housing Department,Abbey Healthcare T/a Aaron Court,Nursing Permanent,944.52,0.00,Nursing Care
26/03/2018,Adults & Housing Department,Abbey Healthcare T/a Aaron Court,Nursing Permanent,944.52,0.00,Nursing Care
26/03/2018,Adults & Housing Department,Abbey Healthcare T/a Aaron Court,Nursing Permanent,944.52,0.00,Nursing Care
26/03/2018,Adults & Housing Department,Abbey Healthcare T/a Aaron Court,Nursing Permanent,944.52,0.00,Nursing Care
26/03/2018,Adults & Housing Department,Abbey Healthcare T/a Aaron Court,Nursing Permanent,944.52,0.00,Nursing Care
26/03/2018,Adults & Housing Department,Abbey Healthcare T/a Aaron Court,Nursing Permanent,944.52,0.00,Nursing Care
26/03/2018,Adults & Housing Department,Abbey Healthcare T/a Aaron Court,Nursing Permanent,944.52,0.00,Nursing Care
26/03/2018,Adults & Housing Department,Abbey Healthcare T/a Aaron Court,Nursing Permanent,944.52,0.00,Nursing Care
26/03/2018,Adults & Housing Department,Abbey Healthcare T/a Aaron Court,Nursing Permanent,944.52,0.00,Nursing Care
26/03/2018,Adults & Housing Department,Abbey Healthcare T/a Aaron Court,Nursing Permanent,944.52,0.00,Nursing Care
26/03/2018,Adults & Housing Department,Abbey Healthcare T/a Aaron Court,Nursing Permanent,944.52,0.00,Nursing Care
26/03/2018,Adults & Housing Department,Abbey Healthcare T/a Aaron Court,Nursing Permanent,944.52,0.00,Nursing Care
26/03/2018,Adults & Housing Department,Abbey Healthcare T/a Aaron Court,Nursing Permanent,742.12,0.00,Nursing Care
26/03/2018,Adults & Housing Department,Abbey Healthcare T/a Aaron Court,Nursing Permanent,944.52,0.00,Nursing Care
26/03/2018,Adults & Housing Department,Abbey Healthcare T/a Aaron Court,Nursing Permanent,944.52,0.00,Nursing Care
26/03/2018,Adults & Housing Department,Abbey Healthcare T/a Aaron Court,Residential Permanent,969.00,0.00,Residential Care
26/03/2018,Adults & Housing Department,Abbey Healthcare T/a Aaron Court,Residential Permanent,869.04,0.00,Residential Care
26/03/2018,Adults & Housing Department,Abbey Healthcare T/a Aaron Court,Residential Permanent,869.04,0.00,Residential Care
26/03/2018,Adults & Housing Department,Abbey Healthcare T/a Aaron Court,Residential Permanent,969.00,0.00,Residential Care
26/03/2018,Adults & Housing Department,Abbey Healthcare T/a Aaron Court,Residential Permanent,969.00,0.00,Residential Care
26/03/2018,Adults & Housing Department,Abbey Healthcare T/a Aaron Court,Residential Permanent,"1,245.86",0.00,Residential Care
26/03/2018,Adults & Housing Department,Abbey Healthcare T/a Aaron Court,Residential Permanent,869.04,0.00,Residential Care
26/03/2018,Adults & Housing Department,Abbey Healthcare T/a Aaron Court,Residential Permanent,869.04,0.00,Residential Care
26/03/2018,Adults & Housing Department,Abbey Healthcare T/a Aaron Court,Residential Permanent,869.04,0.00,Residential Care
26/03/2018,Adults & Housing Department,Abbey Healthcare T/a Aaron Court,Residential Permanent,969.00,0.00,Residential Care
26/03/2018,Adults & Housing Department,Abbey Healthcare T/a Aaron Court,Residential Permanent,969.00,0.00,Residential Care
26/03/2018,Adults & Housing Department,Abbey Healthcare T/a Aaron Court,Residential Permanent,969.00,0.00,Residential Care
26/03/2018,Adults & Housing Department,Abbey Healthcare T/a Aaron Court,Residential Permanent,969.00,0.00,Residential Care
26/03/2018,Adults & Housing Department,Abbey Healthcare T/a Aaron Court,Residential Permanent,714.00,0.00,Residential Care
26/03/2018,Adults & Housing Department,Abbey Healthcare T/a Aaron Court,Residential Permanent,869.04,0.00,Residential Care
26/03/2018,Adults & Housing Department,Abbey Healthcare T/a Aaron Court,Residential Permanent,714.00,0.00,Residential Care
26/03/2018,Adults & Housing Department,Abbey Healthcare T/a Aaron Court,Residential Permanent,869.04,0.00,Residential Care
26/03/2018,Adults & Housing Department,Abbey Healthcare T/a Aaron Court,Residential Permanent,869.04,0.00,Residential Care
26/03/2018,Adults & Housing Department,Abbey Healthcare T/a Aaron Court,Residential Permanent,869.04,0.00,Residential Care
26/03/2018,Adults & Housing Department,Abbey Healthcare T/a Aaron Court,Residential Permanent,869.04,0.00,Residential Care
26/03/2018,Adults & Housing Department,Abbey Healthcare T/a Aaron Court,Residential Permanent,869.04,0.00,Residential Care
26/03/2018,Adults & Housing Department,Abbey Healthcare T/a Aaron Court,Residential Permanent,869.04,0.00,Residential Care
26/03/2018,Adults & Housing Department,Abbey Healthcare T/a Aaron Court,Residential Permanent,869.04,0.00,Residential Care
26/03/2018,Adults & Housing Department,Abbey Healthcare T/a Aaron Court,Residential Permanent,869.04,0.00,Residential Care
26/03/2018,Adults & Housing Department,Abbey Healthcare T/a Aaron Court,Residential Permanent,969.00,0.00,Residential Care
26/03/2018,Adults & Housing Department,Abbey Healthcare T/a Aaron Court,Residential Permanent,869.04,0.00,Residential Care
26/03/2018,Adults & Housing Department,Abbey Healthcare T/a Aaron Court,Residential Permanent,869.04,0.00,Residential Care
26/03/2018,Adults & Housing Department,Abbey Healthcare T/a Aaron Court,Residential Permanent,869.04,0.00,Residential Care
26/03/2018,Adults & Housing Department,Abbey Healthcare T/a Aaron Court,Residential Permanent,869.04,0.00,Residential Care
26/03/2018,Adults & Housing Department,Abbey Healthcare T/a Aaron Court,Residential Permanent,969.00,0.00,Residential Care
26/03/2018,Adults & Housing Department,Abbey Healthcare T/a Aaron Court,Residential Permanent,969.00,0.00,Residential Care
26/03/2018,Adults & Housing Department,Abbey Healthcare T/a Aaron Court,Residential Permanent,969.00,0.00,Residential Care
26/03/2018,Adults & Housing Department,Abbey Healthcare T/a Aaron Court,Residential Permanent,869.04,0.00,Residential Care
26/03/2018,Adults & Housing Department,Abbey Healthcare T/a Aaron Court,Residential Permanent,969.00,0.00,Residential Care
26/03/2018,Adults & Housing Department,Abbey Healthcare T/a Aaron Court,Residential Permanent,869.04,0.00,Residential Care
26/03/2018,Adults & Housing Department,Abbey Healthcare T/a Aaron Court,Residential Short Stay,"1,938.00",0.00,Residential Care
26/03/2018,Adults & Housing Department,Abbey Healthcare T/a Aaron Court,Residential Short Stay,"1,107.43",0.00,Residential Care
26/03/2018,Adults & Housing Department,Abbey Healthcare T/a Aaron Court,Residential Short Stay,"1,938.00",0.00,Residential Care
16/03/2018,Adults & Housing Department,ABBEY HOUSE,Added Years Pension invoice payments,"3,516.30",0.00,Pension Miscellaneous
26/03/2018,Adults & Housing Department,ABBEY HOUSE,Residential Permanent,869.04,0.00,Residential Care
26/03/2018,Adults & Housing Department,ABBEY HOUSE,Residential Permanent,869.04,0.00,Residential Care
26/03/2018,Adults & Housing Department,ABBEY HOUSE,Residential Permanent,869.04,0.00,Residential Care
26/03/2018,Adults & Housing Department,ABBEY HOUSE,Residential Permanent,869.04,0.00,Residential Care
26/03/2018,Adults & Housing Department,ABBEY HOUSE,Residential Permanent,869.04,0.00,Residential Care
26/03/2018,Adults & Housing Department,ABBEY HOUSE,Residential Permanent,869.04,0.00,Residential Care
26/03/2018,Adults & Housing Department,ABBEY HOUSE,Residential Permanent,969.00,0.00,Residential Care
26/03/2018,Adults & Housing Department,ABBEY HOUSE,Residential Permanent,969.00,0.00,Residential Care
26/03/2018,Adults & Housing Department,ABBEY HOUSE,Residential Permanent,969.00,0.00,Residential Care
26/03/2018,Adults & Housing Department,ABBEY HOUSE,Residential Permanent,969.00,0.00,Residential Care
26/03/2018,Adults & Housing Department,ABBEY HOUSE,Residential Permanent,969.00,0.00,Residential Care
26/03/2018,Adults & Housing Department,ABBEY HOUSE,Residential Permanent,869.04,0.00,Residential Care
26/03/2018,Adults & Housing Department,ABBEY HOUSE,Residential Permanent,869.04,0.00,Residential Care
26/03/2018,Adults & Housing Department,ABBEY HOUSE,Residential Permanent,969.00,0.00,Residential Care
26/03/2018,Adults & Housing Department,ABBEY HOUSE,Residential Permanent,869.04,0.00,Residential Care
26/03/2018,Adults & Housing Department,ABBEY HOUSE,Residential Permanent,869.04,0.00,Residential Care
26/03/2018,Adults & Housing Department,ABBEY HOUSE,Residential Permanent,883.32,0.00,Residential Care
26/03/2018,Adults & Housing Department,ABBEY HOUSE,Residential Permanent,969.00,0.00,Residential Care
26/03/2018,Adults & Housing Department,ABBEY HOUSE,Residential Permanent,969.00,0.00,Residential Care
26/03/2018,Adults & Housing Department,ABBEY HOUSE,Residential Permanent,869.04,0.00,Residential Care
26/03/2018,Adults & Housing Department,ABBEY HOUSE,Residential Permanent,"5,376.00",0.00,Residential Care
26/03/2018,Adults & Housing Department,ABBEY HOUSE,Residential Permanent,883.32,0.00,Residential Care
26/03/2018,Adults & Housing Department,ABBEY HOUSE,Residential Permanent,969.00,0.00,Residential Care
26/03/2018,Adults & Housing Department,ABBEY HOUSE,Residential Permanent,883.32,0.00,Residential Care
26/03/2018,Adults & Housing Department,ABBEY HOUSE,Residential Permanent,969.00,0.00,Residential Care
26/03/2018,Adults & Housing Department,ABBEY HOUSE,Residential Permanent,869.04,0.00,Residential Care
26/03/2018,Adults & Housing Department,ABBEY HOUSE,Residential Permanent,869.04,0.00,Residential Care
26/03/2018,Adults & Housing Department,ABBEY HOUSE,Residential Permanent,869.04,0.00,Residential Care
26/03/2018,Adults & Housing Department,ABBEY HOUSE,Residential Permanent,969.00,0.00,Residential Care
26/03/2018,Adults & Housing Department,ABBEY HOUSE,Residential Permanent,869.04,0.00,Residential Care
26/03/2018,Adults & Housing Department,ABBEY HOUSE,Residential Permanent,869.04,0.00,Residential Care
26/03/2018,Adults & Housing Department,ABBEY HOUSE,Residential Permanent,883.32,0.00,Residential Care
26/03/2018,Adults & Housing Department,ABBEY HOUSE,Residential Permanent,869.04,0.00,Residential Care
26/03/2018,Adults & Housing Department,ABBEY HOUSE,Residential Permanent,969.00,0.00,Residential Care
26/03/2018,Adults & Housing Department,ABBEY HOUSE,Residential Permanent,869.04,0.00,Residential Care
26/03/2018,Adults & Housing Department,ABBEY HOUSE,Residential Permanent,869.04,0.00,Residential Care
26/03/2018,Adults & Housing Department,ABBEY HOUSE,Residential Permanent,969.00,0.00,Residential Care
26/03/2018,Adults & Housing Department,ABBEY HOUSE,Residential Permanent,969.00,0.00,Residential Care
26/03/2018,Adults & Housing Department,ABBEY HOUSE,Residential Permanent,969.00,0.00,Residential Care
26/03/2018,Adults & Housing Department,ABBEY HOUSE,Residential Permanent,969.00,0.00,Residential Care
26/03/2018,Adults & Housing Department,ABBEY HOUSE,Residential Permanent,869.04,0.00,Residential Care
26/03/2018,Adults & Housing Department,ABBEY HOUSE,Residential Permanent,869.04,0.00,Residential Care
26/03/2018,Adults & Housing Department,ABBEY HOUSE,Residential Permanent,969.00,0.00,Residential Care
26/03/2018,Adults & Housing Department,ABBEY HOUSE,Residential Permanent,883.32,0.00,Residential Care
26/03/2018,Adults & Housing Department,ABBEY HOUSE,Residential Permanent,883.32,0.00,Residential Care
26/03/2018,Adults & Housing Department,ABBEY HOUSE,Residential Permanent,869.04,0.00,Residential Care
26/03/2018,Adults & Housing Department,ABBEY HOUSE,Residential Permanent,969.00,0.00,Residential Care
26/03/2018,Adults & Housing Department,ABBEY HOUSE,Residential Permanent,869.04,0.00,Residential Care
26/03/2018,Adults & Housing Department,ABBEY HOUSE,Residential Permanent,869.04,0.00,Residential Care
26/03/2018,Adults & Housing Department,ABBEY HOUSE,Residential Permanent,969.00,0.00,Residential Care
26/03/2018,Adults & Housing Department,ABBEY HOUSE,Residential Permanent,969.00,0.00,Residential Care
26/03/2018,Adults & Housing Department,ABBEY HOUSE,Residential Permanent,969.00,0.00,Residential Care
26/03/2018,Adults & Housing Department,ABBEY HOUSE,Residential Permanent,869.04,0.00,Residential Care
26/03/2018,Adults & Housing Department,ABBEY HOUSE,Residential Permanent,969.00,0.00,Residential Care
26/03/2018,Adults & Housing Department,ABBEY HOUSE,Residential Permanent,969.00,0.00,Residential Care
26/03/2018,Adults & Housing Department,ABBEY HOUSE,Residential Permanent,969.00,0.00,Residential Care
26/03/2018,Adults & Housing Department,ABBEY HOUSE,Residential Permanent,969.00,0.00,Residential Care
26/03/2018,Adults & Housing Department,ABBEY HOUSE,Residential Permanent,869.04,0.00,Residential Care
26/03/2018,Adults & Housing Department,ABBEY HOUSE,Residential Permanent,969.00,0.00,Residential Care
26/03/2018,Adults & Housing Department,ABBEY HOUSE,Residential Respite,"1,427.71",0.00,Residential Care
26/03/2018,Adults & Housing Department,Abbotsford Care Ltd T/a Diamond House,Residential Permanent,969.00,0.00,Residential Care
26/03/2018,Adults & Housing Department,Abbotsford Care Ltd T/a Diamond House,Residential Permanent,869.04,0.00,Residential Care
26/03/2018,Adults & Housing Department,Abbotsford Care Ltd T/a Diamond House,Residential Permanent,969.00,0.00,Residential Care
26/03/2018,Adults & Housing Department,Abbotsford Care Ltd T/a Diamond House,Residential Permanent,969.00,0.00,Residential Care
26/03/2018,Adults & Housing Department,Abbotsford Care Ltd T/a Diamond House,Residential Permanent,869.04,0.00,Residential Care
26/03/2018,Adults & Housing Department,Abbotsford Care Ltd T/a Diamond House,Residential Permanent,869.04,0.00,Residential Care
26/03/2018,Adults & Housing Department,Abbotsford Care Ltd T/a Diamond House,Residential Permanent,869.04,0.00,Residential Care
26/03/2018,Adults & Housing Department,Abbotsford Care Ltd T/a Diamond House,Residential Permanent,969.00,0.00,Residential Care
26/03/2018,Adults & Housing Department,Abbotsford Care Ltd T/a Diamond House,Residential Permanent,869.04,0.00,Residential Care
26/03/2018,Adults & Housing Department,Abbotsford Care Ltd T/a Diamond House,Residential Permanent,969.00,0.00,Residential Care
26/03/2018,Adults & Housing Department,Abbotsford Care Ltd T/a Diamond House,Residential Permanent,869.04,0.00,Residential Care
26/03/2018,Adults & Housing Department,Abbotsford Care Ltd T/a Diamond House,Residential Permanent,969.00,0.00,Residential Care
26/03/2018,Adults & Housing Department,Abbotsford Care Ltd T/a Diamond House,Residential Permanent,969.00,0.00,Residential Care
26/03/2018,Adults & Housing Department,Abbotsford Care Ltd T/a Diamond House,Residential Permanent,"1,241.49",0.00,Residential Care
26/03/2018,Adults & Housing Department,Abbotsford Care Ltd T/a Diamond House,Residential Permanent,969.00,0.00,Residential Care
26/03/2018,Adults & Housing Department,Abbotsford Care Ltd T/a Diamond House,Residential Permanent,969.00,0.00,Residential Care
26/03/2018,Adults & Housing Department,Abbotsford Care Ltd T/a Diamond House,Residential Permanent,869.04,0.00,Residential Care
26/03/2018,Adults & Housing Department,Abbotsford Care Ltd T/a Diamond House,Residential Permanent,969.00,0.00,Residential Care
26/03/2018,Adults & Housing Department,Abbotsford Care Ltd T/a Diamond House,Residential Permanent,969.00,0.00,Residential Care
26/03/2018,Adults & Housing Department,Abbotsford Care Ltd T/a Diamond House,Residential Permanent,869.04,0.00,Residential Care
26/03/2018,Adults & Housing Department,Abbotsford Care Ltd T/a Diamond House,Residential Permanent,869.04,0.00,Residential Care
26/03/2018,Adults & Housing Department,Abbotsford Care Ltd T/a Diamond House,Residential Permanent,969.00,0.00,Residential Care
26/03/2018,Adults & Housing Department,Abbotsford Care Ltd T/a Diamond House,Residential Permanent,969.00,0.00,Residential Care
26/03/2018,Adults & Housing Department,Abbotsford Care Ltd T/a Diamond House,Residential Permanent,969.00,0.00,Residential Care
26/03/2018,Adults & Housing Department,Abbotsford Care Ltd T/a Diamond House,Residential Permanent,969.00,0.00,Residential Care
26/03/2018,Adults & Housing Department,Abbotsford Care Ltd T/a Diamond House,Residential Permanent,869.04,0.00,Residential Care
26/03/2018,Adults & Housing Department,Abbotsford Care Ltd T/a Diamond House,Residential Permanent,969.00,0.00,Residential Care
26/03/2018,Adults & Housing Department,Abbotsford Care Ltd T/a Diamond House,Residential Permanent,869.04,0.00,Residential Care
26/03/2018,Adults & Housing Department,Abbotsford Care Ltd T/a Diamond House,Residential Permanent,969.00,0.00,Residential Care
26/03/2018,Adults & Housing Department,Abbotsford Care Ltd T/a Diamond House,Residential Permanent,969.00,0.00,Residential Care
26/03/2018,Adults & Housing Department,Abbotsford Care Ltd T/a Diamond House,Residential Permanent,969.00,0.00,Residential Care
26/03/2018,Adults & Housing Department,Abbotsford Care Ltd T/a Diamond House,Residential Permanent,869.04,0.00,Residential Care
26/03/2018,Adults & Housing Department,Abbotsford Care Ltd T/a Diamond House,Residential Permanent,969.00,0.00,Residential Care
26/03/2018,Adults & Housing Department,Abbotsford Care Ltd T/a Diamond House,Residential Permanent,869.04,0.00,Residential Care
26/03/2018,Adults & Housing Department,Abbotsford Care Ltd T/a Diamond House,Residential Permanent,969.00,0.00,Residential Care
26/03/2018,Adults & Housing Department,Abbotsford Care Ltd T/a Diamond House,Residential Permanent,969.00,0.00,Residential Care
26/03/2018,Adults & Housing Department,Abbotsford Care Ltd T/a Diamond House,Residential Permanent,969.00,0.00,Residential Care
26/03/2018,Adults & Housing Department,Abbotsford Care Ltd T/a Diamond House,Residential Permanent,869.04,0.00,Residential Care
26/03/2018,Adults & Housing Department,Abbotsford Care Ltd T/a Diamond House,Residential Permanent,869.04,0.00,Residential Care
26/03/2018,Adults & Housing Department,Abbotsford Care Ltd T/a Diamond House,Residential Permanent,869.04,0.00,Residential Care
26/03/2018,Adults & Housing Department,Abbotsford Care Ltd T/a Diamond House,Residential Permanent,869.04,0.00,Residential Care
26/03/2018,Adults & Housing Department,Abbotsford Care Ltd T/a Diamond House,Residential Permanent,869.04,0.00,Residential Care
26/03/2018,Adults & Housing Department,Abbotsford Care Ltd T/a Diamond House,Residential Permanent,969.00,0.00,Residential Care
26/03/2018,Adults & Housing Department,Abbotsford Care Ltd T/a Diamond House,Residential Permanent,869.04,0.00,Residential Care
26/03/2018,Adults & Housing Department,Abbotsford Care Ltd T/a Diamond House,Residential Permanent,869.04,0.00,Residential Care
21/03/2018,Education & Childrens Services,Abc Danoto Ltd,Employee Taxi Travel Expense,"1,679.10",335.82,Taxi Travel Expense
21/03/2018,Education & Childrens Services,Abc Danoto Ltd,Employee Taxi Travel Expense,"1,215.00",243.00,Taxi Travel Expense
23/03/2018,Education & Childrens Services,ABC Fostering Services Ltd,Independent Foster Agencies,"2,707.20",0.00,Other Agencies
23/03/2018,Education & Childrens Services,ABC Fostering Services Ltd,Independent Foster Agencies,"2,760.00",0.00,Other Agencies
23/03/2018,Education & Childrens Services,ABC Fostering Services Ltd,Independent Foster Agencies,"2,707.20",0.00,Other Agencies
09/03/2018,City Developments and Neighbourhood,Abca Systems,Responsive,"4,504.47",900.89,Building Works & Repairs/Maintenance/Alterations
23/03/2018,Adults & Housing Department,Accredo Support & Development Ltd FA SL&FSB,DAY SUPPORT,"6,224.40",0.00,LD Supported Living
23/03/2018,Adults & Housing Department,Accredo Support & Development Ltd FA SL&FSB,DAY SUPPORT,622.44,0.00,LD Supported Living
23/03/2018,Adults & Housing Department,Accredo Support & Development Ltd FA SL&FSB,DAY SUPPORT,505.08,0.00,LD Flexible Short Break
23/03/2018,Adults & Housing Department,Accredo Support & Development Ltd FA SL&FSB,DAY SUPPORT,"6,224.42",0.00,LD Supported Living
23/03/2018,Adults & Housing Department,Accredo Support & Development Ltd FA SL&FSB,DAY SUPPORT,829.92,0.00,LD Supported Living
23/03/2018,Adults & Housing Department,Accredo Support & Development Ltd FA SL&FSB,DAY SUPPORT,"7,291.44",0.00,LD Supported Living
23/03/2018,Adults & Housing Department,Accredo Support & Development Ltd FA SL&FSB,DAY SUPPORT,"4,268.15",0.00,LD Supported Living
23/03/2018,Adults & Housing Department,Accredo Support & Development Ltd FA SL&FSB,DAY SUPPORT,"2,178.54",0.00,LD Supported Living
23/03/2018,Adults & Housing Department,Accredo Support & Development Ltd FA SL&FSB,DAY SUPPORT,"5,394.48",0.00,LD Supported Living
23/03/2018,Adults & Housing Department,Accredo Support & Development Ltd FA SL&FSB,DAY SUPPORT,"4,031.05",0.00,LD Supported Living
23/03/2018,Adults & Housing Department,Accredo Support & Development Ltd FA SL&FSB,DAY SUPPORT,"6,224.40",0.00,LD Supported Living
23/03/2018,Adults & Housing Department,Accredo Support & Development Ltd FA SL&FSB,DAY SUPPORT,"2,074.80",0.00,LD Supported Living
23/03/2018,Adults & Housing Department,Accredo Support & Development Ltd FA SL&FSB,DAY SUPPORT,"12,448.80",0.00,LD Supported Living
23/03/2018,Adults & Housing Department,Accredo Support & Development Ltd FA SL&FSB,DAY SUPPORT,"1,126.33",0.00,LD Supported Living
23/03/2018,Adults & Housing Department,Accredo Support & Development Ltd FA SL&FSB,DAY SUPPORT,"1,111.50",0.00,LD Supported Living
23/03/2018,Adults & Housing Department,Accredo Support & Development Ltd FA SL&FSB,DAY SUPPORT,"5,601.96",0.00,LD Supported Living
23/03/2018,Adults & Housing Department,Accredo Support & Development Ltd FA SL&FSB,DAY SUPPORT,"6,224.40",0.00,LD Supported Living
23/03/2018,Adults & Housing Department,Accredo Support & Development Ltd FA SL&FSB,DAY SUPPORT,"4,772.04",0.00,LD Supported Living
23/03/2018,Adults & Housing Department,Accredo Support & Development Ltd FA SL&FSB,DAY SUPPORT,"2,059.98",0.00,LD Supported Living
23/03/2018,Adults & Housing Department,Accredo Support & Development Ltd FA SL&FSB,DAY SUPPORT,"3,912.49",0.00,LD Supported Living
23/03/2018,Adults & Housing Department,Accredo Support & Development Ltd FA SL&FSB,Day Support Hours,715.53,0.00,Supported Living
23/03/2018,Adults & Housing Department,Accredo Support & Development Ltd FA SL&FSB,Day Support Hours,785.68,0.00,Supported Living
23/03/2018,Adults & Housing Department,Accredo Support & Development Ltd FA SL&FSB,Day Support Hours,"5,583.94",0.00,Supported Living
23/03/2018,Adults & Housing Department,Accredo Support & Development Ltd FA SL&FSB,Day Support Hours,982.10,0.00,Supported Living
23/03/2018,Adults & Housing Department,Accredo Support & Development Ltd FA SL&FSB,Day Support Hours,785.68,0.00,Supported Living
23/03/2018,Adults & Housing Department,Accredo Support & Development Ltd FA SL&FSB,Day Support Hours,"1,108.37",0.00,Supported Living
23/03/2018,Adults & Housing Department,Accredo Support & Development Ltd FA SL&FSB,Day Support Hours,561.20,0.00,Supported Living
23/03/2018,Adults & Housing Department,Accredo Support & Development Ltd FA SL&FSB,Day Support Hours,982.10,0.00,Supported Living
23/03/2018,Adults & Housing Department,Accredo Support & Development Ltd FA SL&FSB,Day Support Hours,589.26,0.00,Supported Living
23/03/2018,Adults & Housing Department,Accredo Support & Development Ltd FA SL&FSB,Day Support Hours,785.68,0.00,Supported Living
23/03/2018,Adults & Housing Department,Accredo Support & Development Ltd FA SL&FSB,Day Support Hours,"5,668.12",0.00,Supported Living
23/03/2018,Adults & Housing Department,Accredo Support & Development Ltd FA SL&FSB,Day Support Hours,"5,247.22",0.00,Supported Living
23/03/2018,Adults & Housing Department,Accredo Support & Development Ltd FA SL&FSB,Day Support Hours,925.98,0.00,Supported Living
23/03/2018,Adults & Housing Department,Accredo Support & Development Ltd FA SL&FSB,SLEEP-IN SUPPORT,"2,148.12",0.00,LD Supported Living
23/03/2018,Adults & Housing Department,Accredo Support & Development Ltd FA SL&FSB,SLEEP-IN SUPPORT,"1,789.92",0.00,LD Supported Living
23/03/2018,Adults & Housing Department,Accredo Support & Development Ltd FA SL&FSB,SLEEP-IN SUPPORT,"2,227.68",0.00,LD Supported Living
23/03/2018,Adults & Housing Department,Accredo Support & Development Ltd FA SL&FSB,SLEEP-IN SUPPORT,"2,227.68",0.00,LD Supported Living
23/03/2018,Adults & Housing Department,Accredo Support & Development Ltd FA SL&FSB,Sleeping In Night Support,813.28,0.00,Supported Living
23/03/2018,Adults & Housing Department,Accredo Support & Development Ltd FA SL&FSB,Sleeping In Night Support,"1,243.53",0.00,Supported Living
23/03/2018,Adults & Housing Department,Accredo Support & Development Ltd FA SL&FSB,Sleeping In Night Support,"2,227.68",0.00,Supported Living
02/03/2018,Adults & Housing Department,Accredo Support & Development Ltd FA SL&FSB,WAKING NIGHT SUPPORT,"1,867.32",0.00,LD Supported Living
23/03/2018,Adults & Housing Department,Accredo Support & Development Ltd FA SL&FSB,WAKING NIGHT SUPPORT,933.66,0.00,LD Supported Living
23/03/2018,Adults & Housing Department,Accredo Support & Development Ltd FA SL&FSB,WAKING NIGHT SUPPORT,"3,734.64",0.00,LD Supported Living
23/03/2018,Adults & Housing Department,Accredo Support & Development Ltd FA SL&FSB,WAKING NIGHT SUPPORT,"3,734.64",0.00,LD Supported Living
23/03/2018,Adults & Housing Department,Accredo Support & Development Ltd FA SL&FSB,WAKING NIGHT SUPPORT,933.66,0.00,LD Supported Living
23/03/2018,Adults & Housing Department,Accredo Support & Development Ltd FA SL&FSB,WAKING NIGHT SUPPORT,933.66,0.00,LD Supported Living
23/03/2018,Adults & Housing Department,Accredo Support & Development Ltd FA SL&FSB,WAKING NIGHT SUPPORT,933.66,0.00,LD Supported Living
23/03/2018,Adults & Housing Department,Accredo Support & Development Ltd FA SL&FSB,WAKING NIGHT SUPPORT,"3,734.64",0.00,LD Supported Living
02/03/2018,Adults & Housing Department,Accredo Support & Development Ltd FA SL&FSB,Waking Night Support Hours,"1,867.49",0.00,Supported Living
26/03/2018,City Developments and Neighbourhood,Ace Cleaning Company (Leicester) Ltd,External Building Cleaning Contractors,784.60,156.92,External Building Cleaning Contractors
26/03/2018,City Developments and Neighbourhood,Ace Cleaning Company (Leicester) Ltd,External Building Cleaning Contractors,"1,974.10",394.82,External Building Cleaning Contractors
26/03/2018,Education & Childrens Services,Ace Cleaning Company (Leicester) Ltd,Internal Contract Cleaning Services,"2,649.57",529.91,Internal Contract Building Cleaning
14/03/2018,City Developments and Neighbourhood,Ace Cleaning Company (Leicester) Ltd,Window Cleaning Contract,"2,366.50",473.30,Window Cleaning Contract
07/03/2018,Adults & Housing Department,Ace Properties,Rent - Other,525.00,0.00,Rent - Other
07/03/2018,Education & Childrens Services,Acorn Fostering Services Ltd,Independent Foster Agencies,"2,860.00",0.00,Other Agencies
07/03/2018,Education & Childrens Services,Acorn Fostering Services Ltd,Independent Foster Agencies,"3,088.80",0.00,Other Agencies
07/03/2018,Education & Childrens Services,Acorn Fostering Services Ltd,Independent Foster Agencies,"2,886.00",0.00,Other Agencies
09/03/2018,Education & Childrens Services,Acorn Fostering Services Ltd,Independent Foster Agencies,"1,388.12",0.00,Other Agencies
09/03/2018,Education & Childrens Services,Acorn Fostering Services Ltd,Independent Foster Agencies,"2,860.00",0.00,Other Agencies
09/03/2018,Education & Childrens Services,Acorn Fostering Services Ltd,Independent Foster Agencies,"2,886.00",0.00,Other Agencies
23/03/2018,Education & Childrens Services,ACS Business Supplies Ltd,IT Consumables,538.67,107.73,IT Consumables
26/03/2018,Corporate Resources & Support,Action Homeless (Leicester) Ltd,Food Banks,"13,705.74",0.00,Grant Payments
23/03/2018,City Developments and Neighbourhood,Action Homeless (Leicester) Ltd,Sundry Project Grants,"45,630.00",0.00,Voluntary Organisations
06/03/2018,Education & Childrens Services,Active Ark Ltd,Residential Placements,"20,615.00",0.00,Other Agencies
23/03/2018,Adults & Housing Department,Adaptus Cares Limited,Personal Care / Generic,"1,232.25",0.00,Home Care
23/03/2018,Adults & Housing Department,Adaptus Cares Limited,Personal Care / Generic,599.45,0.00,Home Care
23/03/2018,Adults & Housing Department,Adaptus Cares Limited,Personal Care / Generic,"1,216.48",0.00,Home Care
23/03/2018,Adults & Housing Department,Adaptus Cares Limited,Personal Care / Generic,869.69,0.00,Home Care
23/03/2018,Adults & Housing Department,Adaptus Cares Limited,Personal Care / Generic,"2,038.77",0.00,Home Care
23/03/2018,Adults & Housing Department,Adaptus Cares Limited,Personal Care / Generic,"2,552.38",0.00,Home Care
23/03/2018,Adults & Housing Department,Adaptus Cares Limited,Personal Care / Generic,729.88,0.00,Home Care
23/03/2018,Adults & Housing Department,Adaptus Cares Limited,Personal Care / Generic,"1,910.63",0.00,Home Care
26/03/2018,Adults & Housing Department,Adaptus Cares Limited,Personal Care / Generic,518.89,0.00,Home Care
26/03/2018,Adults & Housing Department,Adaptus Cares Limited,Personal Care / Generic,581.98,0.00,Home Care
26/03/2018,Adults & Housing Department,Adaptus Cares Limited,Personal Care / Generic,865.95,0.00,Home Care
26/03/2018,Adults & Housing Department,Adaptus Cares Limited,Personal Care / Generic,550.42,0.00,Home Care
26/03/2018,Adults & Housing Department,Adaptus Cares Limited,Personal Care / Generic,"1,480.62",0.00,Home Care
26/03/2018,Adults & Housing Department,Adaptus Cares Limited,Personal Care / Generic,"1,938.36",0.00,Home Care
26/03/2018,Adults & Housing Department,Adaptus Cares Limited,Personal Care / Generic,511.85,0.00,Home Care
26/03/2018,Adults & Housing Department,Adaptus Cares Limited,Personal Care / Generic,785.21,0.00,Home Care
26/03/2018,Adults & Housing Department,Adaptus Cares Limited,Personal Care / Generic,"2,001.71",0.00,Home Care
21/03/2018,Corporate Resources & Support,Adept Telecom Plc,Communication Equipment Lease / Rental,"4,867.44",973.49,Communications Equipment Lease / Rental
06/03/2018,Adults & Housing Department,Adhar Project,Paid Persons Representatives (PPR),"4,524.40",904.88,Consultant Fees
21/03/2018,Adults & Housing Department,Adhar Project,Paid Persons Representatives (PPR),563.85,0.00,Consultant Fees
21/03/2018,Adults & Housing Department,Adhar Project,Paid Persons Representatives (PPR),"4,668.75",933.75,Consultant Fees
23/03/2018,Education & Childrens Services,ADHD Solutions Cic,Education and Training Services,"7,500.00",0.00,Education & Training Services
14/03/2018,Education & Childrens Services,Adoption Matters,Adoption Agency Placements,"28,667.00",0.00,Other Agencies
14/03/2018,,Adroit Roofing Contractors,Building Works - Alterations,"5,124.00",0.00,Building Works - Alterations
02/03/2018,City Developments and Neighbourhood,ADT Fire & Security plc,Responsive,955.80,191.16,Building Services / Repairs & Maintenance  Fixtures & Fittings
09/03/2018,City Developments and Neighbourhood,ADT Fire & Security plc,Responsive,550.00,110.00,Building Services / Repairs & Maintenance  Fixtures & Fittings
23/03/2018,Education & Childrens Services,ADT Fire & Security plc,Responsive,720.21,144.04,Building Services / Repairs & Maintenance  Fixtures & Fittings
23/03/2018,City Developments and Neighbourhood,ADT Fire & Security plc,Responsive,"4,454.38",890.88,Building Services / Repairs & Maintenance  Fixtures & Fittings
23/03/2018,City Developments and Neighbourhood,ADT Fire & Security plc,Responsive,"1,894.25",378.85,Building Services / Repairs & Maintenance  Fixtures & Fittings
26/03/2018,City Developments and Neighbourhood,ADT Fire & Security plc,Responsive,"1,045.66",209.13,Building Services / Repairs & Maintenance  Fixtures & Fittings
23/03/2018,City Developments and Neighbourhood,ADT Fire & Security plc,Servicing,"1,140.00",228.00,Building Services / Repairs & Maintenance  Fixtures & Fittings
21/03/2018,Education & Childrens Services,ADT Taxis,Employee Taxi Travel Expense,503.00,0.00,Taxi Travel Expense
21/03/2018,Education & Childrens Services,ADT Taxis,Employee Taxi Travel Expense,918.40,0.00,Taxi Travel Expense
23/03/2018,City Developments and Neighbourhood,Adullam Homes Housing Association Ltd,Sundry Project Grants,"27,934.50",0.00,Voluntary Organisations
21/03/2018,Adults & Housing Department,Advance Housing & Support Ltd FA SL & FSB,DAY SUPPORT,592.40,0.00,MH Supported Living
21/03/2018,Adults & Housing Department,Advance Housing & Support Ltd FA SL & FSB,DAY SUPPORT,710.88,0.00,MH Supported Living
21/03/2018,Adults & Housing Department,Advance Housing & Support Ltd FA SL & FSB,DAY SUPPORT,651.64,0.00,MH Supported Living
21/03/2018,Adults & Housing Department,Advance Housing & Support Ltd FA SL & FSB,DAY SUPPORT,533.16,0.00,MH Supported Living
21/03/2018,Adults & Housing Department,Advance Housing & Support Ltd FA SL & FSB,DAY SUPPORT,888.60,0.00,MH Supported Living
21/03/2018,Adults & Housing Department,Advance Housing & Support Ltd FA SL & FSB,DAY SUPPORT,829.36,0.00,MH Supported Living
21/03/2018,Adults & Housing Department,Advance Housing & Support Ltd FA SL & FSB,DAY SUPPORT,770.12,0.00,MH Supported Living
21/03/2018,Adults & Housing Department,Advance Housing & Support Ltd FA SL & FSB,SLEEP-IN SUPPORT,689.22,0.00,MH Supported Living
21/03/2018,Adults & Housing Department,Advance Housing & Support Ltd FA SL & FSB,SLEEP-IN SUPPORT,689.22,0.00,MH Supported Living
21/03/2018,Adults & Housing Department,Advance Housing & Support Ltd FA SL & FSB,Supported Living - Day Intensive,516.91,0.00,Supported Living
06/03/2018,City Developments and Neighbourhood,AE Burgess & Sons  Ltd,Equipment Hire/Lease,"1,035.00",207.00,Equipment Hire / Lease
02/03/2018,City Developments and Neighbourhood,AE Burgess & Sons  Ltd,Transportation and Storage and Mail Services,580.00,116.00,Transportation & Storage Services
26/03/2018,Education & Childrens Services,AFB Coaching & Consultancy Ltd,Education and Training Services,"1,200.00",0.00,Education & Training Services
13/03/2018,Adults & Housing Department,Affinity Trust - Shared Bungalow - Ratby,Day Support Hours,"5,299.66",0.00,Supported Living
13/03/2018,Adults & Housing Department,Affinity Trust - Shared Bungalow - Ratby,Day Support Hours,"5,299.66",0.00,Supported Living
16/03/2018,Adults & Housing Department,Affinity Trust - Shared Bungalow - Ratby,Day Support Hours,"7,068.60",0.00,Supported Living
16/03/2018,Adults & Housing Department,Affinity Trust - Shared Bungalow - Ratby,Day Support Hours,"7,203.23",0.00,Supported Living
16/03/2018,Adults & Housing Department,Affinity Trust - Shared Bungalow - Ratby,Day Support Hours,"7,068.60",0.00,Supported Living
23/03/2018,Adults & Housing Department,Affinity Trust - Shared Bungalow - Ratby,Day Support Hours,"6,580.86",0.00,Supported Living
23/03/2018,Adults & Housing Department,Affinity Trust - Shared Bungalow - Ratby,Day Support Hours,"5,299.66",0.00,Supported Living
23/03/2018,Adults & Housing Department,Affinity Trust - Shared Bungalow - Ratby,Day Support Hours,673.20,0.00,Supported Living
23/03/2018,Adults & Housing Department,Affinity Trust - Shared Bungalow - Ratby,Day Support Hours,"7,203.23",0.00,Supported Living
23/03/2018,Adults & Housing Department,Affinity Trust - Shared Bungalow - Ratby,Day Support Hours,"8,296.72",0.00,Supported Living
23/03/2018,Adults & Housing Department,Affinity Trust - Shared Bungalow - Ratby,Day Support Hours,"5,299.66",0.00,Supported Living
23/03/2018,Adults & Housing Department,Affinity Trust - Shared Bungalow - Ratby,Day Support Hours,"10,809.96",0.00,Supported Living
23/03/2018,Adults & Housing Department,Affinity Trust - Shared Bungalow - Ratby,Day Support Hours,"6,590.97",0.00,Supported Living
23/03/2018,Adults & Housing Department,Affinity Trust - Shared Bungalow - Ratby,Day Support Hours,"6,237.00",0.00,Supported Living
23/03/2018,Adults & Housing Department,Affinity Trust - Shared Bungalow - Ratby,Day Support Hours,"7,068.60",0.00,Supported Living
23/03/2018,Adults & Housing Department,Affinity Trust - Shared Bungalow - Ratby,Day Support Hours,"5,613.30",0.00,Supported Living
23/03/2018,Adults & Housing Department,Affinity Trust - Shared Bungalow - Ratby,Sleeping In Night Support,556.92,0.00,Supported Living
23/03/2018,Adults & Housing Department,Affinity Trust - Shared Bungalow - Ratby,Sleeping In Night Support,556.92,0.00,Supported Living
23/03/2018,Adults & Housing Department,Affinity Trust - Shared Bungalow - Ratby,Sleeping In Night Support,556.92,0.00,Supported Living
23/03/2018,Adults & Housing Department,Affinity Trust - Shared Bungalow - Ratby,Sleeping In Night Support,556.92,0.00,Supported Living
13/03/2018,Adults & Housing Department,Affinity Trust - Shared Bungalow - Ratby,Waking Night Support Hours,996.66,0.00,Supported Living
13/03/2018,Adults & Housing Department,Affinity Trust - Shared Bungalow - Ratby,Waking Night Support Hours,996.66,0.00,Supported Living
16/03/2018,Adults & Housing Department,Affinity Trust - Shared Bungalow - Ratby,Waking Night Support Hours,"1,060.29",0.00,Supported Living
16/03/2018,Adults & Housing Department,Affinity Trust - Shared Bungalow - Ratby,Waking Night Support Hours,"1,060.29",0.00,Supported Living
16/03/2018,Adults & Housing Department,Affinity Trust - Shared Bungalow - Ratby,Waking Night Support Hours,"1,060.29",0.00,Supported Living
23/03/2018,Adults & Housing Department,Affinity Trust - Shared Bungalow - Ratby,Waking Night Support Hours,"1,271.76",0.00,Supported Living
23/03/2018,Adults & Housing Department,Affinity Trust - Shared Bungalow - Ratby,Waking Night Support Hours,"1,060.29",0.00,Supported Living
23/03/2018,Adults & Housing Department,Affinity Trust - Shared Bungalow - Ratby,Waking Night Support Hours,"1,060.29",0.00,Supported Living
23/03/2018,Adults & Housing Department,Affinity Trust - Shared Bungalow - Ratby,Waking Night Support Hours,"1,271.76",0.00,Supported Living
23/03/2018,Adults & Housing Department,Affinity Trust - Shared Bungalow - Ratby,Waking Night Support Hours,"4,490.64",0.00,Supported Living
23/03/2018,Adults & Housing Department,Affinity Trust - Shared Bungalow - Ratby,Waking Night Support Hours,996.66,0.00,Supported Living
23/03/2018,Adults & Housing Department,Affinity Trust - Shared Bungalow - Ratby,Waking Night Support Hours,752.40,0.00,Supported Living
23/03/2018,Adults & Housing Department,Affinity Trust - Shared Bungalow - Ratby,Waking Night Support Hours,"1,271.76",0.00,Supported Living
23/03/2018,Adults & Housing Department,Affinity Trust - Shared Bungalow - Ratby,Waking Night Support Hours,748.44,0.00,Supported Living
23/03/2018,Adults & Housing Department,Affinity Trust - Shared Bungalow - Ratby,Waking Night Support Hours,747.50,0.00,Supported Living
23/03/2018,Adults & Housing Department,Affinity Trust - Shared Bungalow - Ratby,Waking Night Support Hours,996.66,0.00,Supported Living
23/03/2018,Adults & Housing Department,Affinity Trust - Shared Bungalow - Ratby,Waking Night Support Hours,"1,271.76",0.00,Supported Living
23/03/2018,Adults & Housing Department,Affinity Trust - Shared Bungalow - Ratby,Waking Night Support Hours,"1,271.76",0.00,Supported Living
02/03/2018,Adults & Housing Department,Affinity Trust FA SL&FSB,DAY SUPPORT,"1,840.03",0.00,LD Supported Living
02/03/2018,Adults & Housing Department,Affinity Trust FA SL&FSB,DAY SUPPORT,"1,840.03",0.00,LD Supported Living
02/03/2018,Adults & Housing Department,Affinity Trust FA SL&FSB,DAY SUPPORT,"1,840.03",0.00,LD Supported Living
02/03/2018,Adults & Housing Department,Affinity Trust FA SL&FSB,DAY SUPPORT,"1,840.03",0.00,LD Supported Living
13/03/2018,Adults & Housing Department,Affinity Trust FA SL&FSB,DAY SUPPORT,"1,001.22",0.00,LD Supported Living
13/03/2018,Adults & Housing Department,Affinity Trust FA SL&FSB,DAY SUPPORT,"3,326.40",0.00,LD Supported Living
13/03/2018,Adults & Housing Department,Affinity Trust FA SL&FSB,DAY SUPPORT,711.95,0.00,LD Supported Living
13/03/2018,Adults & Housing Department,Affinity Trust FA SL&FSB,DAY SUPPORT,852.39,0.00,LD Supported Living
23/03/2018,Adults & Housing Department,Affinity Trust FA SL&FSB,DAY SUPPORT,504.90,0.00,LD Supported Living
23/03/2018,Adults & Housing Department,Affinity Trust FA SL&FSB,DAY SUPPORT,891.00,0.00,LD Supported Living
23/03/2018,Adults & Housing Department,Affinity Trust FA SL&FSB,DAY SUPPORT,"1,039.50",0.00,LD Supported Living
23/03/2018,Adults & Housing Department,Affinity Trust FA SL&FSB,DAY SUPPORT,594.00,0.00,LD Supported Living
23/03/2018,Adults & Housing Department,Affinity Trust FA SL&FSB,DAY SUPPORT,"2,494.80",0.00,LD Supported Living
23/03/2018,Adults & Housing Department,Affinity Trust FA SL&FSB,DAY SUPPORT,"1,039.50",0.00,LD Supported Living
23/03/2018,Adults & Housing Department,Affinity Trust FA SL&FSB,DAY SUPPORT,"3,964.95",0.00,LD Supported Living
23/03/2018,Adults & Housing Department,Affinity Trust FA SL&FSB,DAY SUPPORT,"1,039.50",0.00,LD Supported Living
23/03/2018,Adults & Housing Department,Affinity Trust FA SL&FSB,DAY SUPPORT,"1,250.14",0.00,LD Supported Living
23/03/2018,Adults & Housing Department,Affinity Trust FA SL&FSB,DAY SUPPORT,"2,678.92",0.00,LD Supported Living
23/03/2018,Adults & Housing Department,Affinity Trust FA SL&FSB,DAY SUPPORT,"2,619.54",0.00,LD Supported Living
23/03/2018,Adults & Housing Department,Affinity Trust FA SL&FSB,DAY SUPPORT,857.59,0.00,LD Supported Living
23/03/2018,Adults & Housing Department,Affinity Trust FA SL&FSB,DAY SUPPORT,653.40,0.00,LD Supported Living
23/03/2018,Adults & Housing Department,Affinity Trust FA SL&FSB,DAY SUPPORT,801.87,0.00,LD Supported Living
23/03/2018,Adults & Housing Department,Affinity Trust FA SL&FSB,DAY SUPPORT,891.00,0.00,LD Supported Living
23/03/2018,Adults & Housing Department,Affinity Trust FA SL&FSB,DAY SUPPORT,"1,188.00",0.00,LD Supported Living
23/03/2018,Adults & Housing Department,Affinity Trust FA SL&FSB,DAY SUPPORT,712.80,0.00,LD Supported Living
23/03/2018,Adults & Housing Department,Affinity Trust FA SL&FSB,DAY SUPPORT,"9,355.50",0.00,LD Supported Living
23/03/2018,Adults & Housing Department,Affinity Trust FA SL&FSB,DAY SUPPORT,"3,326.40",0.00,LD Supported Living
23/03/2018,Adults & Housing Department,Affinity Trust FA SL&FSB,DAY SUPPORT,"12,474.00",0.00,LD Supported Living
23/03/2018,Adults & Housing Department,Affinity Trust FA SL&FSB,DAY SUPPORT,"1,247.40",0.00,LD Supported Living
23/03/2018,Adults & Housing Department,Affinity Trust FA SL&FSB,DAY SUPPORT,603.99,0.00,LD Supported Living
23/03/2018,Adults & Housing Department,Affinity Trust FA SL&FSB,DAY SUPPORT,"12,474.00",0.00,LD Supported Living
23/03/2018,Adults & Housing Department,Affinity Trust FA SL&FSB,DAY SUPPORT,"6,237.00",0.00,LD Supported Living
23/03/2018,Adults & Housing Department,Affinity Trust FA SL&FSB,DAY SUPPORT,"1,893.38",0.00,LD Supported Living
23/03/2018,Adults & Housing Department,Affinity Trust FA SL&FSB,DAY SUPPORT,"4,752.00",0.00,LD Supported Living
23/03/2018,Adults & Housing Department,Affinity Trust FA SL&FSB,DAY SUPPORT,"6,237.00",0.00,LD Supported Living
16/03/2018,Adults & Housing Department,Affinity Trust FA SL&FSB,Day Support Hours,"4,368.00",0.00,Supported Living
16/03/2018,Adults & Housing Department,Affinity Trust FA SL&FSB,Day Support Hours,"4,368.00",0.00,Supported Living
23/03/2018,Adults & Housing Department,Affinity Trust FA SL&FSB,Day Support Hours,729.54,0.00,Supported Living
23/03/2018,Adults & Housing Department,Affinity Trust FA SL&FSB,Day Support Hours,757.62,0.00,Supported Living
23/03/2018,Adults & Housing Department,Affinity Trust FA SL&FSB,Day Support Hours,"4,489.60",0.00,Supported Living
23/03/2018,Adults & Housing Department,Affinity Trust FA SL&FSB,Day Support Hours,"2,244.77",0.00,Supported Living
23/03/2018,Adults & Housing Department,Affinity Trust FA SL&FSB,Day Support Hours,"4,489.60",0.00,Supported Living
23/03/2018,Adults & Housing Department,Affinity Trust FA SL&FSB,Day Support Hours,505.08,0.00,Supported Living
23/03/2018,Adults & Housing Department,Affinity Trust FA SL&FSB,Day Support Hours,"2,357.04",0.00,Supported Living
23/03/2018,Adults & Housing Department,Affinity Trust FA SL&FSB,Day Support Hours,"5,892.60",0.00,Supported Living
23/03/2018,Adults & Housing Department,Affinity Trust FA SL&FSB,Day Support Hours,687.47,0.00,Supported Living
23/03/2018,Adults & Housing Department,Affinity Trust FA SL&FSB,Day Support Hours,"1,865.99",0.00,Supported Living
23/03/2018,Adults & Housing Department,Affinity Trust FA SL&FSB,Day Support Hours,"3,801.60",0.00,Supported Living
23/03/2018,Adults & Housing Department,Affinity Trust FA SL&FSB,Day Support Hours,"2,946.30",0.00,Supported Living
23/03/2018,Adults & Housing Department,Affinity Trust FA SL&FSB,Day Support Hours,"9,007.26",0.00,Supported Living
23/03/2018,Adults & Housing Department,Affinity Trust FA SL&FSB,Day Support Hours,"5,892.60",0.00,Supported Living
23/03/2018,Adults & Housing Department,Affinity Trust FA SL&FSB,Day Support Hours,"2,050.62",0.00,Supported Living
23/03/2018,Adults & Housing Department,Affinity Trust FA SL&FSB,Day Support Hours,"1,192.54",0.00,Supported Living
02/03/2018,Adults & Housing Department,Affinity Trust FA SL&FSB,SLEEP-IN SUPPORT,509.60,0.00,LD Supported Living
02/03/2018,Adults & Housing Department,Affinity Trust FA SL&FSB,SLEEP-IN SUPPORT,509.60,0.00,LD Supported Living
02/03/2018,Adults & Housing Department,Affinity Trust FA SL&FSB,SLEEP-IN SUPPORT,509.60,0.00,LD Supported Living
02/03/2018,Adults & Housing Department,Affinity Trust FA SL&FSB,SLEEP-IN SUPPORT,509.60,0.00,LD Supported Living
23/03/2018,Adults & Housing Department,Affinity Trust FA SL&FSB,SLEEP-IN SUPPORT,"1,113.84",0.00,LD Supported Living
23/03/2018,Adults & Housing Department,Affinity Trust FA SL&FSB,SLEEP-IN SUPPORT,"1,113.84",0.00,LD Supported Living
23/03/2018,Adults & Housing Department,Affinity Trust FA SL&FSB,SLEEP-IN SUPPORT,"1,113.84",0.00,LD Supported Living
23/03/2018,Adults & Housing Department,Affinity Trust FA SL&FSB,Sleeping In Night Support,"1,113.84",0.00,Supported Living
23/03/2018,Adults & Housing Department,Affinity Trust FA SL&FSB,Sleeping In Night Support,"2,227.68",0.00,Supported Living
16/03/2018,Adults & Housing Department,Affinity Trust FA SL&FSB,WAKING NIGHT SUPPORT,"2,826.32",0.00,LD Supported Living
16/03/2018,Adults & Housing Department,Affinity Trust FA SL&FSB,WAKING NIGHT SUPPORT,"2,826.32",0.00,LD Supported Living
16/03/2018,Adults & Housing Department,Affinity Trust FA SL&FSB,WAKING NIGHT SUPPORT,"2,826.32",0.00,LD Supported Living
16/03/2018,Adults & Housing Department,Affinity Trust FA SL&FSB,WAKING NIGHT SUPPORT,807.52,0.00,LD Supported Living
16/03/2018,Adults & Housing Department,Affinity Trust FA SL&FSB,WAKING NIGHT SUPPORT,807.52,0.00,LD Supported Living
16/03/2018,Adults & Housing Department,Affinity Trust FA SL&FSB,WAKING NIGHT SUPPORT,807.52,0.00,LD Supported Living
23/03/2018,Adults & Housing Department,Affinity Trust FA SL&FSB,WAKING NIGHT SUPPORT,"7,484.40",0.00,LD Supported Living
23/03/2018,Adults & Housing Department,Affinity Trust FA SL&FSB,WAKING NIGHT SUPPORT,"3,742.20",0.00,LD Supported Living
23/03/2018,Adults & Housing Department,Affinity Trust FA SL&FSB,WAKING NIGHT SUPPORT,"3,742.20",0.00,LD Supported Living
23/03/2018,Adults & Housing Department,Affinity Trust FA SL&FSB,Waking Night Support Hours,"1,247.40",0.00,Supported Living
23/03/2018,Adults & Housing Department,Affinity Trust FA SL&FSB,Waking Night Support Hours,"1,178.52",0.00,Supported Living
23/03/2018,Adults & Housing Department,Affinity Trust FA SL&FSB,Waking Night Support Hours,"1,178.52",0.00,Supported Living
06/03/2018,Education & Childrens Services,AG Family Support Ltd,Parenting Assessments,648.00,129.60,Other Agencies
21/03/2018,Education & Childrens Services,AG Family Support Ltd,Parenting Assessments,562.40,112.48,Other Agencies
02/03/2018,Adults & Housing Department,Age UK Leicester Shire & Rutland,Aids & Adaptations,894.60,178.92,Aids & Adaptations
16/03/2018,Adults & Housing Department,Age UK Leicester Shire & Rutland,Aids & Adaptations,"2,349.70",469.94,Aids & Adaptations
23/03/2018,Adults & Housing Department,Age UK Leicester Shire & Rutland,Day Care /Community Opportunities,519.36,0.00,Day Care /Community Opportunities
23/03/2018,Adults & Housing Department,Age UK Leicester Shire & Rutland,Day Care /Community Opportunities,519.36,0.00,Day Care /Community Opportunities
23/03/2018,Adults & Housing Department,Age UK Leicester Shire & Rutland,Day Care /Community Opportunities,649.20,0.00,Day Care /Community Opportunities
23/03/2018,Adults & Housing Department,Age UK Leicester Shire & Rutland,Day Care /Community Opportunities,649.20,0.00,Day Care /Community Opportunities
23/03/2018,City Developments and Neighbourhood,Aggregate Industries UK Ltd,3PP - Private Contractors,"14,325.47","2,865.09",Private Contractors
23/03/2018,City Developments and Neighbourhood,Aggregate Industries UK Ltd,3PP - Private Contractors,"14,277.72","2,855.54",Private Contractors
23/03/2018,City Developments and Neighbourhood,Aggregate Industries UK Ltd,3PP - Private Contractors,"14,395.24","2,879.05",Private Contractors
23/03/2018,,Aggregate Industries UK Ltd,External Works - Infrastructure,"100,511.58","20,102.32",Transport Infrastructure
06/03/2018,City Developments and Neighbourhood,Aggregate Industries UK Ltd,Materials Purchase,"1,128.18",225.64,Materials Purchase
06/03/2018,City Developments and Neighbourhood,Aggregate Industries UK Ltd,Materials Purchase,"2,898.97",579.79,Materials Purchase
06/03/2018,City Developments and Neighbourhood,Aggregate Industries UK Ltd,Materials Purchase,843.31,168.66,Materials Purchase
06/03/2018,City Developments and Neighbourhood,Aggregate Industries UK Ltd,Materials Purchase,"1,040.11",208.02,Materials Purchase
06/03/2018,City Developments and Neighbourhood,Aggregate Industries UK Ltd,Materials Purchase,502.24,100.45,Materials Purchase
07/03/2018,City Developments and Neighbourhood,Aggregate Industries UK Ltd,Materials Purchase,"1,316.92",263.38,Materials Purchase
07/03/2018,City Developments and Neighbourhood,Aggregate Industries UK Ltd,Materials Purchase,591.50,118.30,Materials Purchase
07/03/2018,City Developments and Neighbourhood,Aggregate Industries UK Ltd,Materials Purchase,"1,065.97",213.19,Materials Purchase
09/03/2018,City Developments and Neighbourhood,Aggregate Industries UK Ltd,Materials Purchase,665.86,133.17,Materials Purchase
09/03/2018,City Developments and Neighbourhood,Aggregate Industries UK Ltd,Materials Purchase,"1,047.09",209.42,Materials Purchase
13/03/2018,City Developments and Neighbourhood,Aggregate Industries UK Ltd,Materials Purchase,738.87,147.77,Materials Purchase
13/03/2018,City Developments and Neighbourhood,Aggregate Industries UK Ltd,Materials Purchase,794.30,158.86,Materials Purchase
21/03/2018,City Developments and Neighbourhood,Aggregate Industries UK Ltd,Materials Purchase,732.56,146.51,Materials Purchase
21/03/2018,City Developments and Neighbourhood,Aggregate Industries UK Ltd,Materials Purchase,"1,025.43",205.09,Materials Purchase
23/03/2018,City Developments and Neighbourhood,Aggregate Industries UK Ltd,Materials Purchase,"1,204.27",240.85,Materials Purchase
23/03/2018,City Developments and Neighbourhood,Aggregate Industries UK Ltd,Materials Purchase,735.15,147.03,Materials Purchase
26/03/2018,City Developments and Neighbourhood,Aggregate Industries UK Ltd,Materials Purchase,556.93,111.39,Materials Purchase
26/03/2018,City Developments and Neighbourhood,Aggregate Industries UK Ltd,Materials Purchase,723.32,144.66,Materials Purchase
26/03/2018,City Developments and Neighbourhood,Aggregate Industries UK Ltd,Materials Purchase,"1,088.57",217.71,Materials Purchase
14/03/2018,City Developments and Neighbourhood,Aggregate Industries UK Ltd,Responsive,"1,272.00",254.40,Building Works & Repairs/Maintenance/Alterations
26/03/2018,Adults & Housing Department,Ala Care Ltd,Residential Permanent,950.00,0.00,Residential Care
26/03/2018,Adults & Housing Department,Ala Care Ltd,Residential Permanent,950.00,0.00,Residential Care
26/03/2018,Education & Childrens Services,Al-Aqsa Primary School,Neg Pvt Vol & Ind Providers - Extended Offer,"3,692.00",0.00,Voluntary Organisations
26/03/2018,Education & Childrens Services,Al-Aqsa Primary School,Neg Pvt Vol & Ind Providers-Universal offer,"15,077.65",0.00,Voluntary Organisations
09/03/2018,,Alfred Bagnalls & Sons (East Midlands) Ltd,Building Works - Alterations,"36,956.19","7,391.24",Building Works - Alterations
09/03/2018,City Developments and Neighbourhood,Alfred Bagnalls & Sons (East Midlands) Ltd,Responsive,"2,714.85",542.97,Building Works & Repairs/Maintenance/Alterations
20/03/2018,City Developments and Neighbourhood,Alfred Bagnalls & Sons (East Midlands) Ltd,Responsive,"12,013.02","2,402.60",Building Works & Repairs/Maintenance/Alterations
21/03/2018,City Developments and Neighbourhood,Alfred Bagnalls & Sons (East Midlands) Ltd,Responsive,"2,180.71",436.14,Building Works & Repairs/Maintenance/Alterations
23/03/2018,City Developments and Neighbourhood,Alfred Bagnalls & Sons (East Midlands) Ltd,Responsive,"5,571.26","1,114.25",Building Works & Repairs/Maintenance/Alterations
07/03/2018,Corporate Resources & Support,Alfred Willday & Son Ltd,Printing,"2,480.00",496.00,Printing & Copying
16/03/2018,Corporate Resources & Support,Alfred Willday & Son Ltd,Printing,"5,231.00","1,046.20",Printing & Copying
20/03/2018,Corporate Resources & Support,Alfred Willday & Son Ltd,Printing,"3,040.00",608.00,Printing & Copying
20/03/2018,Corporate Resources & Support,Alfred Willday & Son Ltd,Printing,"1,125.00",225.00,Printing & Copying
23/03/2018,Corporate Resources & Support,Alfred Willday & Son Ltd,Printing,"1,830.00",366.00,Printing & Copying
26/03/2018,Corporate Resources & Support,Alfred Willday & Son Ltd,Printing,"4,440.00",888.00,Printing & Copying
26/03/2018,Corporate Resources & Support,Alfred Willday & Son Ltd,Printing,"3,040.00",608.00,Printing & Copying
23/03/2018,Education & Childrens Services,Al-Islamia Pre-School,Neg Pvt Vol & Ind Providers-Universal offer,"15,485.40",0.00,Voluntary Organisations
26/03/2018,Education & Childrens Services,Al-Islamia Pre-School,Neg Pvt Vol & Ind Providers-Universal offer,"3,069.85",0.00,Voluntary Organisations
20/03/2018,Education & Childrens Services,Al-Islamia Pre-School,Other Transfer Payments,615.00,0.00,Other Transfer Payments
26/03/2018,Adults & Housing Department,ALLAG CARE LIMITED T/AS SYCAMORE COTTAGE,Residential Permanent,890.00,0.00,Residential Care
26/03/2018,Adults & Housing Department,ALLAG CARE LIMITED T/AS SYCAMORE COTTAGE,Residential Permanent,890.00,0.00,Residential Care
26/03/2018,Education & Childrens Services,Allexton Day Nursery Ltd,Early Years Pupil Premium,"1,231.72",0.00,Voluntary Organisations
26/03/2018,Education & Childrens Services,Allexton Day Nursery Ltd,Neg Pvt Vol & Ind Providers - Extended Offer,"3,057.00",0.00,Voluntary Organisations
23/03/2018,Education & Childrens Services,Allexton Day Nursery Ltd,Neg Pvt Vol & Ind Providers-Universal offer,"5,044.80",0.00,Voluntary Organisations
23/03/2018,Education & Childrens Services,Allexton Day Nursery Ltd,Neg Pvt Vol & Ind Providers-Universal offer,"8,021.16",0.00,Voluntary Organisations
20/03/2018,Education & Childrens Services,Allexton Day Nursery Ltd,SEN Placements,"3,000.00",0.00,Other Agencies
13/03/2018,Adults & Housing Department,Allpay Ltd,Management & Business & Administrative Services,748.96,149.79,Management & Business & Administrative Services
13/03/2018,Adults & Housing Department,Allpay Ltd,Management & Business & Administrative Services,"1,830.12",366.02,Management & Business & Administrative Services
13/03/2018,Adults & Housing Department,Allpay Ltd,Management & Business & Administrative Services,"2,234.80",446.96,Management & Business & Administrative Services
13/03/2018,Adults & Housing Department,Allpay Ltd,Management & Business & Administrative Services,797.28,159.46,Management & Business & Administrative Services
07/03/2018,City Developments and Neighbourhood,Allroads Asphalt Solutions Ltd,3PP - Private Contractors,"14,835.33","2,967.07",Private Contractors
16/03/2018,City Developments and Neighbourhood,Allroads Asphalt Solutions Ltd,3PP - Private Contractors,"5,564.80","1,112.96",Private Contractors
16/03/2018,City Developments and Neighbourhood,Allroads Asphalt Solutions Ltd,3PP - Private Contractors,"3,496.40",699.28,Private Contractors
21/03/2018,City Developments and Neighbourhood,Allsigns International Ltd,Responsive,642.78,128.56,Building Works & Repairs/Maintenance/Alterations
26/03/2018,Adults & Housing Department,Allsigns International Ltd,Responsive,829.04,165.81,Building Works & Repairs/Maintenance/Alterations
16/03/2018,Education & Childrens Services,Alpine Health Limited,Accommodation - Supported Accommodation,"3,313.57",662.71,Other Establishments
20/03/2018,Education & Childrens Services,Alpine Health Limited,Accommodation - Supported Accommodation,"3,312.57",662.51,Other Establishments
20/03/2018,Education & Childrens Services,Alpine Health Limited,Accommodation - Supported Accommodation,"4,196.57",839.31,Other Establishments
14/03/2018,City Developments and Neighbourhood,Al-Vac UK Ltd,Repairs & Maintenance Vehicles,765.00,153.00,Vehicles Repairs & Maintenance / Parts & Accessories
23/03/2018,Adults & Housing Department,Alzheimers Society,Consultants Fees,"1,875.91",0.00,Consultant Fees
23/03/2018,Adults & Housing Department,Alzheimers Society,Services for People with Dementia,"129,883.00",0.00,VCS - Adults & Older People
26/03/2018,Adults & Housing Department,AMAFHH HEALTHCARE LTD T/A QUARRY HILL GRANGE HOME,Residential Permanent,798.00,0.00,Residential Care
26/03/2018,Adults & Housing Department,AMAFHH HEALTHCARE LTD T/A QUARRY HILL GRANGE HOME,Residential Permanent,798.00,0.00,Residential Care
,Adults & Housing Department,Amberwood Residential Care Home,Residential Permanent,"1,530.00",0.00,Residential Care
26/03/2018,Education & Childrens Services,Angel Springs Ltd T/A Waterlogic,Equipment Hire/Lease,"2,467.08",493.42,Equipment Hire / Lease
13/03/2018,City Developments and Neighbourhood,Angels & Monsters,Braunstone Park And Rowley Fields - Ward Consultative Committees,500.00,0.00,Independent Units Within The Council
26/03/2018,Education & Childrens Services,ANGELS PRESCHOOL,Neg Pvt Vol & Ind Providers - Extended Offer,"4,038.75",0.00,Voluntary Organisations
23/03/2018,Education & Childrens Services,ANGELS PRESCHOOL,Neg Pvt Vol & Ind Providers-Universal offer,"14,803.12",0.00,Voluntary Organisations
23/03/2018,Education & Childrens Services,ANGELS PRESCHOOL,Neg Pvt Vol & Ind Providers-Universal offer,"4,008.20",0.00,Voluntary Organisations
09/03/2018,Education & Childrens Services,Anglia Fostering Agency Ltd,Independent Foster Agencies,"3,141.60",0.00,Other Agencies
09/03/2018,Education & Childrens Services,Anglia Fostering Agency Ltd,Independent Foster Agencies,"3,110.24",0.00,Other Agencies
09/03/2018,City Developments and Neighbourhood,Antalis Ltd,Paper Purchase,"1,249.18",249.84,Paper Purchase
09/03/2018,City Developments and Neighbourhood,Antalis Ltd,Paper Purchase,687.08,137.42,Paper Purchase
21/03/2018,Education & Childrens Services,Antalis Ltd,Paper Purchase,511.00,102.20,Paper Purchase
23/03/2018,Corporate Resources & Support,Anthony Collins Solicitors Llp,LCC Ext Solicitors Costs,"1,474.50",294.90,Legal Fees & Charges
07/03/2018,City Developments and Neighbourhood,Anti-Ram Raid UK,Grounds Maintenance,"1,498.00",299.60,Grounds Maintenance
26/03/2018,Adults & Housing Department,Apple House Leices Ltd T/A Apple House,Residential Permanent,812.00,0.00,Residential Care
26/03/2018,Adults & Housing Department,Apple House Leices Ltd T/A Apple House,Residential Permanent,812.00,0.00,Residential Care
26/03/2018,Adults & Housing Department,Apple House Leices Ltd T/A Apple House,Residential Permanent,812.00,0.00,Residential Care
26/03/2018,Adults & Housing Department,Apple House Leices Ltd T/A Apple House,Residential Permanent,812.00,0.00,Residential Care
26/03/2018,Adults & Housing Department,Apple House Leices Ltd T/A Apple House,Residential Permanent,812.00,0.00,Residential Care
26/03/2018,Adults & Housing Department,Apple House Leices Ltd T/A Apple House,Residential Permanent,812.00,0.00,Residential Care
26/03/2018,Adults & Housing Department,Apple House Leices Ltd T/A Apple House,Residential Permanent,812.00,0.00,Residential Care
26/03/2018,Adults & Housing Department,Apple House Leices Ltd T/A Apple House,Residential Permanent,812.00,0.00,Residential Care
26/03/2018,Adults & Housing Department,APPLEWOOD HOUSE AND APARTMENT,Residential Permanent,812.00,0.00,Residential Care
26/03/2018,Adults & Housing Department,APPLEWOOD HOUSE AND APARTMENT,Residential Permanent,812.00,0.00,Residential Care
26/03/2018,Adults & Housing Department,APPLEWOOD HOUSE AND APARTMENT,Residential Permanent,"3,050.00",0.00,Residential Care
26/03/2018,Adults & Housing Department,APPLEWOOD HOUSE AND APARTMENT,Residential Permanent,"3,050.00",0.00,Residential Care
,City Developments and Neighbourhood,Aqua-Jet Specialist Drainage Contractors Ltd,Cleaning Equipment Purchase,785.00,157.00,Equipment Purchase
21/03/2018,City Developments and Neighbourhood,Aqua-Jet Specialist Drainage Contractors Ltd,Project - Responsive,"3,697.66",739.53,Project - R&M Fixtures & Fittings
26/03/2018,City Developments and Neighbourhood,Aqua-Jet Specialist Drainage Contractors Ltd,Project - Responsive,"3,066.57",613.31,Project - R&M Fixtures & Fittings
21/03/2018,Education & Childrens Services,Aqua-Jet Specialist Drainage Contractors Ltd,Responsive,877.90,175.58,Building Works & Repairs/Maintenance/Alterations
26/03/2018,City Developments and Neighbourhood,Aqua-Jet Specialist Drainage Contractors Ltd,Responsive,790.00,158.00,Building Works & Repairs/Maintenance/Alterations
09/03/2018,Adults & Housing Department,Arbor House,Added Years Pension invoice payments,"3,258.97",0.00,Pension Miscellaneous
26/03/2018,Adults & Housing Department,Arbor House,Residential Permanent,869.04,0.00,Residential Care
26/03/2018,Adults & Housing Department,Arbor House,Residential Permanent,969.00,0.00,Residential Care
26/03/2018,Adults & Housing Department,Arbor House,Residential Permanent,869.04,0.00,Residential Care
26/03/2018,Adults & Housing Department,Arbor House,Residential Permanent,869.04,0.00,Residential Care
26/03/2018,Adults & Housing Department,Arbor House,Residential Permanent,869.04,0.00,Residential Care
26/03/2018,Adults & Housing Department,Arbor House,Residential Permanent,869.04,0.00,Residential Care
26/03/2018,Adults & Housing Department,Arbor House,Residential Permanent,869.04,0.00,Residential Care
26/03/2018,Adults & Housing Department,Arbor House,Residential Permanent,869.04,0.00,Residential Care
26/03/2018,Adults & Housing Department,Arbor House,Residential Permanent,869.04,0.00,Residential Care
26/03/2018,Adults & Housing Department,Arbor House,Residential Permanent,869.04,0.00,Residential Care
26/03/2018,Adults & Housing Department,Arbor House,Residential Permanent,869.04,0.00,Residential Care
26/03/2018,Adults & Housing Department,Arbor House,Residential Permanent,869.04,0.00,Residential Care
26/03/2018,Adults & Housing Department,Arbor House,Residential Permanent,969.00,0.00,Residential Care
26/03/2018,Adults & Housing Department,Arbor House,Residential Permanent,869.04,0.00,Residential Care
26/03/2018,Adults & Housing Department,Arbor House,Residential Permanent,869.04,0.00,Residential Care
26/03/2018,Adults & Housing Department,Arbor House,Residential Permanent,869.04,0.00,Residential Care
26/03/2018,Adults & Housing Department,Arbor House,Residential Permanent,869.04,0.00,Residential Care
26/03/2018,Adults & Housing Department,Arbor House,Residential Permanent,869.04,0.00,Residential Care
26/03/2018,Adults & Housing Department,Arbor House,Residential Permanent,869.04,0.00,Residential Care
26/03/2018,Adults & Housing Department,Arbor House,Residential Permanent,869.04,0.00,Residential Care
26/03/2018,Adults & Housing Department,Arbor House,Residential Permanent,869.04,0.00,Residential Care
26/03/2018,Adults & Housing Department,Arbor House,Residential Permanent,869.04,0.00,Residential Care
26/03/2018,Adults & Housing Department,Arbor House,Residential Permanent,969.00,0.00,Residential Care
26/03/2018,Adults & Housing Department,Arbor House,Residential Permanent,969.00,0.00,Residential Care
26/03/2018,Adults & Housing Department,Arbor House,Residential Permanent,869.04,0.00,Residential Care
26/03/2018,Adults & Housing Department,Arbor House,Residential Permanent,869.04,0.00,Residential Care
26/03/2018,Adults & Housing Department,Arbor House,Residential Permanent,969.00,0.00,Residential Care
26/03/2018,Adults & Housing Department,Arbor House,Residential Permanent,869.04,0.00,Residential Care
26/03/2018,Adults & Housing Department,Arbor House,Residential Permanent,969.00,0.00,Residential Care
26/03/2018,Adults & Housing Department,Arbor House,Residential Permanent,969.00,0.00,Residential Care
26/03/2018,Adults & Housing Department,Arbor House,Residential Permanent,969.00,0.00,Residential Care
26/03/2018,Adults & Housing Department,Arbor House,Residential Permanent,869.04,0.00,Residential Care
26/03/2018,Adults & Housing Department,Arbor House,Residential Permanent,869.04,0.00,Residential Care
26/03/2018,Adults & Housing Department,Arbor House,Residential Permanent,869.04,0.00,Residential Care
26/03/2018,Adults & Housing Department,Arbor House,Residential Permanent,869.04,0.00,Residential Care
26/03/2018,Adults & Housing Department,Arbor House,Residential Permanent,869.04,0.00,Residential Care
26/03/2018,Adults & Housing Department,Arbor House,Residential Permanent,869.04,0.00,Residential Care
26/03/2018,Adults & Housing Department,Arbor House,Residential Permanent,869.04,0.00,Residential Care
26/03/2018,Adults & Housing Department,Arbor House,Residential Permanent,869.04,0.00,Residential Care
26/03/2018,Adults & Housing Department,Arbor House,Residential Permanent,869.04,0.00,Residential Care
26/03/2018,Adults & Housing Department,Arbor House,Residential Permanent,869.04,0.00,Residential Care
26/03/2018,Adults & Housing Department,Arbor House,Residential Permanent,869.04,0.00,Residential Care
26/03/2018,Adults & Housing Department,Arbor House,Residential Permanent,969.00,0.00,Residential Care
26/03/2018,Adults & Housing Department,Arbor House,Residential Permanent,969.00,0.00,Residential Care
26/03/2018,Adults & Housing Department,Arbor House,Residential Permanent,869.04,0.00,Residential Care
26/03/2018,Adults & Housing Department,Arbor House,Residential Permanent,869.04,0.00,Residential Care
26/03/2018,Adults & Housing Department,Arbor House,Residential Permanent,969.00,0.00,Residential Care
26/03/2018,Adults & Housing Department,Arbor House,Residential Permanent,869.04,0.00,Residential Care
26/03/2018,Adults & Housing Department,Arbor House,Residential Permanent,869.04,0.00,Residential Care
26/03/2018,Adults & Housing Department,Arbor House,Residential Permanent,969.00,0.00,Residential Care
26/03/2018,Adults & Housing Department,Arbor House,Residential Short Stay,"1,176.64",0.00,Residential Care
26/03/2018,Adults & Housing Department,Arbor House,Residential Short Stay,969.00,0.00,Residential Care
26/03/2018,Adults & Housing Department,Arbor House,Residential Short Stay,869.04,0.00,Residential Care
26/03/2018,Adults & Housing Department,Arbor House,Residential Short Stay,969.00,0.00,Residential Care
23/03/2018,City Developments and Neighbourhood,Arcadis (UK) Limited,Consultants Fees,"1,650.00",330.00,Consultant Fees
14/03/2018,,Arcadis Consulting (UK) Ltd,Consultant Fees,"37,500.00","7,500.00",Consultant Fees
14/03/2018,,Arcadis Consulting (UK) Ltd,Consultant Fees,"13,212.00","2,642.40",Consultant Fees
16/03/2018,,Arcadis Consulting (UK) Ltd,Consultant Fees,"6,653.59","1,330.72",Consultant Fees
16/03/2018,,Arcadis Consulting (UK) Ltd,Consultant Fees,"7,479.32","1,495.86",Consultant Fees
16/03/2018,,Arcadis Consulting (UK) Ltd,Consultant Fees,"8,054.87","1,610.97",Consultant Fees
26/03/2018,,Arcadis Consulting (UK) Ltd,Consultant Fees,"8,905.00","1,781.00",Consultant Fees
26/03/2018,,Arcadis Consulting (UK) Ltd,Consultant Fees,"25,262.27","5,052.45",Consultant Fees
,,Arcadis Consulting (UK) Ltd,Consultant Fees,"42,958.53","8,591.71",Consultant Fees
,,Arcadis Consulting (UK) Ltd,Consultant Fees,"46,312.29","9,262.46",Consultant Fees
06/03/2018,,Arcadis LLP,Consultant Fees,"4,789.18",957.84,Consultant Fees
06/03/2018,,Arcadis LLP,Consultant Fees,"5,589.68","1,117.94",Consultant Fees
06/03/2018,,Arcadis LLP,Consultant Fees,"5,279.39","1,055.88",Consultant Fees
07/03/2018,,Arcadis LLP,Consultant Fees,"5,413.68","1,082.74",Consultant Fees
14/03/2018,,Arcadis LLP,Consultant Fees,"9,000.00","1,800.00",Consultant Fees
23/03/2018,,Arcadis LLP,Consultant Fees,"7,950.00","1,590.00",Consultant Fees
23/03/2018,,Arcadis LLP,Consultant Fees,"5,413.68","1,082.74",Consultant Fees
23/03/2018,,Arcadis LLP,Consultant Fees,"5,279.38","1,055.88",Consultant Fees
23/03/2018,,Arcadis LLP,Consultant Fees,"5,589.68","1,117.94",Consultant Fees
23/03/2018,,Arcadis LLP,Consultant Fees,"37,229.96","7,445.99",Consultant Fees
23/03/2018,,Arcadis LLP,Consultant Fees,"4,789.19",957.84,Consultant Fees
23/03/2018,,Arcadis LLP,Consultant Fees,"5,289.92","1,057.98",Consultant Fees
23/03/2018,,Arcadis LLP,Consultant Fees,"9,940.68","1,988.14",Consultant Fees
26/03/2018,,Arcadis LLP,Consultant Fees,"8,905.00","1,781.00",Consultant Fees
,,Arcadis LLP,Consultant Fees,"5,413.68","1,082.74",Consultant Fees
,,Arcadis LLP,Consultant Fees,"5,589.68","1,117.94",Consultant Fees
,,Arcadis LLP,Consultant Fees,"4,789.19",957.84,Consultant Fees
,,Arcadis LLP,Consultant Fees,"5,279.39","1,055.88",Consultant Fees
13/03/2018,City Developments and Neighbourhood,Arcadis LLP,Consultants Fees,"7,475.00","1,495.00",Consultant Fees
23/03/2018,City Developments and Neighbourhood,Arcadis LLP,Consultants Fees,"3,960.00",792.00,Consultant Fees
23/03/2018,City Developments and Neighbourhood,Arcadis LLP,Consultants Fees,"8,786.00","1,757.20",Consultant Fees
23/03/2018,City Developments and Neighbourhood,Arcadis LLP,Consultants Fees,"58,410.00","11,682.00",Consultant Fees
,City Developments and Neighbourhood,Arcadis LLP,Consultants Fees,"52,567.50","10,513.50",Consultant Fees
26/03/2018,City Developments and Neighbourhood,Arcadis LLP,Engineering / Research / Technology / Science Services,"22,792.00","4,558.40",Engineering / Research / Technology / Science Services
23/03/2018,,Arcadis LLP,Fixtures & Fittings,788.76,157.75,Fixtures & Fittings
23/03/2018,,Arcadis LLP,Management & Business Professionals & Administrative Services,"10,440.00","2,088.00",Management & Business & Administrative Services
23/03/2018,,Arcadis LLP,Management & Business Professionals & Administrative Services,"11,020.00","2,204.00",Management & Business & Administrative Services
02/03/2018,City Developments and Neighbourhood,Arcadis LLP,Research / Data Collection / Surveys / Sampling,"43,431.50","8,686.30",Engineering / Research / Technology / Science Services
13/03/2018,Education & Childrens Services,Argos Business Solutions,Equipment / Other - Carer,861.64,172.33,Other Agencies
26/03/2018,Education & Childrens Services,Argos Business Solutions,Equipment / Other - Child,610.77,122.15,Other Agencies
13/03/2018,City Developments and Neighbourhood,Argos Business Solutions,Furniture Purchase,739.09,147.82,Furniture Purchase
26/03/2018,Adults & Housing Department,Ark Home Healthcare Ltd,Personal Care / Generic,594.46,0.00,Home Care
26/03/2018,Adults & Housing Department,Ark Home Healthcare Ltd,Personal Care / Generic,536.48,0.00,Home Care
26/03/2018,Adults & Housing Department,Ark Home Healthcare Ltd,Personal Care / Generic,624.53,0.00,Home Care
26/03/2018,Adults & Housing Department,Ark Home Healthcare Ltd,Personal Care / Generic,951.59,0.00,Home Care
26/03/2018,Adults & Housing Department,Ark Home Healthcare Ltd,Personal Care / Generic,558.46,0.00,Home Care
26/03/2018,Adults & Housing Department,Ark Home Healthcare Ltd,Personal Care / Generic,507.09,0.00,Home Care
26/03/2018,Adults & Housing Department,Ark Home Healthcare Ltd,Personal Care / Generic,826.88,0.00,Home Care
26/03/2018,Adults & Housing Department,Ark Home Healthcare Ltd,Personal Care / Generic,793.38,0.00,Home Care
26/03/2018,Adults & Housing Department,Ark Home Healthcare Ltd,Personal Care / Generic,540.12,0.00,Home Care
26/03/2018,Adults & Housing Department,Ark Home Healthcare Ltd,Personal Care / Generic,683.41,0.00,Home Care
26/03/2018,Adults & Housing Department,Ark Home Healthcare Ltd,Personal Care / Generic,949.42,0.00,Home Care
26/03/2018,Adults & Housing Department,Ark Home Healthcare Ltd,Personal Care / Generic,532.77,0.00,Home Care
26/03/2018,Adults & Housing Department,Ark Home Healthcare Ltd,Personal Care / Generic,"1,534.03",0.00,Home Care
26/03/2018,Adults & Housing Department,Ark Home Healthcare Ltd,Personal Care / Generic,574.93,0.00,Home Care
26/03/2018,Adults & Housing Department,Ark Home Healthcare Ltd,Personal Care / Generic,"2,139.55",0.00,Home Care
26/03/2018,Adults & Housing Department,Ark Home Healthcare Ltd,Personal Care / Generic,543.79,0.00,Home Care
26/03/2018,Adults & Housing Department,Ark Home Healthcare Ltd,Personal Care / Generic,859.45,0.00,Home Care
26/03/2018,Adults & Housing Department,Ark Home Healthcare Ltd,Personal Care / Generic,723.67,0.00,Home Care
26/03/2018,Adults & Housing Department,Ark Home Healthcare Ltd,Personal Care / Generic,578.42,0.00,Home Care
26/03/2018,Adults & Housing Department,Ark Home Healthcare Ltd,Personal Care / Generic,672.46,0.00,Home Care
26/03/2018,Adults & Housing Department,Ark Home Healthcare Ltd,Personal Care / Generic,944.02,0.00,Home Care
26/03/2018,Adults & Housing Department,Ark Home Healthcare Ltd,Personal Care / Generic,775.21,0.00,Home Care
26/03/2018,Adults & Housing Department,Ark Home Healthcare Ltd,Personal Care / Generic,554.78,0.00,Home Care
26/03/2018,Adults & Housing Department,Ark Home Healthcare Ltd,Personal Care / Generic,529.10,0.00,Home Care
26/03/2018,Adults & Housing Department,Ark Home Healthcare Ltd,Personal Care / Generic,"1,160.00",0.00,Home Care
26/03/2018,Adults & Housing Department,Ark Home Healthcare Ltd,Personal Care / Generic,598.87,0.00,Home Care
26/03/2018,Adults & Housing Department,Ark Home Healthcare Ltd,Personal Care / Generic,"1,695.04",0.00,Home Care
26/03/2018,Adults & Housing Department,Ark Home Healthcare Ltd,Personal Care / Generic,850.83,0.00,Home Care
26/03/2018,Adults & Housing Department,Ark Home Healthcare Ltd,Personal Care / Generic,782.79,0.00,Home Care
26/03/2018,Adults & Housing Department,Ark Home Healthcare Ltd,Personal Care / Generic,"1,572.44",0.00,Home Care
26/03/2018,Adults & Housing Department,Ark Home Healthcare Ltd,Personal Care / Generic,551.15,0.00,Home Care
23/03/2018,Adults & Housing Department,Armson Electrical Services Ltd,Aids & Adaptations,820.03,164.01,Aids & Adaptations
13/03/2018,Education & Childrens Services,Arriva Midlands Ltd,Employee Public Transport Expenses,840.00,0.00,Public Transport Expenses
,Education & Childrens Services,Arriva Midlands Ltd,Employee Public Transport Expenses,840.00,0.00,Public Transport Expenses
23/03/2018,City Developments and Neighbourhood,Arriva Midlands Ltd,Repairs & Maintenance Vehicles,"18,419.80","3,683.96",Vehicles Repairs & Maintenance / Parts & Accessories
13/03/2018,Education & Childrens Services,Arriva Midlands Ltd,Transport Costs of Child / Carer,600.00,0.00,Other Agencies
13/03/2018,Education & Childrens Services,Arriva Midlands Ltd,Transport Costs of Child / Carer,600.00,120.00,Other Agencies
13/03/2018,Education & Childrens Services,Arriva Midlands Ltd,Transport Costs of Child / Carer,600.00,0.00,Other Agencies
,Education & Childrens Services,Arriva Midlands Ltd,Transport Costs of Child / Carer,530.00,0.00,Other Agencies
,Education & Childrens Services,Arriva Midlands Ltd,Transport Costs of Child / Carer,530.00,0.00,Other Agencies
14/03/2018,City Developments and Neighbourhood,Art & Antiques Appraisals Ltd,Professional Fees,"6,050.00","1,210.00",Management & Business & Administrative Services
,City Developments and Neighbourhood,Art & Antiques Appraisals Ltd,Professional Fees,750.00,150.00,Management & Business & Administrative Services
16/03/2018,Education & Childrens Services,ASA Transport Services Ltd,Employee Taxi Travel Expense,"1,215.40",243.08,Taxi Travel Expense
16/03/2018,Education & Childrens Services,ASA Transport Services Ltd,Employee Taxi Travel Expense,"17,948.81","3,589.76",Taxi Travel Expense
23/03/2018,Education & Childrens Services,ASA Transport Services Ltd,Employee Taxi Travel Expense,"64,161.23","12,832.25",Taxi Travel Expense
07/03/2018,Education & Childrens Services,ASD Midlands Ltd,Independent School Fees,"4,550.00",0.00,Independent School Fees
14/03/2018,Education & Childrens Services,ASD Midlands Ltd,Independent School Fees,"9,750.00",0.00,Independent School Fees
14/03/2018,Education & Childrens Services,ASD Midlands Ltd,Independent School Fees,"5,625.00",0.00,Independent School Fees
14/03/2018,Education & Childrens Services,ASD Midlands Ltd,Independent School Fees,"1,125.00",0.00,Independent School Fees
14/03/2018,Education & Childrens Services,ASD Midlands Ltd,Independent School Fees,"5,625.00",0.00,Independent School Fees
14/03/2018,Education & Childrens Services,ASD Midlands Ltd,Independent School Fees,"5,625.00",0.00,Independent School Fees
14/03/2018,Education & Childrens Services,ASD Midlands Ltd,Independent School Fees,"6,750.00",0.00,Independent School Fees
14/03/2018,Education & Childrens Services,ASD Midlands Ltd,Independent School Fees,"5,625.00",0.00,Independent School Fees
14/03/2018,Education & Childrens Services,ASD Midlands Ltd,Independent School Fees,"4,725.00",0.00,Independent School Fees
14/03/2018,Education & Childrens Services,ASD Midlands Ltd,Independent School Fees,"4,500.00",0.00,Independent School Fees
14/03/2018,Education & Childrens Services,ASD Midlands Ltd,Independent School Fees,"5,625.00",0.00,Independent School Fees
14/03/2018,Education & Childrens Services,ASD Midlands Ltd,Independent School Fees,"8,000.00",0.00,Independent School Fees
14/03/2018,Education & Childrens Services,ASD Midlands Ltd,Independent School Fees,"5,625.00",0.00,Independent School Fees
14/03/2018,Education & Childrens Services,ASD Midlands Ltd,Independent School Fees,"5,625.00",0.00,Independent School Fees
14/03/2018,Education & Childrens Services,ASD Midlands Ltd,Independent School Fees,"5,625.00",0.00,Independent School Fees
14/03/2018,Education & Childrens Services,ASD Midlands Ltd,Independent School Fees,"1,125.00",0.00,Independent School Fees
14/03/2018,Education & Childrens Services,ASD Midlands Ltd,Independent School Fees,"2,025.00",0.00,Independent School Fees
14/03/2018,Education & Childrens Services,ASD Midlands Ltd,Independent School Fees,"5,625.00",0.00,Independent School Fees
14/03/2018,Education & Childrens Services,ASD Midlands Ltd,Independent School Fees,"5,625.00",0.00,Independent School Fees
14/03/2018,Education & Childrens Services,ASD Midlands Ltd,Independent School Fees,"2,600.00",0.00,Independent School Fees
14/03/2018,Education & Childrens Services,ASD Midlands Ltd,Independent School Fees,"5,625.00",0.00,Independent School Fees
14/03/2018,Education & Childrens Services,ASD Midlands Ltd,Independent School Fees,"5,200.00",0.00,Independent School Fees
16/03/2018,Education & Childrens Services,ASD Midlands Ltd,Independent School Fees,"2,250.00",0.00,Independent School Fees
09/03/2018,Education & Childrens Services,Ash Field Academy,Education and Training Services,"3,333.33",0.00,Education & Training Services
21/03/2018,Education & Childrens Services,Ash Field Academy,Primary Schools Standard Fund,906.30,0.00,Primary Schools Standard Fund
21/03/2018,,Ashby & Croft Ltd,Building Works - Alterations,"3,056.40",611.28,Building Works - Alterations
,Adults & Housing Department,ASHINGTON GRANGE,Nursing Permanent,"3,226.22",0.00,Nursing Care
26/03/2018,Adults & Housing Department,Ashleigh Nursing Home,Nursing Permanent,944.52,0.00,Nursing Care
26/03/2018,Adults & Housing Department,Ashleigh Nursing Home,Nursing Permanent,944.52,0.00,Nursing Care
26/03/2018,Adults & Housing Department,Ashleigh Nursing Home,Nursing Permanent,"1,349.31",0.00,Nursing Care
26/03/2018,Adults & Housing Department,Ashleigh Nursing Home,Nursing Permanent,944.52,0.00,Nursing Care
26/03/2018,Adults & Housing Department,Ashleigh Nursing Home,Nursing Permanent,944.52,0.00,Nursing Care
26/03/2018,Adults & Housing Department,Ashleigh Nursing Home,Nursing Permanent,944.52,0.00,Nursing Care
26/03/2018,Adults & Housing Department,Ashleigh Nursing Home,Nursing Permanent,944.52,0.00,Nursing Care
26/03/2018,Adults & Housing Department,Ashleigh Nursing Home,Nursing Permanent,944.52,0.00,Nursing Care
26/03/2018,Adults & Housing Department,Ashleigh Nursing Home,Nursing Permanent,944.52,0.00,Nursing Care
26/03/2018,Adults & Housing Department,Ashleigh Nursing Home,Nursing Permanent,944.52,0.00,Nursing Care
26/03/2018,Adults & Housing Department,Ashleigh Nursing Home,Nursing Permanent,944.52,0.00,Nursing Care
26/03/2018,Adults & Housing Department,Ashleigh Nursing Home,Nursing Permanent,944.52,0.00,Nursing Care
26/03/2018,Adults & Housing Department,Ashleigh Nursing Home,Nursing Permanent,944.52,0.00,Nursing Care
26/03/2018,Adults & Housing Department,Ashleigh Nursing Home,Residential Permanent,955.30,0.00,Residential Care
26/03/2018,Adults & Housing Department,Ashleigh Nursing Home,Residential Permanent,969.00,0.00,Residential Care
26/03/2018,Adults & Housing Department,Ashleigh Nursing Home,Residential Permanent,955.30,0.00,Residential Care
26/03/2018,Adults & Housing Department,Ashleigh Nursing Home,Residential Permanent,969.00,0.00,Residential Care
26/03/2018,City Developments and Neighbourhood,Ashtead Plant Hire Co Ltd,Plant Hire/Lease,"1,180.00",236.00,Equipment Hire / Lease
26/03/2018,Adults & Housing Department,Ashton Lodge,Residential Permanent,869.04,0.00,Residential Care
26/03/2018,Adults & Housing Department,Ashton Lodge,Residential Permanent,869.04,0.00,Residential Care
26/03/2018,Adults & Housing Department,Ashton Lodge,Residential Permanent,969.00,0.00,Residential Care
26/03/2018,Adults & Housing Department,Ashton Lodge,Residential Permanent,869.04,0.00,Residential Care
26/03/2018,Adults & Housing Department,Ashton Lodge,Residential Permanent,969.00,0.00,Residential Care
26/03/2018,Adults & Housing Department,Ashton Lodge,Residential Permanent,969.00,0.00,Residential Care
26/03/2018,Adults & Housing Department,Ashton Lodge,Residential Permanent,969.00,0.00,Residential Care
26/03/2018,Adults & Housing Department,Ashton Lodge,Residential Permanent,779.28,0.00,Residential Care
26/03/2018,Adults & Housing Department,Ashton Lodge,Residential Permanent,779.28,0.00,Residential Care
26/03/2018,Adults & Housing Department,Ashton Lodge,Residential Permanent,869.04,0.00,Residential Care
26/03/2018,Adults & Housing Department,Ashton Lodge,Residential Permanent,969.00,0.00,Residential Care
26/03/2018,Adults & Housing Department,Ashton Lodge,Residential Permanent,869.04,0.00,Residential Care
26/03/2018,Adults & Housing Department,Ashton Lodge,Residential Permanent,969.00,0.00,Residential Care
26/03/2018,Adults & Housing Department,Ashton Lodge,Residential Permanent,869.04,0.00,Residential Care
26/03/2018,Adults & Housing Department,Ashton Lodge,Residential Permanent,869.04,0.00,Residential Care
26/03/2018,Adults & Housing Department,Ashton Lodge,Residential Permanent,869.04,0.00,Residential Care
26/03/2018,Adults & Housing Department,Ashton Lodge,Residential Permanent,869.04,0.00,Residential Care
26/03/2018,Adults & Housing Department,Ashton Lodge,Residential Permanent,969.00,0.00,Residential Care
26/03/2018,Adults & Housing Department,Ashton Lodge,Residential Permanent,969.00,0.00,Residential Care
26/03/2018,Adults & Housing Department,Ashton Lodge,Residential Permanent,869.04,0.00,Residential Care
26/03/2018,Adults & Housing Department,Ashton Lodge,Residential Permanent,869.04,0.00,Residential Care
26/03/2018,Adults & Housing Department,Ashton Lodge,Residential Permanent,869.04,0.00,Residential Care
26/03/2018,Adults & Housing Department,Ashton Lodge,Residential Permanent,869.04,0.00,Residential Care
26/03/2018,Adults & Housing Department,Ashton Lodge,Residential Permanent,869.04,0.00,Residential Care
26/03/2018,Adults & Housing Department,Ashton Lodge,Residential Permanent,969.00,0.00,Residential Care
26/03/2018,Adults & Housing Department,Ashton Lodge,Residential Permanent,869.04,0.00,Residential Care
26/03/2018,Adults & Housing Department,Ashton Lodge,Residential Permanent,869.04,0.00,Residential Care
26/03/2018,Adults & Housing Department,Ashton Lodge,Residential Permanent,869.04,0.00,Residential Care
26/03/2018,Adults & Housing Department,Ashton Lodge,Residential Permanent,869.04,0.00,Residential Care
26/03/2018,Adults & Housing Department,Ashton Lodge,Residential Permanent,969.00,0.00,Residential Care
26/03/2018,Adults & Housing Department,Ashton Lodge,Residential Permanent,969.00,0.00,Residential Care
26/03/2018,Adults & Housing Department,Ashton Lodge,Residential Permanent,969.00,0.00,Residential Care
26/03/2018,Adults & Housing Department,Ashton Lodge,Residential Permanent,969.00,0.00,Residential Care
26/03/2018,Adults & Housing Department,Ashton Lodge,Residential Permanent,969.00,0.00,Residential Care
26/03/2018,Adults & Housing Department,Ashton Lodge,Residential Respite,558.67,0.00,Residential Care
16/03/2018,City Developments and Neighbourhood,Ashwell Maintenance Ltd,Responsive,"1,132.87",226.57,Building Services / Repairs & Maintenance  Fixtures & Fittings
16/03/2018,City Developments and Neighbourhood,Ashwell Maintenance Ltd,Responsive,"1,442.28",288.46,Building Services / Repairs & Maintenance  Fixtures & Fittings
20/03/2018,City Developments and Neighbourhood,Ashwell Maintenance Ltd,Responsive,961.08,192.22,Building Services / Repairs & Maintenance  Fixtures & Fittings
20/03/2018,City Developments and Neighbourhood,Ashwell Maintenance Ltd,Responsive,933.81,186.76,Building Services / Repairs & Maintenance  Fixtures & Fittings
26/03/2018,Adults & Housing Department,ASPIRE HEALTH AND CARE LIMITED T/A BODEN HOUSE,Residential Permanent,"2,316.68",0.00,Residential Care
26/03/2018,Adults & Housing Department,ASPIRE HEALTH AND CARE LIMITED T/A BODEN HOUSE,Residential Permanent,969.00,0.00,Residential Care
26/03/2018,Adults & Housing Department,ASPIRE HEALTH AND CARE LIMITED T/A BODEN HOUSE,Residential Permanent,883.32,0.00,Residential Care
26/03/2018,Adults & Housing Department,ASPIRE HEALTH AND CARE LIMITED T/A BODEN HOUSE,Residential Permanent,"2,316.68",0.00,Residential Care
26/03/2018,Adults & Housing Department,ASPIRE HEALTH AND CARE LIMITED T/A BODEN HOUSE,Residential Permanent,969.00,0.00,Residential Care
26/03/2018,Adults & Housing Department,ASPIRE HEALTH AND CARE LIMITED T/A BODEN HOUSE,Residential Permanent,883.32,0.00,Residential Care
26/03/2018,Adults & Housing Department,ASPIRE HEALTH AND CARE LIMITED T/A BODEN HOUSE,Residential Permanent,"2,631.00",0.00,Residential Care
26/03/2018,Adults & Housing Department,ASPIRE HEALTH AND CARE LIMITED T/A BODEN HOUSE,Residential Permanent,"2,631.00",0.00,Residential Care
,Adults & Housing Department,Aspire UK,Home Care - Specialist,"5,630.10",0.00,Home Care
20/03/2018,Education & Childrens Services,Assessment Services Ltd,Registration & Inspection,"2,525.00",505.00,Registration & Inspection
09/03/2018,City Developments and Neighbourhood,Associate Events Limited,Management & Business & Administrative Services,"15,000.00","3,000.00",Management & Business & Administrative Services
09/03/2018,,AT Services Ltd,Fixtures & Fittings,"9,245.74","1,849.15",Fixtures & Fittings
13/03/2018,,AT Services Ltd,Fixtures & Fittings,"12,370.57","2,474.11",Fixtures & Fittings
13/03/2018,,AT Services Ltd,Fixtures & Fittings,"10,983.29","2,196.66",Fixtures & Fittings
13/03/2018,,AT Services Ltd,Fixtures & Fittings,"4,550.81",910.16,Fixtures & Fittings
13/03/2018,,AT Services Ltd,Fixtures & Fittings,"6,127.14","1,225.43",Fixtures & Fittings
13/03/2018,,AT Services Ltd,Fixtures & Fittings,"6,454.43","1,290.89",Fixtures & Fittings
13/03/2018,,AT Services Ltd,Fixtures & Fittings,"4,462.60",892.52,Fixtures & Fittings
13/03/2018,,AT Services Ltd,Fixtures & Fittings,"6,196.48","1,239.30",Fixtures & Fittings
16/03/2018,,AT Services Ltd,Fixtures & Fittings,"4,354.35",870.87,Fixtures & Fittings
23/03/2018,,AT Services Ltd,Fixtures & Fittings,592.00,118.40,Fixtures & Fittings
26/03/2018,,AT Services Ltd,Fixtures & Fittings,"5,824.00","1,164.80",Fixtures & Fittings
26/03/2018,,AT Services Ltd,Fixtures & Fittings,"9,724.20","1,944.84",Fixtures & Fittings
26/03/2018,,AT Services Ltd,Fixtures & Fittings,"10,714.85","2,142.97",Fixtures & Fittings
26/03/2018,,AT Services Ltd,Fixtures & Fittings,"9,200.49","1,840.10",Fixtures & Fittings
26/03/2018,,AT Services Ltd,Fixtures & Fittings,"6,845.25","1,369.05",Fixtures & Fittings
26/03/2018,,AT Services Ltd,Fixtures & Fittings,"6,933.36","1,386.67",Fixtures & Fittings
26/03/2018,,AT Services Ltd,Fixtures & Fittings,"5,824.00","1,164.80",Fixtures & Fittings
26/03/2018,,AT Services Ltd,Fixtures & Fittings,"4,467.98",893.60,Fixtures & Fittings
26/03/2018,,AT Services Ltd,Fixtures & Fittings,"5,975.87","1,195.17",Fixtures & Fittings
13/03/2018,City Developments and Neighbourhood,AT Services Ltd,Project - Responsive,746.96,149.39,Project - R&M Fixtures & Fittings
20/03/2018,City Developments and Neighbourhood,AT Services Ltd,Project - Responsive,"19,368.91","3,873.78",Project - R&M Fixtures & Fittings
23/03/2018,City Developments and Neighbourhood,AT Services Ltd,Project - Responsive,"1,334.93",266.99,Project - R&M Fixtures & Fittings
26/03/2018,City Developments and Neighbourhood,AT Services Ltd,Project - Responsive,"30,745.97","6,149.19",Project - R&M Fixtures & Fittings
26/03/2018,City Developments and Neighbourhood,AT Services Ltd,Project - Responsive,"1,725.61",345.12,Project - R&M Fixtures & Fittings
26/03/2018,City Developments and Neighbourhood,AT Services Ltd,Project - Responsive,"1,652.54",330.51,Project - R&M Fixtures & Fittings
06/03/2018,Education & Childrens Services,AT Services Ltd,Responsive,"1,284.00",256.80,Building Works & Repairs/Maintenance/Alterations
09/03/2018,City Developments and Neighbourhood,AT Services Ltd,Responsive,994.86,198.97,Building Services / Repairs & Maintenance  Fixtures & Fittings
09/03/2018,City Developments and Neighbourhood,AT Services Ltd,Responsive,"1,394.95",278.99,Building Services / Repairs & Maintenance  Fixtures & Fittings
09/03/2018,City Developments and Neighbourhood,AT Services Ltd,Responsive,"2,174.40",434.88,Building Services / Repairs & Maintenance  Fixtures & Fittings
09/03/2018,City Developments and Neighbourhood,AT Services Ltd,Responsive,"1,018.12",203.62,Building Services / Repairs & Maintenance  Fixtures & Fittings
16/03/2018,City Developments and Neighbourhood,AT Services Ltd,Responsive,"1,633.28",326.66,Building Services / Repairs & Maintenance  Fixtures & Fittings
16/03/2018,City Developments and Neighbourhood,AT Services Ltd,Responsive,"2,095.39",419.08,Building Services / Repairs & Maintenance  Fixtures & Fittings
20/03/2018,City Developments and Neighbourhood,AT Services Ltd,Responsive,521.81,104.36,Building Works & Repairs/Maintenance/Alterations
20/03/2018,City Developments and Neighbourhood,AT Services Ltd,Responsive,664.40,132.88,Building Services / Repairs & Maintenance  Fixtures & Fittings
20/03/2018,City Developments and Neighbourhood,AT Services Ltd,Responsive,518.45,103.69,Building Services / Repairs & Maintenance  Fixtures & Fittings
20/03/2018,City Developments and Neighbourhood,AT Services Ltd,Responsive,"14,161.25","2,832.25",Building Services / Repairs & Maintenance  Fixtures & Fittings
21/03/2018,City Developments and Neighbourhood,AT Services Ltd,Responsive,816.75,163.35,Building Services / Repairs & Maintenance  Fixtures & Fittings
21/03/2018,Education & Childrens Services,AT Services Ltd,Responsive,"1,041.82",208.36,Building Services / Repairs & Maintenance  Fixtures & Fittings
21/03/2018,City Developments and Neighbourhood,AT Services Ltd,Responsive,880.48,176.10,Building Services / Repairs & Maintenance  Fixtures & Fittings
23/03/2018,City Developments and Neighbourhood,AT Services Ltd,Responsive,"6,105.76","1,221.15",Building Services / Repairs & Maintenance  Fixtures & Fittings
23/03/2018,City Developments and Neighbourhood,AT Services Ltd,Responsive,695.00,139.00,Building Services / Repairs & Maintenance  Fixtures & Fittings
23/03/2018,City Developments and Neighbourhood,AT Services Ltd,Responsive,"5,491.95","1,098.39",Building Works & Repairs/Maintenance/Alterations
23/03/2018,City Developments and Neighbourhood,AT Services Ltd,Responsive,531.67,106.33,Building Services / Repairs & Maintenance  Fixtures & Fittings
26/03/2018,City Developments and Neighbourhood,AT Services Ltd,Responsive,"5,965.37","1,193.07",Building Services / Repairs & Maintenance  Fixtures & Fittings
26/03/2018,City Developments and Neighbourhood,AT Services Ltd,Responsive,"2,891.97",578.39,Building Services / Repairs & Maintenance  Fixtures & Fittings
26/03/2018,City Developments and Neighbourhood,AT Services Ltd,Responsive,"1,287.00",257.40,Building Services / Repairs & Maintenance  Fixtures & Fittings
26/03/2018,City Developments and Neighbourhood,AT Services Ltd,Responsive,"14,186.07","2,837.21",Building Services / Repairs & Maintenance  Fixtures & Fittings
26/03/2018,City Developments and Neighbourhood,AT Services Ltd,Responsive,"5,869.71","1,173.94",Building Services / Repairs & Maintenance  Fixtures & Fittings
26/03/2018,City Developments and Neighbourhood,AT Services Ltd,Responsive,"4,493.64",898.73,Building Services / Repairs & Maintenance  Fixtures & Fittings
26/03/2018,City Developments and Neighbourhood,AT Services Ltd,Responsive,"6,991.34","1,398.27",Building Services / Repairs & Maintenance  Fixtures & Fittings
26/03/2018,City Developments and Neighbourhood,AT Services Ltd,Responsive,"2,868.77",573.75,Building Services / Repairs & Maintenance  Fixtures & Fittings
26/03/2018,City Developments and Neighbourhood,AT Services Ltd,Responsive,"2,019.98",404.00,Building Services / Repairs & Maintenance  Fixtures & Fittings
26/03/2018,City Developments and Neighbourhood,AT Services Ltd,Responsive,"7,981.57","1,596.31",Building Services / Repairs & Maintenance  Fixtures & Fittings
09/03/2018,City Developments and Neighbourhood,AT Services Ltd,Servicing,850.86,170.17,Building Services / Repairs & Maintenance  Fixtures & Fittings
09/03/2018,City Developments and Neighbourhood,AT Services Ltd,Servicing,616.14,123.23,Building Services / Repairs & Maintenance  Fixtures & Fittings
09/03/2018,City Developments and Neighbourhood,AT Services Ltd,Servicing,557.46,111.49,Building Services / Repairs & Maintenance  Fixtures & Fittings
09/03/2018,City Developments and Neighbourhood,AT Services Ltd,Servicing,762.84,152.57,Building Services / Repairs & Maintenance  Fixtures & Fittings
09/03/2018,City Developments and Neighbourhood,AT Services Ltd,Servicing,660.00,132.00,Building Services / Repairs & Maintenance  Fixtures & Fittings
09/03/2018,Education & Childrens Services,AT Services Ltd,Servicing,510.00,102.00,Building Services / Repairs & Maintenance  Fixtures & Fittings
14/03/2018,City Developments and Neighbourhood,AT Services Ltd,Servicing,616.14,123.23,Building Services / Repairs & Maintenance  Fixtures & Fittings
14/03/2018,City Developments and Neighbourhood,AT Services Ltd,Servicing,704.16,140.83,Building Services / Repairs & Maintenance  Fixtures & Fittings
16/03/2018,City Developments and Neighbourhood,AT Services Ltd,Servicing,"2,376.54",475.31,Building Services / Repairs & Maintenance  Fixtures & Fittings
21/03/2018,City Developments and Neighbourhood,AT Services Ltd,Servicing,645.48,129.10,Building Services / Repairs & Maintenance  Fixtures & Fittings
21/03/2018,City Developments and Neighbourhood,AT Services Ltd,Servicing,674.82,134.96,Building Services / Repairs & Maintenance  Fixtures & Fittings
23/03/2018,City Developments and Neighbourhood,AT Services Ltd,Servicing,659.77,131.95,Building Services / Repairs & Maintenance  Fixtures & Fittings
23/03/2018,City Developments and Neighbourhood,AT Services Ltd,Servicing,"1,202.94",240.59,Building Services / Repairs & Maintenance  Fixtures & Fittings
23/03/2018,City Developments and Neighbourhood,AT Services Ltd,Servicing,659.77,131.95,Building Services / Repairs & Maintenance  Fixtures & Fittings
23/03/2018,City Developments and Neighbourhood,AT Services Ltd,Servicing,640.08,128.02,Building Services / Repairs & Maintenance  Fixtures & Fittings
23/03/2018,City Developments and Neighbourhood,AT Services Ltd,Servicing,"1,026.90",205.38,Building Services / Repairs & Maintenance  Fixtures & Fittings
26/03/2018,City Developments and Neighbourhood,AT Services Ltd,Servicing,528.97,105.79,Building Services / Repairs & Maintenance  Fixtures & Fittings
26/03/2018,City Developments and Neighbourhood,AT Services Ltd,Servicing,567.34,113.47,Building Services / Repairs & Maintenance  Fixtures & Fittings
26/03/2018,City Developments and Neighbourhood,AT Services Ltd,Servicing,510.05,102.01,Building Services / Repairs & Maintenance  Fixtures & Fittings
26/03/2018,,AT Services Ltd,Water Hygiene - Works,"5,341.78","1,068.36",Water Hygiene
06/03/2018,Education & Childrens Services,Atlas UK,Professional Fees,995.00,199.00,Management & Business & Administrative Services
23/03/2018,City Developments and Neighbourhood,ATS Euromaster Ltd,Vehicle Running Cost - Tyres,"3,075.84",615.17,Vehicle Running Cost - Tyres
26/03/2018,Adults & Housing Department,Autism Care (Uk) Ltd,Residential Permanent,"3,151.16",0.00,Residential Care
26/03/2018,Adults & Housing Department,Autism Care (Uk) Ltd,Residential Permanent,"3,151.16",0.00,Residential Care
26/03/2018,Adults & Housing Department,Autism Plus Ltd,Residential Permanent,"4,578.10",0.00,Residential Care
26/03/2018,Adults & Housing Department,Autism Plus Ltd,Residential Permanent,"4,578.10",0.00,Residential Care
26/03/2018,Adults & Housing Department,Avery Homes Grantham Ltd,Residential Permanent,890.00,0.00,Residential Care
26/03/2018,Adults & Housing Department,Avery Homes Grantham Ltd,Residential Permanent,890.00,0.00,Residential Care
20/03/2018,City Developments and Neighbourhood,Aviramp Ltd,Equipment Purchase,"1,155.00",231.00,Equipment Purchase
20/03/2018,City Developments and Neighbourhood,Axiom Building Solutions Ltd,Project - Responsive,"5,340.00","1,068.00",Project - Repairs / Maintenance / Alterations
16/03/2018,Education & Childrens Services,Axlr8 Rd.User Education Proj.,Education and Training Services,912.00,0.00,Education & Training Services
26/03/2018,Adults & Housing Department,Aylesham Court Nursing Home,Nursing Permanent,792.52,0.00,Nursing Care
26/03/2018,Adults & Housing Department,Aylesham Court Nursing Home,Nursing Permanent,868.00,0.00,Nursing Care
26/03/2018,Adults & Housing Department,Aylesham Court Nursing Home,Nursing Permanent,792.52,0.00,Nursing Care
26/03/2018,Adults & Housing Department,Aylesham Court Nursing Home,Nursing Permanent,868.00,0.00,Nursing Care
26/03/2018,Adults & Housing Department,Aylesham Court Nursing Home,Nursing Permanent,996.60,0.00,Nursing Care
26/03/2018,Adults & Housing Department,Aylesham Court Nursing Home,Nursing Permanent,868.00,0.00,Nursing Care
26/03/2018,Adults & Housing Department,Aylesham Court Nursing Home,Nursing Permanent,868.00,0.00,Nursing Care
26/03/2018,Adults & Housing Department,Aylesham Court Nursing Home,Nursing Permanent,996.60,0.00,Nursing Care
26/03/2018,Adults & Housing Department,Aylesham Court Nursing Home,Nursing Short Stay,868.00,0.00,Nursing Care
26/03/2018,Adults & Housing Department,Aylesham Court Nursing Home,Residential Permanent,798.00,0.00,Residential Care
26/03/2018,Adults & Housing Department,Aylesham Court Nursing Home,Residential Permanent,798.00,0.00,Residential Care
26/03/2018,Adults & Housing Department,AYLESTONE GRANGE,Residential Permanent,969.00,0.00,Residential Care
26/03/2018,Adults & Housing Department,AYLESTONE GRANGE,Residential Permanent,969.00,0.00,Residential Care
26/03/2018,Adults & Housing Department,AYLESTONE GRANGE,Residential Permanent,"1,068.00",0.00,Residential Care
26/03/2018,Adults & Housing Department,AYLESTONE GRANGE,Residential Permanent,"1,055.50",0.00,Residential Care
26/03/2018,Adults & Housing Department,AYLESTONE GRANGE,Residential Permanent,"1,055.50",0.00,Residential Care
26/03/2018,Adults & Housing Department,AYLESTONE GRANGE,Residential Permanent,"1,068.00",0.00,Residential Care
26/03/2018,Adults & Housing Department,AYLESTONE GRANGE,Residential Permanent,969.00,0.00,Residential Care
26/03/2018,Adults & Housing Department,AYLESTONE GRANGE,Residential Permanent,969.00,0.00,Residential Care
02/03/2018,,B Jarvis Roofing Ltd,Building Works - Alterations,"66,723.27","13,344.65",Building Works - Alterations
02/03/2018,City Developments and Neighbourhood,B&Q Plc,Gift certificates / vouchers / cards,"2,696.18",539.24,Printed & Electronic Media
09/03/2018,City Developments and Neighbourhood,B&Q Plc,Gift certificates / vouchers / cards,"2,254.12",450.82,Printed & Electronic Media
14/03/2018,City Developments and Neighbourhood,B&Q Plc,Gift certificates / vouchers / cards,"2,518.93",503.79,Printed & Electronic Media
16/03/2018,City Developments and Neighbourhood,B&Q Plc,Gift certificates / vouchers / cards,"2,049.77",409.95,Printed & Electronic Media
23/03/2018,City Developments and Neighbourhood,B&Q Plc,Gift certificates / vouchers / cards,"2,637.82",527.56,Printed & Electronic Media
26/03/2018,City Developments and Neighbourhood,B&Q Plc,Gift certificates / vouchers / cards,"1,922.58",384.52,Printed & Electronic Media
,City Developments and Neighbourhood,B&Q Plc,Gift certificates / vouchers / cards,"3,102.76",620.55,Printed & Electronic Media
09/03/2018,Education & Childrens Services,baca project,Accommodation - Supported Accommodation,"2,440.00",0.00,Other Establishments
09/03/2018,Education & Childrens Services,baca project,Accommodation - Supported Accommodation,"1,252.86",0.00,Other Establishments
13/03/2018,Education & Childrens Services,baca project,Accommodation - Supported Accommodation,"2,200.00",0.00,Other Establishments
13/03/2018,Education & Childrens Services,baca project,Accommodation - Supported Accommodation,"2,440.00",0.00,Other Establishments
13/03/2018,Education & Childrens Services,baca project,Extra Lessons / Clubs,581.60,0.00,Other Agencies
,City Developments and Neighbourhood,Balfour Beatty Living Places Ltd,Alterations,968.95,193.79,Transport Infrastructure
26/03/2018,City Developments and Neighbourhood,Bank of Scotland Asset Finance Ltd,Professional Fees,503.37,100.67,Management & Business & Administrative Services
07/03/2018,City Developments and Neighbourhood,BANNER GROUP LIMITED,Stationery,"1,215.00",243.00,Stationery & Office Supplies
26/03/2018,City Developments and Neighbourhood,BANNER GROUP LIMITED,Stationery,947.70,189.54,Stationery & Office Supplies
26/03/2018,City Developments and Neighbourhood,BANNER PLANT LIMITED,Equipment Hire/Lease,608.00,121.60,Equipment Hire / Lease
16/03/2018,City Developments and Neighbourhood,BANNER PLANT LIMITED,Plant Hire/Lease,592.50,118.50,Equipment Hire / Lease
26/03/2018,City Developments and Neighbourhood,BANNER PLANT LIMITED,Plant Hire/Lease,"1,345.00",269.00,Equipment Hire / Lease
26/03/2018,City Developments and Neighbourhood,BANNER PLANT LIMITED,Plant Hire/Lease,"1,052.00",210.40,Equipment Hire / Lease
26/03/2018,City Developments and Neighbourhood,BANNER PLANT LIMITED,Plant Hire/Lease,"1,220.00",244.00,Equipment Hire / Lease
26/03/2018,Adults & Housing Department,BARCLAY HOUSE T/A: Plans4Rehab Limited,Residential Permanent,946.16,0.00,Residential Care
26/03/2018,Adults & Housing Department,BARCLAY HOUSE T/A: Plans4Rehab Limited,Residential Permanent,946.16,0.00,Residential Care
26/03/2018,Adults & Housing Department,BARCLAY HOUSE T/A: Plans4Rehab Limited,Residential Permanent,946.16,0.00,Residential Care
26/03/2018,Adults & Housing Department,BARCLAY HOUSE T/A: Plans4Rehab Limited,Residential Permanent,883.32,0.00,Residential Care
26/03/2018,Adults & Housing Department,BARCLAY HOUSE T/A: Plans4Rehab Limited,Residential Permanent,883.32,0.00,Residential Care
26/03/2018,Adults & Housing Department,BARCLAY HOUSE T/A: Plans4Rehab Limited,Residential Permanent,946.16,0.00,Residential Care
26/03/2018,Adults & Housing Department,BARCLAY HOUSE T/A: Plans4Rehab Limited,Residential Permanent,883.32,0.00,Residential Care
26/03/2018,Adults & Housing Department,BARCLAY HOUSE T/A: Plans4Rehab Limited,Residential Permanent,883.32,0.00,Residential Care
09/03/2018,City Developments and Neighbourhood,Barhale Construction Plc T/a BCS Group,Equipment Purchase,933.50,186.70,Equipment Purchase
26/03/2018,City Developments and Neighbourhood,Barhale Construction Plc T/a BCS Group,Equipment Purchase,"1,127.00",225.40,Equipment Purchase
26/03/2018,Adults & Housing Department,Barkby Road Residential Home,Residential Permanent,812.00,0.00,Residential Care
26/03/2018,Adults & Housing Department,Barkby Road Residential Home,Residential Permanent,"3,065.00",0.00,Residential Care
26/03/2018,Adults & Housing Department,Barkby Road Residential Home,Residential Permanent,"3,649.72",0.00,Residential Care
26/03/2018,Adults & Housing Department,Barkby Road Residential Home,Residential Permanent,"1,848.84",0.00,Residential Care
26/03/2018,Adults & Housing Department,Barkby Road Residential Home,Residential Permanent,"2,262.06",0.00,Residential Care
26/03/2018,Adults & Housing Department,Barkby Road Residential Home,Residential Permanent,812.00,0.00,Residential Care
26/03/2018,Adults & Housing Department,Barkby Road Residential Home,Residential Permanent,812.00,0.00,Residential Care
26/03/2018,Adults & Housing Department,Barkby Road Residential Home,Residential Permanent,812.00,0.00,Residential Care
26/03/2018,Adults & Housing Department,Barkby Road Residential Home,Residential Permanent,"3,065.00",0.00,Residential Care
26/03/2018,Adults & Housing Department,Barkby Road Residential Home,Residential Permanent,"1,848.84",0.00,Residential Care
26/03/2018,Adults & Housing Department,Barkby Road Residential Home,Residential Permanent,812.00,0.00,Residential Care
26/03/2018,Adults & Housing Department,Barkby Road Residential Home,Residential Permanent,812.00,0.00,Residential Care
26/03/2018,Adults & Housing Department,Barkby Road Residential Home,Residential Permanent,"3,760.54",0.00,Residential Care
26/03/2018,Adults & Housing Department,Barkby Road Residential Home,Residential Permanent,812.00,0.00,Residential Care
26/03/2018,Adults & Housing Department,Barkby Road Residential Home,Residential Permanent,"3,760.54",0.00,Residential Care
26/03/2018,Adults & Housing Department,Barkby Road Residential Home,Residential Permanent,812.00,0.00,Residential Care
26/03/2018,Adults & Housing Department,Barkby Road Residential Home,Residential Permanent,812.00,0.00,Residential Care
26/03/2018,Adults & Housing Department,Barkby Road Residential Home,Residential Permanent,812.00,0.00,Residential Care
26/03/2018,Adults & Housing Department,Barkby Road Residential Home,Residential Permanent,"2,262.06",0.00,Residential Care
26/03/2018,Adults & Housing Department,Barkby Road Residential Home,Residential Permanent,"3,649.72",0.00,Residential Care
20/03/2018,Education & Childrens Services,Barnardo's,Independent Foster Agencies,"3,472.00",0.00,Other Agencies
20/03/2018,Education & Childrens Services,Barnardo's,Independent Foster Agencies,896.00,0.00,Other Agencies
20/03/2018,Education & Childrens Services,Barnardo's,Independent Foster Agencies,"3,410.00",0.00,Other Agencies
20/03/2018,Education & Childrens Services,Barnardo's,Independent Foster Agencies,"3,080.00",0.00,Other Agencies
20/03/2018,Education & Childrens Services,Barnardo's,Independent Foster Agencies,"3,472.00",0.00,Other Agencies
23/03/2018,Education & Childrens Services,Barnardo's,Independent Foster Agencies,"3,136.00",0.00,Other Agencies
23/03/2018,Education & Childrens Services,Barnardo's,Independent Foster Agencies,"3,080.00",0.00,Other Agencies
26/03/2018,Adults & Housing Department,Baron Park Nursing Home,Nursing Permanent,868.00,0.00,Nursing Care
26/03/2018,Adults & Housing Department,Baron Park Nursing Home,Nursing Permanent,868.00,0.00,Nursing Care
26/03/2018,Adults & Housing Department,Baron Park Nursing Home,Nursing Permanent,"1,145.58",0.00,Nursing Care
26/03/2018,Adults & Housing Department,Baron Park Nursing Home,Nursing Permanent,868.00,0.00,Nursing Care
26/03/2018,Adults & Housing Department,Baron Park Nursing Home,Nursing Permanent,"1,145.58",0.00,Nursing Care
26/03/2018,Adults & Housing Department,Baron Park Nursing Home,Nursing Permanent,"1,596.86",0.00,Nursing Care
26/03/2018,Adults & Housing Department,Baron Park Nursing Home,Nursing Permanent,868.00,0.00,Nursing Care
26/03/2018,Adults & Housing Department,Baron Park Nursing Home,Nursing Permanent,868.00,0.00,Nursing Care
26/03/2018,Adults & Housing Department,Baron Park Nursing Home,Nursing Permanent,868.00,0.00,Nursing Care
26/03/2018,Adults & Housing Department,Baron Park Nursing Home,Nursing Permanent,"1,596.86",0.00,Nursing Care
26/03/2018,Adults & Housing Department,Baron Park Nursing Home,Residential Permanent,970.00,0.00,Residential Care
26/03/2018,Adults & Housing Department,Baron Park Nursing Home,Residential Permanent,970.00,0.00,Residential Care
26/03/2018,Adults & Housing Department,Baron Park Nursing Home,Residential Permanent,890.00,0.00,Residential Care
26/03/2018,Adults & Housing Department,Baron Park Nursing Home,Residential Permanent,890.00,0.00,Residential Care
26/03/2018,,Bawdon Lodge Foods Ltd,Other Transfer Payments,"14,220.00",0.00,Other Transfer Payments
,City Developments and Neighbourhood,BBS Granite Concepts Limited,Planned,"1,436.45",287.29,Building Works & Repairs/Maintenance/Alterations
21/03/2018,City Developments and Neighbourhood,BDA Surveying Ltd,Project - Responsive,"12,610.00","2,522.00",Project - Repairs / Maintenance / Alterations
13/03/2018,City Developments and Neighbourhood,Beaumont Lodge Neighbourhood Centre,Voluntary Sector - Other,"2,400.00",0.00,Voluntary Organisations
26/03/2018,Adults & Housing Department,BEECH TREES,Residential Permanent,"2,923.10",0.00,Residential Care
26/03/2018,Adults & Housing Department,BEECH TREES,Residential Permanent,838.00,0.00,Residential Care
26/03/2018,Adults & Housing Department,BEECH TREES,Residential Permanent,"2,923.10",0.00,Residential Care
26/03/2018,Adults & Housing Department,BEECH TREES,Residential Permanent,838.00,0.00,Residential Care
26/03/2018,Adults & Housing Department,BEECHWOOD,Residential Permanent,883.32,0.00,Residential Care
26/03/2018,Adults & Housing Department,BEECHWOOD,Residential Permanent,"1,459.54",0.00,Residential Care
26/03/2018,Adults & Housing Department,BEECHWOOD,Residential Permanent,"1,459.54",0.00,Residential Care
26/03/2018,Adults & Housing Department,BEECHWOOD,Residential Permanent,883.32,0.00,Residential Care
06/03/2018,Education & Childrens Services,Belgrave Playhouse,Belgrave Playhouse,"22,766.50",0.00,Voluntary Organisations
26/03/2018,Adults & Housing Department,Berrystead Nursing Home,Nursing Permanent,868.00,0.00,Nursing Care
26/03/2018,Adults & Housing Department,Berrystead Nursing Home,Nursing Permanent,868.00,0.00,Nursing Care
26/03/2018,Adults & Housing Department,Berrystead Nursing Home,Nursing Permanent,868.00,0.00,Nursing Care
26/03/2018,Adults & Housing Department,Berrystead Nursing Home,Nursing Permanent,868.00,0.00,Nursing Care
26/03/2018,Adults & Housing Department,Berrystead Nursing Home,Residential Permanent,890.00,0.00,Residential Care
26/03/2018,Adults & Housing Department,Berrystead Nursing Home,Residential Permanent,890.00,0.00,Residential Care
21/03/2018,Corporate Resources & Support,Beth Walsh Photography,Printing,990.00,0.00,Printing & Copying
23/03/2018,Education & Childrens Services,Bettercare Keys Ltd,Residential Placements,"16,828.57",0.00,Other Agencies
09/03/2018,City Developments and Neighbourhood,BFS Group Ltd t/a Bidvest Foodservices,Catering - Provisions,593.47,0.00,Catering Provisions / Food & Drink
09/03/2018,Education & Childrens Services,BFS Group Ltd t/a Bidvest Foodservices,Catering - Provisions,"16,966.97",0.00,Catering Provisions / Food & Drink
09/03/2018,City Developments and Neighbourhood,BFS Group Ltd t/a Bidvest Foodservices,Catering - Provisions,597.00,0.00,Catering Provisions / Food & Drink
09/03/2018,Education & Childrens Services,BFS Group Ltd t/a Bidvest Foodservices,Catering - Provisions,"1,211.10",242.22,Catering Provisions / Food & Drink
23/03/2018,Education & Childrens Services,BFS Group Ltd t/a Bidvest Foodservices,Catering - Provisions,"1,242.90",248.58,Catering Provisions / Food & Drink
23/03/2018,Education & Childrens Services,BFS Group Ltd t/a Bidvest Foodservices,Catering - Provisions,"20,562.68",0.00,Catering Provisions / Food & Drink
23/03/2018,City Developments and Neighbourhood,BFS Group Ltd t/a Bidvest Foodservices,Catering - Provisions,647.16,0.00,Catering Provisions / Food & Drink
23/03/2018,City Developments and Neighbourhood,BFS Group Ltd t/a Bidvest Foodservices,Catering - Provisions,677.33,0.00,Catering Provisions / Food & Drink
,Education & Childrens Services,BFS Group Ltd t/a Bidvest Foodservices,Catering - Provisions,"1,172.60",234.52,Catering Provisions / Food & Drink
,Education & Childrens Services,BFS Group Ltd t/a Bidvest Foodservices,Catering - Provisions,"19,605.04",0.00,Catering Provisions / Food & Drink
26/03/2018,City Developments and Neighbourhood,Bibliographic Data Services Ltd,Libraries Book Fund,"4,575.00",915.00,Printed & Electronic Media
26/03/2018,City Developments and Neighbourhood,Bibliographic Data Services Ltd,Libraries Book Fund,"3,530.00",706.00,Printed & Electronic Media
20/03/2018,City Developments and Neighbourhood,Biffa Waste Services Ltd,Biffa Other Services,"14,701.67","2,940.33",Private Contractors
20/03/2018,City Developments and Neighbourhood,Biffa Waste Services Ltd,Biffa Unitary Charge,"4,302.22",860.44,Private Contractors
20/03/2018,City Developments and Neighbourhood,Biffa Waste Services Ltd,Biffa Unitary Charge,"14,701.67","2,940.33",Private Contractors
20/03/2018,City Developments and Neighbourhood,Biffa Waste Services Ltd,Biffa Unitary Charge,"14,701.67","2,940.33",Private Contractors
20/03/2018,City Developments and Neighbourhood,Biffa Waste Services Ltd,Biffa Unitary Charge,"14,701.67","2,940.33",Private Contractors
20/03/2018,City Developments and Neighbourhood,Biffa Waste Services Ltd,Biffa Unitary Charge,"14,701.67","2,940.33",Private Contractors
20/03/2018,City Developments and Neighbourhood,Biffa Waste Services Ltd,Biffa Unitary Charge,"12,332.25","2,466.45",Private Contractors
20/03/2018,City Developments and Neighbourhood,Biffa Waste Services Ltd,Biffa Unitary Charge,"2,272.64",454.53,Private Contractors
20/03/2018,City Developments and Neighbourhood,Biffa Waste Services Ltd,Biffa Unitary Charge,"14,701.67","2,940.33",Private Contractors
20/03/2018,City Developments and Neighbourhood,Biffa Waste Services Ltd,Biffa Unitary Charge,"14,701.67","2,940.33",Private Contractors
20/03/2018,City Developments and Neighbourhood,Biffa Waste Services Ltd,Biffa Unitary Charge,"59,250.00","11,850.00",Private Contractors
20/03/2018,City Developments and Neighbourhood,Biffa Waste Services Ltd,Biffa Unitary Charge,"1,763.53",352.71,Private Contractors
20/03/2018,City Developments and Neighbourhood,Biffa Waste Services Ltd,Biffa Unitary Charge,"14,701.67","2,940.33",Private Contractors
20/03/2018,City Developments and Neighbourhood,Biffa Waste Services Ltd,Biffa Unitary Charge,"8,397.52","1,679.50",Private Contractors
20/03/2018,City Developments and Neighbourhood,Biffa Waste Services Ltd,Biffa Unitary Charge,"1,187,583.33","237,516.67",Private Contractors
20/03/2018,City Developments and Neighbourhood,Biffa Waste Services Ltd,Biffa Unitary Charge,"14,701.67","2,940.33",Private Contractors
20/03/2018,City Developments and Neighbourhood,Biffa Waste Services Ltd,Biffa Unitary Charge,"14,701.67","2,940.33",Private Contractors
20/03/2018,City Developments and Neighbourhood,Biffa Waste Services Ltd,Biffa Unitary Charge,"14,701.67","2,940.33",Private Contractors
20/03/2018,City Developments and Neighbourhood,Biffa Waste Services Ltd,Environmental Services,701.25,140.25,Environment Related Services
20/03/2018,City Developments and Neighbourhood,Biffa Waste Services Ltd,Environmental Services,604.45,120.89,Environment Related Services
23/03/2018,Education & Childrens Services,Biffa Waste Services Ltd,Environmental Services,551.85,110.37,Environment Related Services
23/03/2018,City Developments and Neighbourhood,Biffa Waste Services Ltd,Environmental Services,"1,006.72",201.34,Environment Related Services
21/03/2018,City Developments and Neighbourhood,Biffa Waste Services Ltd,Landfill Tax,"180,033.38","36,006.68",Private Contractors
21/03/2018,City Developments and Neighbourhood,Biffa Waste Services Ltd,Landfill Tax,"119,460.31","23,892.06",Private Contractors
21/03/2018,City Developments and Neighbourhood,Biffa Waste Services Ltd,Landfill Tax,"30,615.44","6,123.09",Private Contractors
16/03/2018,Education & Childrens Services,Birch Wood School,Internal Use Of Grants,"2,431.28",0.00,Other Local Authorities
16/03/2018,Education & Childrens Services,Birch Wood School,Other Local Authorities,"9,573.00",0.00,Other Local Authorities
16/03/2018,Education & Childrens Services,Birch Wood School,Other Local Authorities,"9,036.63",0.00,Other Local Authorities
16/03/2018,Education & Childrens Services,Birch Wood School,Other Local Authorities,"3,594.97",0.00,Other Local Authorities
14/03/2018,Adults & Housing Department,BLACKBIRD PHARMACY LTD,Associate Advisor Activity,920.00,0.00,Public Health Initiatives
09/03/2018,Adults & Housing Department,BLACKBIRD PHARMACY LTD,Nicotine Replacement Therapy (NRT),"1,017.91",0.00,Public Health Initiatives
26/03/2018,City Developments and Neighbourhood,Blackburn IT Services Ltd t/a bbits,Annual Maintenance - Software,"7,779.53","1,555.91",Repairs & Maintenance  IT Software
26/03/2018,Education & Childrens Services,Blossoms Private Day Nursery,Neg Pvt Vol & Ind Providers - Extended Offer,"13,700.00",0.00,Voluntary Organisations
23/03/2018,Education & Childrens Services,Blossoms Private Day Nursery,Neg Pvt Vol & Ind Providers-Universal offer,"22,075.47",0.00,Voluntary Organisations
14/03/2018,Adults & Housing Department,Blue Cloudz Vape Limited,Nicotine Replacement Therapy (NRT),790.00,158.00,Public Health Initiatives
23/03/2018,City Developments and Neighbourhood,Blue Sail Consulting Ltd,Consultants Fees,"7,000.00","1,400.00",Consultant Fees
,Education & Childrens Services,Bluestone Catering Solultions Ltd,Repair & Maintenance Tools / Equipment,870.00,174.00,Repairs & Maintenance - Equipment & Furniture
23/03/2018,Adults & Housing Department,Bluewood Healthcare,Personal Care / Generic,"1,724.08",0.00,Home Care
23/03/2018,Adults & Housing Department,Bluewood Healthcare,Personal Care / Generic,515.05,0.00,Home Care
23/03/2018,Adults & Housing Department,Bluewood Healthcare,Personal Care / Generic,628.39,0.00,Home Care
23/03/2018,Adults & Housing Department,Bluewood Healthcare,Personal Care / Generic,563.32,0.00,Home Care
23/03/2018,Adults & Housing Department,Bluewood Healthcare,Personal Care / Generic,"2,194.09",0.00,Home Care
23/03/2018,Adults & Housing Department,Bluewood Healthcare,Personal Care / Generic,872.30,0.00,Home Care
23/03/2018,Adults & Housing Department,Bluewood Healthcare,Personal Care / Generic,858.60,0.00,Home Care
23/03/2018,Adults & Housing Department,Bluewood Healthcare,Personal Care / Generic,755.38,0.00,Home Care
23/03/2018,Adults & Housing Department,Bluewood Healthcare,Personal Care / Generic,580.29,0.00,Home Care
23/03/2018,Adults & Housing Department,Bluewood Healthcare,Personal Care / Generic,728.16,0.00,Home Care
23/03/2018,Adults & Housing Department,Bluewood Healthcare,Personal Care / Generic,858.60,0.00,Home Care
23/03/2018,Adults & Housing Department,Bluewood Healthcare,Personal Care / Generic,995.54,0.00,Home Care
23/03/2018,Adults & Housing Department,Bluewood Healthcare,Personal Care / Generic,597.65,0.00,Home Care
23/03/2018,Adults & Housing Department,Bluewood Healthcare,Personal Care / Generic,"1,730.96",0.00,Home Care
23/03/2018,Adults & Housing Department,Bluewood Healthcare,Personal Care / Generic,"1,193.46",0.00,Home Care
23/03/2018,Adults & Housing Department,Bluewood Healthcare,Personal Care / Generic,583.66,0.00,Home Care
23/03/2018,Adults & Housing Department,Bluewood Healthcare,Personal Care / Generic,"1,724.09",0.00,Home Care
23/03/2018,Adults & Housing Department,Bluewood Healthcare,Personal Care / Generic,525.44,0.00,Home Care
26/03/2018,Adults & Housing Department,BODNANT HOUSE,Residential Permanent,779.28,0.00,Residential Care
26/03/2018,Adults & Housing Department,BODNANT HOUSE,Residential Permanent,779.28,0.00,Residential Care
26/03/2018,Adults & Housing Department,BODNANT HOUSE,Residential Permanent,779.28,0.00,Residential Care
26/03/2018,Adults & Housing Department,BODNANT HOUSE,Residential Permanent,779.28,0.00,Residential Care
26/03/2018,Adults & Housing Department,BODNANT HOUSE,Residential Permanent,779.28,0.00,Residential Care
26/03/2018,Adults & Housing Department,BODNANT HOUSE,Residential Permanent,883.32,0.00,Residential Care
26/03/2018,Adults & Housing Department,BODNANT HOUSE,Residential Permanent,"1,605.00",0.00,Residential Care
26/03/2018,Adults & Housing Department,BODNANT HOUSE,Residential Permanent,969.00,0.00,Residential Care
26/03/2018,Adults & Housing Department,BODNANT HOUSE,Residential Permanent,883.32,0.00,Residential Care
26/03/2018,Adults & Housing Department,BODNANT HOUSE,Residential Permanent,969.00,0.00,Residential Care
26/03/2018,Adults & Housing Department,BODNANT HOUSE,Residential Permanent,779.28,0.00,Residential Care
26/03/2018,Adults & Housing Department,BODNANT HOUSE,Residential Permanent,"1,605.00",0.00,Residential Care
23/03/2018,Adults & Housing Department,Bodypower Sports Plc,Equipment Purchase,715.83,143.17,Equipment Purchase
26/03/2018,City Developments and Neighbourhood,Bolinda UK Ltd,Libraries - Talking Books,"9,348.77","1,869.75",Printed & Electronic Media
26/03/2018,City Developments and Neighbourhood,Bolinda UK Ltd,Libraries - Talking Books,"2,337.19",467.44,Printed & Electronic Media
26/03/2018,Education & Childrens Services,Bonney Care Agency Ltd,Accommodation - Supported Accommodation,"1,400.00",0.00,Other Establishments
26/03/2018,Education & Childrens Services,Bonney Care Agency Ltd,Accommodation - Supported Accommodation,"1,200.00",0.00,Other Establishments
26/03/2018,Adults & Housing Department,Bonney Care Agency Ltd,Accommodation Expenses,"1,120.00",0.00,Accommodation Expenses
26/03/2018,Adults & Housing Department,Bonney Care Agency Ltd,Persons From Abroad Accommodation Costs,"1,120.00",0.00,Residential Care
26/03/2018,Adults & Housing Department,Bonney Care Agency Ltd,Persons From Abroad Accommodation Costs,"1,022.00",0.00,Residential Care
23/03/2018,Education & Childrens Services,Bonney Care Agency Ltd FA SL&FSB,Accommodation - Service User Flats,"1,200.00",0.00,Other Establishments
16/03/2018,Adults & Housing Department,Bonney Care Agency Ltd FA SL&FSB,Day Support Hours,785.68,0.00,Supported Living
16/03/2018,Adults & Housing Department,Bonney Care Agency Ltd FA SL&FSB,Day Support Hours,533.14,0.00,Supported Living
16/03/2018,Adults & Housing Department,Bonney Care Agency Ltd FA SL&FSB,Day Support Hours,785.68,0.00,Supported Living
16/03/2018,Adults & Housing Department,Bonney Care Agency Ltd FA SL&FSB,Day Support Hours,561.20,0.00,Supported Living
16/03/2018,Adults & Housing Department,Bonney Care Agency Ltd FA SL&FSB,Day Support Hours,785.68,0.00,Supported Living
16/03/2018,Adults & Housing Department,Bonney Care Agency Ltd FA SL&FSB,Day Support Hours,785.68,0.00,Supported Living
16/03/2018,Adults & Housing Department,Bonney Care Agency Ltd FA SL&FSB,Day Support Hours,561.20,0.00,Supported Living
16/03/2018,Adults & Housing Department,Bonney Care Agency Ltd FA SL&FSB,Day Support Hours,561.20,0.00,Supported Living
16/03/2018,Adults & Housing Department,Bonney Care Agency Ltd FA SL&FSB,Day Support Hours,827.77,0.00,Supported Living
26/03/2018,Adults & Housing Department,Bonney Care Agency Ltd FA SL&FSB,Day Support Hours,785.68,0.00,Supported Living
26/03/2018,Adults & Housing Department,Bonney Care Agency Ltd FA SL&FSB,Day Support Hours,533.14,0.00,Supported Living
26/03/2018,Adults & Housing Department,Bonney Care Agency Ltd FA SL&FSB,Day Support Hours,561.20,0.00,Supported Living
26/03/2018,Adults & Housing Department,Bonney Care Agency Ltd FA SL&FSB,Day Support Hours,589.26,0.00,Supported Living
26/03/2018,Adults & Housing Department,Bonney Care Agency Ltd FA SL&FSB,Day Support Hours,561.20,0.00,Supported Living
26/03/2018,Adults & Housing Department,Bonney Care Agency Ltd FA SL&FSB,Day Support Hours,827.77,0.00,Supported Living
26/03/2018,Adults & Housing Department,Bonney Care Agency Ltd FA SL&FSB,Day Support Hours,785.68,0.00,Supported Living
26/03/2018,Adults & Housing Department,Bonney Care Agency Ltd FA SL&FSB,Day Support Hours,561.20,0.00,Supported Living
26/03/2018,Adults & Housing Department,Bonney Care Agency Ltd FA SL&FSB,Day Support Hours,785.68,0.00,Supported Living
23/03/2018,Adults & Housing Department,Bonney Care Agency Ltd FA SL&FSB,Personal Care / Generic,953.12,0.00,Home Care
23/03/2018,Adults & Housing Department,Bonney Care Agency Ltd FA SL&FSB,Personal Care / Generic,708.24,0.00,Home Care
23/03/2018,Adults & Housing Department,Bonney Care Agency Ltd FA SL&FSB,Personal Care / Generic,"1,524.60",0.00,Home Care
23/03/2018,Adults & Housing Department,Bonney Care Agency Ltd FA SL&FSB,Personal Care / Generic,667.24,0.00,Home Care
16/03/2018,Adults & Housing Department,Bonney Care Agency Ltd FA SL&FSB,Sleeping In Night Support,514.92,0.00,Supported Living
16/03/2018,Adults & Housing Department,Bonney Care Agency Ltd FA SL&FSB,Sleeping In Night Support,514.92,0.00,Supported Living
26/03/2018,Adults & Housing Department,Bonney Care Agency Ltd FA SL&FSB,Sleeping In Night Support,742.56,0.00,Supported Living
26/03/2018,Adults & Housing Department,Bonney Care Agency Ltd FA SL&FSB,Sleeping In Night Support,742.56,0.00,Supported Living
,Corporate Resources & Support,Bookboon.com Ltd,Training,"11,900.00","2,380.00",Employee Training
23/03/2018,Education & Childrens Services,Booktrust,Books,"4,074.59",814.92,Printed & Electronic Media
23/03/2018,Education & Childrens Services,Booktrust,Books,"14,010.49",0.00,Printed & Electronic Media
09/03/2018,Adults & Housing Department,Boots UK Limited T/a Boots The Chemist,Nicotine Replacement Therapy (NRT),651.45,0.00,Public Health Initiatives
07/03/2018,Education & Childrens Services,Bosworth Academy,Pupil Premium Looked After Children,"6,900.00",0.00,Pupil Premium - Schools
,Adults & Housing Department,Bosworth Court Nursing Home,Residential Permanent,"1,017.15",0.00,Residential Care
26/03/2018,,Bowmer & Kirkland Ltd (North Middlands),Building Works - Alterations,"25,273.42","5,054.68",Building Works - Alterations
26/03/2018,,Bowmer & Kirkland Ltd (North Middlands),Building Works - Alterations,"29,957.88","5,991.58",Building Works - Alterations
26/03/2018,,Bowmer & Kirkland Ltd (North Middlands),Building Works - Alterations,"21,331.34","4,266.27",Building Works - Alterations
26/03/2018,,Bowmer & Kirkland Ltd (North Middlands),Building Works - Alterations,"34,887.37","6,977.47",Building Works - Alterations
16/03/2018,Corporate Finance,BRADGATE PARK TRUST,External Auditor Fees,"10,300.00","2,060.00",Financial & Insurance Services
06/03/2018,Education & Childrens Services,Braunstone Adventure Playground,Braunstone Adventure Playground,"29,244.50",0.00,Voluntary Organisations
13/03/2018,City Developments and Neighbourhood,Braunstone Adventure Playground,Braunstone Park And Rowley Fields - Ward Consultative Committees,"1,036.00",0.00,Independent Units Within The Council
26/03/2018,Education & Childrens Services,Breedon House Nurseries Ltd -  River View,Neg Pvt Vol & Ind Providers - Extended Offer,"5,126.99",0.00,Voluntary Organisations
23/03/2018,Education & Childrens Services,Breedon House Nurseries Ltd -  River View,Neg Pvt Vol & Ind Providers-Universal offer,"6,935.87",0.00,Voluntary Organisations
23/03/2018,Education & Childrens Services,Breedon House Nurseries Ltd -  River View,Neg Pvt Vol & Ind Providers-Universal offer,"4,659.42",0.00,Voluntary Organisations
20/03/2018,Corporate Resources & Support,Brendan Roche,LCC External Barristers Fees,850.00,170.00,Legal Fees & Charges
13/03/2018,Adults & Housing Department,Brenntag,Materials Purchase,710.34,142.07,Materials Purchase
23/03/2018,Adults & Housing Department,Brenntag,Materials Purchase,"2,060.72",412.14,Materials Purchase
26/03/2018,Adults & Housing Department,Brenntag,Materials Purchase,"1,234.60",246.92,Materials Purchase
26/03/2018,Adults & Housing Department,Brenntag,Materials Purchase,557.92,111.58,Materials Purchase
26/03/2018,City Developments and Neighbourhood,Brett Landscaping Ltd,Responsive,"2,161.18",432.24,Building Works & Repairs/Maintenance/Alterations
26/03/2018,Education & Childrens Services,Bright Bees Beaumont Lodge,Early Years Pupil Premium,"1,049.40",0.00,Voluntary Organisations
26/03/2018,Education & Childrens Services,Bright Bees Beaumont Lodge,Neg Pvt Vol & Ind Providers - Extended Offer,"12,730.00",0.00,Voluntary Organisations
23/03/2018,Education & Childrens Services,Bright Bees Beaumont Lodge,Neg Pvt Vol & Ind Providers-Universal offer,"8,131.55",0.00,Voluntary Organisations
23/03/2018,Education & Childrens Services,Bright Bees Beaumont Lodge,Neg Pvt Vol & Ind Providers-Universal offer,"20,548.12",0.00,Voluntary Organisations
26/03/2018,Education & Childrens Services,Bright Bees Netherhall,Early Years Pupil Premium,"1,259.28",0.00,Voluntary Organisations
26/03/2018,Education & Childrens Services,Bright Bees Netherhall,Neg Pvt Vol & Ind Providers - Extended Offer,"4,092.00",0.00,Voluntary Organisations
26/03/2018,Education & Childrens Services,Bright Bees Netherhall,Neg Pvt Vol & Ind Providers-Universal offer,"4,805.57",0.00,Voluntary Organisations
26/03/2018,Education & Childrens Services,Bright Bees Nursery Ltd,Early Years Pupil Premium,"1,470.75",0.00,Voluntary Organisations
26/03/2018,Education & Childrens Services,Bright Bees Nursery Ltd,Neg Pvt Vol & Ind Providers - Extended Offer,"29,706.25",0.00,Voluntary Organisations
23/03/2018,Education & Childrens Services,Bright Bees Nursery Ltd,Neg Pvt Vol & Ind Providers-Universal offer,"1,913.45",0.00,Voluntary Organisations
23/03/2018,Education & Childrens Services,Bright Bees Nursery Ltd,Neg Pvt Vol & Ind Providers-Universal offer,"49,148.25",0.00,Voluntary Organisations
20/03/2018,Education & Childrens Services,Bright Bees Nursery Ltd,SEN Placements,"1,000.00",0.00,Other Agencies
20/03/2018,Education & Childrens Services,Bright Bees Nursery Ltd,SEN Placements,"1,000.00",0.00,Other Agencies
20/03/2018,Education & Childrens Services,Bright Bees Nursery Ltd,SEN Placements,"1,250.00",0.00,Other Agencies
20/03/2018,Education & Childrens Services,Bright Bees Nursery Ltd,SEN Placements,"1,000.00",0.00,Other Agencies
20/03/2018,Education & Childrens Services,Bright Bees Nursery Ltd,SEN Placements,"1,500.00",0.00,Other Agencies
20/03/2018,Education & Childrens Services,Bright Bees Nursery Ltd,SEN Placements,"1,000.00",0.00,Other Agencies
20/03/2018,Education & Childrens Services,Bright Bees Nursery Ltd,SEN Placements,500.00,0.00,Other Agencies
02/03/2018,Education & Childrens Services,Bright Horizons Family Solutions,Day Care (Including Childminding / Playgroup),512.60,0.00,Other Agencies
26/03/2018,Education & Childrens Services,Brighter Futures Foster Care Ltd,Residential Placements,"3,263.86",0.00,Other Agencies
26/03/2018,Corporate Resources & Support,Bristow & Sutor,Legal Fees & Charges,"2,709.71",541.94,Legal Fees & Charges
14/03/2018,City Developments and Neighbourhood,Britannia Storage Management Ltd,Project - Planned,"40,570.20","8,114.04",Project - Purchases Fixtures & Fittings
14/03/2018,City Developments and Neighbourhood,Britannia Storage Management Ltd,Project - Planned,"33,808.50","6,761.70",Project - Purchases Fixtures & Fittings
16/03/2018,City Developments and Neighbourhood,Britannia Storage Management Ltd,Project - Planned,"6,486.00","1,297.20",Project - Purchases Fixtures & Fittings
,City Developments and Neighbourhood,Britannia Storage Management Ltd,Project - Planned,"60,855.30","12,171.06",Project - Purchases Fixtures & Fittings
02/03/2018,City Developments and Neighbourhood,British Fossils,Materials purchased for resale,826.88,165.38,Materials Purchase
21/03/2018,City Developments and Neighbourhood,British Fossils,Materials purchased for resale,548.00,109.60,Materials Purchase
26/03/2018,,British Gas Business,Electricity Utilities,"1,290.65",258.13,Gas and Electricity Utilities
26/03/2018,,British Gas Business,Electricity Utilities,697.90,34.90,Gas and Electricity Utilities
21/03/2018,City Developments and Neighbourhood,British Gas New Heating Limited,Equipment Purchase,"3,000.00",600.00,Equipment Purchase
14/03/2018,Education & Childrens Services,British Heart Foundation,Equipment / Other - Child,520.00,0.00,Other Agencies
26/03/2018,Adults & Housing Department,Broadoak Group of Care Homes T/A: Primrose Lodge,Residential Permanent,869.04,0.00,Residential Care
26/03/2018,Adults & Housing Department,Broadoak Group of Care Homes T/A: Primrose Lodge,Residential Permanent,869.04,0.00,Residential Care
26/03/2018,Adults & Housing Department,Brooklyn Care Home,Residential Permanent,812.00,0.00,Residential Care
26/03/2018,Adults & Housing Department,Brooklyn Care Home,Residential Permanent,812.00,0.00,Residential Care
26/03/2018,Adults & Housing Department,Brooklyn Care Home,Residential Permanent,"4,852.00",0.00,Residential Care
26/03/2018,Adults & Housing Department,Brooklyn Care Home,Residential Permanent,"4,852.00",0.00,Residential Care
21/03/2018,Education & Childrens Services,Brooksby Melton College,SEN Placements,"7,604.00",0.00,Other Agencies
07/03/2018,Education & Childrens Services,Brookvale Groby Learning Trust,Pupil Premium Looked After Children,"1,400.00",0.00,Pupil Premium - Schools
07/03/2018,Education & Childrens Services,Brookvale Groby Learning Trust,Pupil Premium Looked After Children,980.00,0.00,Pupil Premium - Schools
23/03/2018,City Developments and Neighbourhood,Broxap Ltd,Equipment Purchase,958.00,191.60,Equipment Purchase
,City Developments and Neighbourhood,Broxap Ltd,Furniture Purchase,"5,191.00","1,038.20",Furniture Purchase
20/03/2018,Education & Childrens Services,Bryn Melyn Care Ltd,Residential Placements,"21,607.00",0.00,Other Agencies
20/03/2018,Education & Childrens Services,Bryn Melyn Care Ltd,Residential Secure Remand Placements,"21,607.00",0.00,Other Agencies
16/03/2018,,BT PLC - Openreach,Building Works - Alterations,"12,648.00","2,529.60",Building Works - Alterations
,,BTCV t/a The Conservation Volunteers (TCV),Grounds Maintenance,"3,995.00",799.00,Grounds Maintenance
26/03/2018,City Developments and Neighbourhood,Buchanan Computing Ltd,Annual Maintenance - Software,"1,684.00",336.80,Repairs & Maintenance  IT Software
07/03/2018,Education & Childrens Services,Burbage Junior School,Pupil Premium Looked After Children,"1,010.00",0.00,Pupil Premium - Schools
26/03/2018,Adults & Housing Department,BURGESS CARE LTD,Continuing Health Care Contribution - Residential Care,"53,766.75",0.00,Continuing Health Care Contribution - Residential Care
26/03/2018,Adults & Housing Department,BURGESS CARE LTD,Residential Permanent,"2,181.00",0.00,Residential Care
26/03/2018,Adults & Housing Department,BURGESS CARE LTD,Residential Permanent,812.00,0.00,Residential Care
26/03/2018,Adults & Housing Department,BURGESS CARE LTD,Residential Permanent,"2,181.00",0.00,Residential Care
26/03/2018,Adults & Housing Department,BURGESS CARE LTD,Residential Permanent,"4,362.00",0.00,Residential Care
26/03/2018,Adults & Housing Department,BURGESS CARE LTD,Residential Permanent,"5,985.96",0.00,Residential Care
26/03/2018,Adults & Housing Department,BURGESS CARE LTD,Residential Permanent,812.00,0.00,Residential Care
26/03/2018,Adults & Housing Department,BURGESS CARE LTD,Residential Permanent,"2,992.98",0.00,Residential Care
26/03/2018,Adults & Housing Department,BURGESS CARE LTD,Residential Permanent,"1,624.00",0.00,Residential Care
26/03/2018,Adults & Housing Department,BURGESS CARE LTD,Residential Permanent,"2,992.98",0.00,Residential Care
23/03/2018,City Developments and Neighbourhood,Burton Mccall Limited,Catering Equipment Purchase,652.68,130.54,Equipment Purchase
14/03/2018,,C M Builders,Building Works - Alterations,"5,750.00",0.00,Building Works - Alterations
16/03/2018,,C M Builders,Building Works - Alterations,"5,391.25",0.00,Building Works - Alterations
21/03/2018,,C V Lane & Son,Fixtures & Fittings,"69,045.96","13,809.19",Fixtures & Fittings
14/03/2018,,Call Connect Services Ltd,Building Works - Alterations,"3,899.00",779.80,Building Works - Alterations
13/03/2018,City Developments and Neighbourhood,Call Connect Services Ltd,IT Development,"2,697.00",539.40,IT Development
09/03/2018,City Developments and Neighbourhood,Call Connect Services Ltd,Responsive,"1,420.00",284.00,Building Works & Repairs/Maintenance/Alterations
13/03/2018,Education & Childrens Services,Cambian Childcare Limited,Residential Placements,"2,121.42",0.00,Other Agencies
21/03/2018,Education & Childrens Services,Cambian Childcare Limited,Residential Placements,"21,257.01",0.00,Other Agencies
26/03/2018,,Canal and River Trust,Building Works - Alterations,"249,804.96",0.00,Building Works - Alterations
14/03/2018,,Canal and River Trust,Consultant Fees,925.20,185.04,Consultant Fees
14/03/2018,Education & Childrens Services,Capita Business Services Ltd,Pension Act Increase,664.44,132.89,Pension Miscellaneous
26/03/2018,Education & Childrens Services,Capita Resourcing LTd,Agency Local Government Staff,"1,100.00",220.00,Agency Local Government Staff
26/03/2018,Education & Childrens Services,Capstone Foster Care Midlands,Independent Foster Agencies,"3,525.01",0.00,Other Agencies
26/03/2018,Education & Childrens Services,Capstone Foster Care Midlands,Independent Foster Agencies,"3,520.67",0.00,Other Agencies
26/03/2018,Education & Childrens Services,Capstone Foster Care Midlands,Independent Foster Agencies,"3,520.67",0.00,Other Agencies
02/03/2018,Education & Childrens Services,Care Today Childrens Services,Residential Placements,"8,902.88","1,780.58",Other Agencies
26/03/2018,Education & Childrens Services,Care Today Childrens Services,Residential Placements,"15,580.04","3,116.01",Other Agencies
,Adults & Housing Department,Care4U (Leicestershire) Ltd,Personal Care / Generic,518.03,0.00,Home Care
,Adults & Housing Department,Care4U (Leicestershire) Ltd,Personal Care / Generic,569.55,0.00,Home Care
,Adults & Housing Department,Care4U (Leicestershire) Ltd,Personal Care / Generic,503.34,0.00,Home Care
,Adults & Housing Department,Care4U (Leicestershire) Ltd,Personal Care / Generic,"2,863.27",0.00,Home Care
26/03/2018,Adults & Housing Department,Carers Direct Homecare Ltd,Personal Care / Generic,"1,490.80",0.00,Home Care
26/03/2018,Adults & Housing Department,Carers Direct Homecare Ltd,Personal Care / Generic,"1,512.06",0.00,Home Care
26/03/2018,Adults & Housing Department,Carers Direct Homecare Ltd,Personal Care / Generic,"1,003.42",0.00,Home Care
26/03/2018,Adults & Housing Department,Carers Direct Homecare Ltd,Personal Care / Generic,580.50,0.00,Home Care
26/03/2018,Adults & Housing Department,Carers Direct Homecare Ltd,Personal Care / Generic,"1,354.92",0.00,Home Care
26/03/2018,Adults & Housing Department,Carers Direct Homecare Ltd,Personal Care / Generic,"1,806.56",0.00,Home Care
26/03/2018,Adults & Housing Department,Carers Direct Homecare Ltd,Personal Care / Generic,"2,121.17",0.00,Home Care
09/03/2018,Adults & Housing Department,Carers of Leicestershire Advocacy and Support  Project,Carers Support,"31,250.00",0.00,VCS - Adults & Older People
21/03/2018,City Developments and Neighbourhood,Carsington Sports & Leisure Ltd,Training,687.50,137.50,Employee Training
06/03/2018,Adults & Housing Department,Castle Park Hotel Trading Ltd T/a Castle Park,Accommodation Expenses,"1,500.00",300.00,Accommodation Expenses
07/03/2018,Education & Childrens Services,Castle Park Hotel Trading Ltd T/a Castle Park,Accommodation Expenses,"1,750.00",350.00,Accommodation Expenses
20/03/2018,Adults & Housing Department,Castle Park Hotel Trading Ltd T/a Castle Park,Accommodation Expenses,665.00,133.00,Accommodation Expenses
26/03/2018,Adults & Housing Department,Castle Park Hotel Trading Ltd T/a Castle Park,Accommodation Expenses,560.00,112.00,Accommodation Expenses
26/03/2018,Adults & Housing Department,Castle Park Hotel Trading Ltd T/a Castle Park,Accommodation Expenses,"1,400.00",280.00,Accommodation Expenses
,Adults & Housing Department,Castle Park Hotel Trading Ltd T/a Castle Park,Accommodation Expenses,768.00,153.60,Accommodation Expenses
14/03/2018,Education & Childrens Services,Castlecare - Priory,Residential Placements,"14,837.80",0.00,Other Agencies
26/03/2018,Education & Childrens Services,CCS Media,IT Hardware,"13,924.08","2,784.82",IT Hardware
23/03/2018,,CCS Media,IT Hardware Capital,"2,822.75",564.55,IT Hardware
,,CCS Media,IT Hardware Capital,"1,004.95",200.99,IT Hardware
21/03/2018,Corporate Resources & Support,CDW Limited,Annual Maintenance - Software,"1,610.00",322.00,Repairs & Maintenance  IT Software
06/03/2018,Corporate Resources & Support,CDW Limited,IT Hardware,750.00,150.00,IT Hardware
06/03/2018,Corporate Resources & Support,CDW Limited,IT Hardware,744.00,148.80,IT Hardware
09/03/2018,Corporate Resources & Support,CDW Limited,IT Hardware,"6,426.00","1,285.20",IT Hardware
09/03/2018,Corporate Resources & Support,CDW Limited,IT Hardware,702.00,140.40,IT Hardware
09/03/2018,Corporate Resources & Support,CDW Limited,IT Hardware,950.00,190.00,IT Hardware
16/03/2018,Corporate Resources & Support,CDW Limited,IT Hardware,"2,050.00",410.00,IT Hardware
16/03/2018,Corporate Resources & Support,CDW Limited,IT Hardware,"1,875.00",375.00,IT Hardware
21/03/2018,Corporate Resources & Support,CDW Limited,IT Hardware,925.00,185.00,IT Hardware
23/03/2018,Corporate Resources & Support,CDW Limited,IT Hardware,600.00,120.00,IT Hardware
23/03/2018,Corporate Resources & Support,CDW Limited,IT Hardware,500.00,100.00,IT Hardware
26/03/2018,Corporate Resources & Support,CDW Limited,IT Hardware,"2,160.00",432.00,IT Hardware
26/03/2018,Corporate Resources & Support,CDW Limited,IT Hardware,"1,850.00",370.00,IT Hardware
26/03/2018,Corporate Resources & Support,CDW Limited,IT Hardware,"5,940.00","1,188.00",IT Hardware
26/03/2018,Corporate Resources & Support,CDW Limited,IT Hardware,"1,026.00",205.20,IT Hardware
26/03/2018,Corporate Resources & Support,CDW Limited,IT Hardware,"2,753.00",550.60,IT Hardware
26/03/2018,Corporate Resources & Support,CDW Limited,IT Software,558.90,111.78,IT Software
21/03/2018,Corporate Resources & Support,CDW Limited,Materials Purchase,798.48,159.70,Materials Purchase
21/03/2018,Corporate Resources & Support,CDW Limited,Materials Purchase,"4,731.30",946.26,Materials Purchase
26/03/2018,City Developments and Neighbourhood,Cengage Learning (EMEA) Ltd,Libraries Book Fund,"5,689.73","1,137.95",Printed & Electronic Media
23/03/2018,City Developments and Neighbourhood,Central Construction Services Ltd,Environmental Services,"6,534.80","1,306.96",Environment Related Services
26/03/2018,City Developments and Neighbourhood,Central Marine Services Ltd,Clothing Footwear & Laundry,505.00,101.00,"Clothing, Footwear & Laundry"
21/03/2018,City Developments and Neighbourhood,CET Structures Ltd,Engineering / Research / Technology / Science Services,500.00,100.00,Engineering / Research / Technology / Science Services
16/03/2018,City Developments and Neighbourhood,CF Construction Ltd,3PP - Private Contractors,"13,750.00","2,750.00",Private Contractors
26/03/2018,Adults & Housing Department,Charnwood Hall Nursing Home,Residential Permanent,869.04,0.00,Residential Care
26/03/2018,Adults & Housing Department,Charnwood Hall Nursing Home,Residential Permanent,869.04,0.00,Residential Care
26/03/2018,Adults & Housing Department,Chartwell Care Services Ltd T/A Barclay Street,Residential Permanent,"3,158.80",0.00,Residential Care
26/03/2018,Adults & Housing Department,Chartwell Care Services Ltd T/A Barclay Street,Residential Permanent,969.00,0.00,Residential Care
26/03/2018,Adults & Housing Department,Chartwell Care Services Ltd T/A Barclay Street,Residential Permanent,969.00,0.00,Residential Care
26/03/2018,Adults & Housing Department,Chartwell Care Services Ltd T/A Barclay Street,Residential Permanent,"3,158.80",0.00,Residential Care
26/03/2018,Education & Childrens Services,Chatterbox Pre-School,Early Years Pupil Premium,725.04,0.00,Voluntary Organisations
26/03/2018,Education & Childrens Services,Chatterbox Pre-School,Neg Pvt Vol & Ind Providers - Extended Offer,"2,203.60",0.00,Voluntary Organisations
23/03/2018,Education & Childrens Services,Chatterbox Pre-School,Neg Pvt Vol & Ind Providers-Universal offer,"11,392.92",0.00,Voluntary Organisations
23/03/2018,Education & Childrens Services,Chatterbox Pre-School,Neg Pvt Vol & Ind Providers-Universal offer,"2,582.30",0.00,Voluntary Organisations
23/03/2018,Adults & Housing Department,Chelsea & Westminster Hospital NHS Foundation Trust,STI treatment (ISHS),613.04,0.00,Community Engagement
26/03/2018,Adults & Housing Department,Cherre Residential Care,Residential Permanent,883.32,0.00,Residential Care
26/03/2018,Adults & Housing Department,Cherre Residential Care,Residential Permanent,"1,221.02",0.00,Residential Care
26/03/2018,Adults & Housing Department,Cherre Residential Care,Residential Permanent,866.00,0.00,Residential Care
26/03/2018,Adults & Housing Department,Cherre Residential Care,Residential Permanent,"1,659.74",0.00,Residential Care
26/03/2018,Adults & Housing Department,Cherre Residential Care,Residential Permanent,883.32,0.00,Residential Care
26/03/2018,Adults & Housing Department,Cherre Residential Care,Residential Permanent,"1,659.74",0.00,Residential Care
26/03/2018,Adults & Housing Department,Cherre Residential Care,Residential Permanent,883.32,0.00,Residential Care
26/03/2018,Adults & Housing Department,Cherre Residential Care,Residential Permanent,"5,908.74",0.00,Residential Care
26/03/2018,Adults & Housing Department,Cherre Residential Care,Residential Permanent,"5,908.74",0.00,Residential Care
26/03/2018,Adults & Housing Department,Cherre Residential Care,Residential Permanent,883.32,0.00,Residential Care
26/03/2018,Adults & Housing Department,Cherre Residential Care,Residential Permanent,883.32,0.00,Residential Care
26/03/2018,Adults & Housing Department,Cherre Residential Care,Residential Permanent,883.32,0.00,Residential Care
26/03/2018,Adults & Housing Department,Cherre Residential Care,Residential Permanent,"1,630.78",0.00,Residential Care
26/03/2018,Adults & Housing Department,Cherre Residential Care,Residential Permanent,883.32,0.00,Residential Care
26/03/2018,Adults & Housing Department,Cherre Residential Care,Residential Permanent,883.32,0.00,Residential Care
26/03/2018,Adults & Housing Department,Cherre Residential Care,Residential Permanent,883.32,0.00,Residential Care
26/03/2018,Adults & Housing Department,Cherre Residential Care,Residential Permanent,"1,221.02",0.00,Residential Care
26/03/2018,Adults & Housing Department,Cherre Residential Care,Residential Permanent,883.32,0.00,Residential Care
26/03/2018,Adults & Housing Department,Cherre Residential Care,Residential Permanent,883.32,0.00,Residential Care
26/03/2018,Adults & Housing Department,Cherre Residential Care,Residential Permanent,883.32,0.00,Residential Care
26/03/2018,Adults & Housing Department,Cherre Residential Care,Residential Permanent,"1,630.78",0.00,Residential Care
26/03/2018,Adults & Housing Department,Cherre Residential Care,Residential Permanent,866.00,0.00,Residential Care
26/03/2018,Education & Childrens Services,Cherry Tree Day Nursery,Early Years Pupil Premium,675.75,0.00,Voluntary Organisations
26/03/2018,Education & Childrens Services,Cherry Tree Day Nursery,Neg Pvt Vol & Ind Providers - Extended Offer,"5,065.00",0.00,Voluntary Organisations
23/03/2018,Education & Childrens Services,Cherry Tree Day Nursery,Neg Pvt Vol & Ind Providers-Universal offer,504.54,0.00,Voluntary Organisations
23/03/2018,Education & Childrens Services,Cherry Tree Day Nursery,Neg Pvt Vol & Ind Providers-Universal offer,"4,811.80",0.00,Voluntary Organisations
26/03/2018,Adults & Housing Department,Cherrytree,Residential Permanent,890.00,0.00,Residential Care
26/03/2018,Adults & Housing Department,Cherrytree,Residential Permanent,890.00,0.00,Residential Care
26/03/2018,Adults & Housing Department,Chestnuts (Arnesby) Ltd,Residential Permanent,"1,223.36",0.00,Residential Care
26/03/2018,Adults & Housing Department,Chestnuts (Arnesby) Ltd,Residential Permanent,"1,223.36",0.00,Residential Care
26/03/2018,Adults & Housing Department,Chestnuts (Arnesby) Ltd,Residential Permanent,936.28,0.00,Residential Care
26/03/2018,Adults & Housing Department,Chestnuts (Arnesby) Ltd,Residential Permanent,969.00,0.00,Residential Care
26/03/2018,Adults & Housing Department,Chestnuts (Arnesby) Ltd,Residential Permanent,883.32,0.00,Residential Care
26/03/2018,Adults & Housing Department,Chestnuts (Arnesby) Ltd,Residential Permanent,883.32,0.00,Residential Care
26/03/2018,Adults & Housing Department,Chestnuts (Arnesby) Ltd,Residential Permanent,936.28,0.00,Residential Care
26/03/2018,Adults & Housing Department,Chestnuts (Arnesby) Ltd,Residential Permanent,969.00,0.00,Residential Care
26/03/2018,Adults & Housing Department,Chhg Ltd T/A Gretton Homes,Residential Permanent,"3,801.06",0.00,Residential Care
26/03/2018,Adults & Housing Department,Chhg Ltd T/A Gretton Homes,Residential Permanent,"2,860.00",0.00,Residential Care
26/03/2018,Adults & Housing Department,Chhg Ltd T/A Gretton Homes,Residential Permanent,"2,860.00",0.00,Residential Care
26/03/2018,Adults & Housing Department,Chhg Ltd T/A Gretton Homes,Residential Permanent,812.00,0.00,Residential Care
26/03/2018,Adults & Housing Department,Chhg Ltd T/A Gretton Homes,Residential Permanent,812.00,0.00,Residential Care
26/03/2018,Adults & Housing Department,Chhg Ltd T/A Gretton Homes,Residential Permanent,"3,801.06",0.00,Residential Care
26/03/2018,Adults & Housing Department,Child Poverty Action Group,Training,"1,374.81",0.00,Employee Training
26/03/2018,Education & Childrens Services,Childcare Company Leicester Lt,Neg Pvt Vol & Ind Providers - Extended Offer,"1,877.50",0.00,Voluntary Organisations
26/03/2018,Education & Childrens Services,Childcare Company Leicester Lt,Neg Pvt Vol & Ind Providers-Universal offer,"9,377.29",0.00,Voluntary Organisations
26/03/2018,Education & Childrens Services,Childcare Company Leicester Lt,Neg Pvt Vol & Ind Providers-Universal offer,"10,261.20",0.00,Voluntary Organisations
,Education & Childrens Services,Childrens Therapy Solutions Ltd,Healthcare Services,741.00,0.00,Healthcare Services
02/03/2018,Adults & Housing Department,Choices Care Ltd,Personal Care / Generic,682.92,0.00,Home Care
02/03/2018,Adults & Housing Department,Choices Care Ltd,Personal Care / Generic,662.11,0.00,Home Care
02/03/2018,Adults & Housing Department,Choices Care Ltd,Personal Care / Generic,599.22,0.00,Home Care
02/03/2018,Adults & Housing Department,Choices Care Ltd,Personal Care / Generic,947.65,0.00,Home Care
02/03/2018,Adults & Housing Department,Choices Care Ltd,Personal Care / Generic,"1,703.89",0.00,Home Care
02/03/2018,Adults & Housing Department,Choices Care Ltd,Personal Care / Generic,"1,003.52",0.00,Home Care
02/03/2018,Adults & Housing Department,Choices Care Ltd,Personal Care / Generic,"1,365.84",0.00,Home Care
02/03/2018,Adults & Housing Department,Choices Care Ltd,Personal Care / Generic,"1,595.88",0.00,Home Care
02/03/2018,Adults & Housing Department,Choices Care Ltd,Personal Care / Generic,703.97,0.00,Home Care
02/03/2018,Adults & Housing Department,Choices Care Ltd,Personal Care / Generic,752.64,0.00,Home Care
02/03/2018,Adults & Housing Department,Choices Care Ltd,Personal Care / Generic,"1,282.23",0.00,Home Care
02/03/2018,Adults & Housing Department,Choices Care Ltd,Personal Care / Generic,"1,156.46",0.00,Home Care
02/03/2018,Adults & Housing Department,Choices Care Ltd,Personal Care / Generic,627.16,0.00,Home Care
02/03/2018,Adults & Housing Department,Choices Care Ltd,Personal Care / Generic,"1,355.39",0.00,Home Care
02/03/2018,Adults & Housing Department,Choices Care Ltd,Personal Care / Generic,613.04,0.00,Home Care
02/03/2018,Adults & Housing Department,Choices Care Ltd,Personal Care / Generic,"1,205.56",0.00,Home Care
02/03/2018,Adults & Housing Department,Choices Care Ltd,Personal Care / Generic,"1,055.54",0.00,Home Care
02/03/2018,Adults & Housing Department,Choices Care Ltd,Personal Care / Generic,"1,756.16",0.00,Home Care
02/03/2018,Adults & Housing Department,Choices Care Ltd,Personal Care / Generic,"1,365.84",0.00,Home Care
02/03/2018,Adults & Housing Department,Choices Care Ltd,Personal Care / Generic,871.11,0.00,Home Care
02/03/2018,Adults & Housing Department,Choices Care Ltd,Personal Care / Generic,"1,156.45",0.00,Home Care
23/03/2018,Adults & Housing Department,Choices Care Ltd,Personal Care / Generic,965.07,0.00,Home Care
23/03/2018,Adults & Housing Department,Choices Care Ltd,Personal Care / Generic,696.92,0.00,Home Care
23/03/2018,Adults & Housing Department,Choices Care Ltd,Personal Care / Generic,"1,505.28",0.00,Home Care
23/03/2018,Adults & Housing Department,Choices Care Ltd,Personal Care / Generic,"1,756.16",0.00,Home Care
23/03/2018,Adults & Housing Department,Choices Care Ltd,Personal Care / Generic,"1,358.87",0.00,Home Care
23/03/2018,Adults & Housing Department,Choices Care Ltd,Personal Care / Generic,696.94,0.00,Home Care
23/03/2018,Adults & Housing Department,Choices Care Ltd,Personal Care / Generic,599.22,0.00,Home Care
23/03/2018,Adults & Housing Department,Choices Care Ltd,Personal Care / Generic,"1,595.89",0.00,Home Care
23/03/2018,Adults & Housing Department,Choices Care Ltd,Personal Care / Generic,"1,707.16",0.00,Home Care
23/03/2018,Adults & Housing Department,Choices Care Ltd,Personal Care / Generic,613.04,0.00,Home Care
23/03/2018,Adults & Housing Department,Choices Care Ltd,Personal Care / Generic,655.07,0.00,Home Care
23/03/2018,Adults & Housing Department,Choices Care Ltd,Personal Care / Generic,"1,756.16",0.00,Home Care
23/03/2018,Adults & Housing Department,Choices Care Ltd,Personal Care / Generic,682.92,0.00,Home Care
23/03/2018,Adults & Housing Department,Choices Care Ltd,Personal Care / Generic,"1,644.64",0.00,Home Care
23/03/2018,Adults & Housing Department,Choices Care Ltd,Personal Care / Generic,"1,184.66",0.00,Home Care
23/03/2018,Adults & Housing Department,Choices Care Ltd,Personal Care / Generic,"1,658.58",0.00,Home Care
23/03/2018,Adults & Housing Department,Choices Care Ltd,Personal Care / Generic,"1,756.16",0.00,Home Care
23/03/2018,Adults & Housing Department,Choices Care Ltd,Personal Care / Generic,"1,024.38",0.00,Home Care
23/03/2018,Adults & Housing Department,Choices Care Ltd,Personal Care / Generic,585.26,0.00,Home Care
23/03/2018,Adults & Housing Department,Choices Care Ltd,Personal Care / Generic,"1,198.24",0.00,Home Care
23/03/2018,Adults & Housing Department,Choices Care Ltd,Personal Care / Generic,"1,365.84",0.00,Home Care
23/03/2018,Adults & Housing Department,Choices Care Ltd,Personal Care / Generic,878.08,0.00,Home Care
23/03/2018,Adults & Housing Department,Choices Care Ltd,Personal Care / Generic,627.16,0.00,Home Care
23/03/2018,Adults & Housing Department,Choices Care Ltd,Personal Care / Generic,"1,072.96",0.00,Home Care
06/03/2018,,Chris Siddons Building and Property Repair,Building Works - Alterations,"3,350.00",0.00,Building Works - Alterations
,Adults & Housing Department,Christchurch Court,Residential Permanent,"6,208.12",0.00,Residential Care
,Adults & Housing Department,Christchurch Court,Residential Permanent,"1,780.00",0.00,Residential Care
,Adults & Housing Department,Christchurch Court,Residential Permanent,"3,104.06",0.00,Residential Care
,Adults & Housing Department,Christchurch Court,Residential Permanent,890.00,0.00,Residential Care
,Adults & Housing Department,Christchurch Court,Residential Permanent,890.00,0.00,Residential Care
,Adults & Housing Department,Christchurch Court,Residential Permanent,"3,453.56",0.00,Residential Care
,Adults & Housing Department,Christchurch Court,Residential Permanent,"3,104.06",0.00,Residential Care
02/03/2018,City Developments and Neighbourhood,Churches Fire Security Ltd,Project - Repair & Maintenance Plant,"1,807.65",361.53,Project - R&M Equipment & Furniture
16/03/2018,City Developments and Neighbourhood,Churches Fire Security Ltd,Repair & Maintenance Tools / Equipment,"1,125.95",225.19,Repairs & Maintenance - Equipment & Furniture
21/03/2018,City Developments and Neighbourhood,Churches Fire Security Ltd,Servicing,597.00,119.40,Building Services / Repairs & Maintenance  Fixtures & Fittings
21/03/2018,City Developments and Neighbourhood,Churches Fire Security Ltd,Servicing,627.80,125.56,Building Services / Repairs & Maintenance  Fixtures & Fittings
21/03/2018,City Developments and Neighbourhood,Churches Fire Security Ltd,Servicing,784.10,156.82,Building Services / Repairs & Maintenance  Fixtures & Fittings
26/03/2018,City Developments and Neighbourhood,Churches Fire Security Ltd,Servicing,980.45,196.09,Building Services / Repairs & Maintenance  Fixtures & Fittings
09/03/2018,Corporate Resources & Support,CIPFA Business Ltd,Books,"6,010.00","1,202.00",Printed & Electronic Media
13/03/2018,Corporate Resources & Support,CIPFA Business Ltd,Books,"4,260.00",852.00,Printed & Electronic Media
07/03/2018,Corporate Resources & Support,CIPFA Business Ltd,Professional Subscriptions,"4,475.00",895.00,Professional Subscriptions
13/03/2018,Corporate Resources & Support,CIPFA Business Ltd,Training,"1,884.25",376.85,Employee Training
20/03/2018,City Developments and Neighbourhood,CIS Street Furniture Ltd,Equipment Purchase,600.00,120.00,Equipment Purchase
09/03/2018,Corporate Resources & Support,Civica UK Ltd,Management & Business & Administrative Services,"150,000.00","30,000.00",Management & Business & Administrative Services
20/03/2018,Adults & Housing Department,CLARENDON MEWS CARE LIMITED,Interim Nursing (Delayed Discharges),550.72,0.00,Nursing Care
26/03/2018,Adults & Housing Department,CLARENDON MEWS CARE LIMITED,Residential Permanent,969.00,0.00,Residential Care
26/03/2018,Adults & Housing Department,CLARENDON MEWS CARE LIMITED,Residential Permanent,899.79,0.00,Residential Care
26/03/2018,Adults & Housing Department,CLARENDON MEWS CARE LIMITED,Residential Permanent,969.00,0.00,Residential Care
26/03/2018,Adults & Housing Department,CLARENDON MEWS CARE LIMITED,Residential Permanent,969.00,0.00,Residential Care
26/03/2018,Adults & Housing Department,CLARENDON MEWS CARE LIMITED,Residential Permanent,"1,661.14",0.00,Residential Care
26/03/2018,Adults & Housing Department,CLARENDON MEWS CARE LIMITED,Residential Permanent,969.00,0.00,Residential Care
26/03/2018,Adults & Housing Department,CLARENDON MEWS CARE LIMITED,Residential Permanent,"1,595.79",0.00,Residential Care
26/03/2018,Adults & Housing Department,CLARENDON MEWS CARE LIMITED,Residential Permanent,"1,938.00",0.00,Residential Care
26/03/2018,Adults & Housing Department,CLARENDON MEWS CARE LIMITED,Residential Permanent,969.00,0.00,Residential Care
26/03/2018,Adults & Housing Department,CLARENDON MEWS CARE LIMITED,Residential Permanent,899.79,0.00,Residential Care
26/03/2018,Adults & Housing Department,CLARENDON MEWS CARE LIMITED,Residential Permanent,869.04,0.00,Residential Care
26/03/2018,Adults & Housing Department,CLARENDON MEWS CARE LIMITED,Residential Permanent,"1,245.86",0.00,Residential Care
26/03/2018,Adults & Housing Department,CLARENDON MEWS CARE LIMITED,Residential Permanent,"1,938.00",0.00,Residential Care
26/03/2018,Adults & Housing Department,CLARENDON MEWS CARE LIMITED,Residential Permanent,969.00,0.00,Residential Care
26/03/2018,Adults & Housing Department,CLARENDON MEWS CARE LIMITED,Residential Permanent,969.00,0.00,Residential Care
26/03/2018,Adults & Housing Department,CLARENDON MEWS CARE LIMITED,Residential Permanent,969.00,0.00,Residential Care
26/03/2018,Adults & Housing Department,CLARENDON MEWS CARE LIMITED,Residential Permanent,869.04,0.00,Residential Care
26/03/2018,Adults & Housing Department,CLARENDON MEWS CARE LIMITED,Residential Permanent,969.00,0.00,Residential Care
26/03/2018,Adults & Housing Department,CLARENDON MEWS CARE LIMITED,Residential Permanent,869.04,0.00,Residential Care
26/03/2018,Adults & Housing Department,CLARENDON MEWS CARE LIMITED,Residential Permanent,869.04,0.00,Residential Care
26/03/2018,Adults & Housing Department,CLARENDON MEWS CARE LIMITED,Residential Permanent,969.00,0.00,Residential Care
26/03/2018,Adults & Housing Department,CLARENDON MEWS CARE LIMITED,Residential Permanent,"2,031.00",0.00,Residential Care
26/03/2018,Adults & Housing Department,CLARENDON MEWS CARE LIMITED,Residential Permanent,869.04,0.00,Residential Care
26/03/2018,Adults & Housing Department,CLARENDON MEWS CARE LIMITED,Residential Permanent,969.00,0.00,Residential Care
26/03/2018,Adults & Housing Department,CLARENDON MEWS CARE LIMITED,Residential Permanent,969.00,0.00,Residential Care
26/03/2018,Adults & Housing Department,CLARENDON MEWS CARE LIMITED,Residential Permanent,969.00,0.00,Residential Care
26/03/2018,Adults & Housing Department,CLARENDON MEWS CARE LIMITED,Residential Permanent,969.00,0.00,Residential Care
26/03/2018,Adults & Housing Department,CLARENDON MEWS CARE LIMITED,Residential Permanent,869.04,0.00,Residential Care
26/03/2018,Adults & Housing Department,CLARENDON MEWS CARE LIMITED,Residential Permanent,969.00,0.00,Residential Care
26/03/2018,Adults & Housing Department,CLARENDON MEWS CARE LIMITED,Residential Permanent,869.04,0.00,Residential Care
26/03/2018,Adults & Housing Department,CLARENDON MEWS CARE LIMITED,Residential Permanent,969.00,0.00,Residential Care
26/03/2018,Adults & Housing Department,CLARENDON MEWS CARE LIMITED,Residential Permanent,869.04,0.00,Residential Care
26/03/2018,Adults & Housing Department,CLARENDON MEWS CARE LIMITED,Residential Permanent,969.00,0.00,Residential Care
26/03/2018,Adults & Housing Department,CLARENDON MEWS CARE LIMITED,Residential Permanent,969.00,0.00,Residential Care
26/03/2018,Adults & Housing Department,CLARENDON MEWS CARE LIMITED,Residential Permanent,969.00,0.00,Residential Care
26/03/2018,Adults & Housing Department,CLARENDON MEWS CARE LIMITED,Residential Permanent,969.00,0.00,Residential Care
26/03/2018,Adults & Housing Department,CLARENDON MEWS CARE LIMITED,Residential Permanent,869.04,0.00,Residential Care
26/03/2018,Adults & Housing Department,CLARENDON MEWS CARE LIMITED,Residential Permanent,969.00,0.00,Residential Care
26/03/2018,Adults & Housing Department,CLARENDON MEWS CARE LIMITED,Residential Permanent,969.00,0.00,Residential Care
26/03/2018,Adults & Housing Department,CLARENDON MEWS CARE LIMITED,Residential Permanent,969.00,0.00,Residential Care
26/03/2018,Adults & Housing Department,CLARENDON MEWS CARE LIMITED,Residential Permanent,969.00,0.00,Residential Care
26/03/2018,Adults & Housing Department,CLARENDON MEWS CARE LIMITED,Residential Permanent,969.00,0.00,Residential Care
26/03/2018,Adults & Housing Department,CLARENDON MEWS CARE LIMITED,Residential Permanent,969.00,0.00,Residential Care
26/03/2018,Adults & Housing Department,CLARENDON MEWS CARE LIMITED,Residential Permanent,"1,938.00",0.00,Residential Care
26/03/2018,Adults & Housing Department,CLARENDON MEWS CARE LIMITED,Residential Permanent,969.00,0.00,Residential Care
26/03/2018,Adults & Housing Department,CLARENDON MEWS CARE LIMITED,Residential Permanent,969.00,0.00,Residential Care
26/03/2018,Adults & Housing Department,CLARENDON MEWS CARE LIMITED,Residential Permanent,969.00,0.00,Residential Care
26/03/2018,Adults & Housing Department,CLARENDON MEWS CARE LIMITED,Residential Permanent,"1,938.00",0.00,Residential Care
26/03/2018,Adults & Housing Department,CLARENDON MEWS CARE LIMITED,Residential Permanent,969.00,0.00,Residential Care
26/03/2018,Adults & Housing Department,CLARENDON MEWS CARE LIMITED,Residential Permanent,"2,031.00",0.00,Residential Care
26/03/2018,Adults & Housing Department,CLARENDON MEWS CARE LIMITED,Residential Permanent,969.00,0.00,Residential Care
26/03/2018,Adults & Housing Department,CLARENDON MEWS CARE LIMITED,Residential Permanent,969.00,0.00,Residential Care
26/03/2018,Adults & Housing Department,CLARENDON MEWS CARE LIMITED,Residential Permanent,969.00,0.00,Residential Care
26/03/2018,Adults & Housing Department,CLARENDON MEWS CARE LIMITED,Residential Permanent,869.04,0.00,Residential Care
26/03/2018,Adults & Housing Department,CLARENDON MEWS CARE LIMITED,Residential Permanent,969.00,0.00,Residential Care
26/03/2018,Adults & Housing Department,CLARENDON MEWS CARE LIMITED,Residential Permanent,620.74,0.00,Residential Care
26/03/2018,Adults & Housing Department,CLARENDON MEWS CARE LIMITED,Residential Permanent,"1,245.86",0.00,Residential Care
26/03/2018,Adults & Housing Department,CLARENDON MEWS CARE LIMITED,Residential Short Stay,"1,427.71",0.00,Residential Care
26/03/2018,Adults & Housing Department,CLARENDON MEWS CARE LIMITED,Residential Short Stay,"1,107.43",0.00,Residential Care
26/03/2018,Adults & Housing Department,CLARENDON MEWS CARE LIMITED,Residential Short Stay,830.57,0.00,Residential Care
26/03/2018,Adults & Housing Department,CLARENDON MEWS CARE LIMITED,Residential Short Stay,830.57,0.00,Residential Care
26/03/2018,Adults & Housing Department,CLARENDON MEWS CARE LIMITED,Residential Short Stay,"1,938.00",0.00,Residential Care
26/03/2018,Adults & Housing Department,CLARENDON MEWS CARE LIMITED,Residential Short Stay,620.74,0.00,Residential Care
20/03/2018,City Developments and Neighbourhood,Clarendon News Ltd,Newspapers,"5,695.41",0.00,Printed & Electronic Media
13/03/2018,,CLC Contractors Ltd,Building Works - Alterations,"23,236.47","4,647.29",Building Works - Alterations
13/03/2018,,CLC Contractors Ltd,Building Works - Alterations,"59,660.76","11,932.15",Building Works - Alterations
13/03/2018,,CLC Contractors Ltd,Building Works - Alterations,"38,995.26","7,799.05",Building Works - Alterations
13/03/2018,,CLC Contractors Ltd,Building Works - Alterations,"26,686.65","5,337.33",Building Works - Alterations
23/03/2018,,Close Circuit Security Services Ltd (CCSS),Building Works - Alterations,"9,773.60","1,954.72",Building Works - Alterations
21/03/2018,City Developments and Neighbourhood,Close Circuit Security Services Ltd (CCSS),Project - Planned,"7,783.18","1,556.64",Project - Repairs / Maintenance / Alterations
23/03/2018,City Developments and Neighbourhood,Close Circuit Security Services Ltd (CCSS),Project - Responsive,"9,071.21","1,814.24",Project - R&M Fixtures & Fittings
21/03/2018,City Developments and Neighbourhood,Close Circuit Security Services Ltd (CCSS),Responsive,"1,402.18",280.44,Building Works & Repairs/Maintenance/Alterations
16/03/2018,Education & Childrens Services,Cluny Estate Agents,Accommodation Costs,550.00,0.00,Project - Higher Education
23/03/2018,Education & Childrens Services,Coalville Yellow Cabs Ltd,Employee Taxi Travel Expense,"3,284.40",656.88,Taxi Travel Expense
26/03/2018,Education & Childrens Services,CogniSoft Limited,Consultants Fees,700.00,140.00,Consultant Fees
26/03/2018,Education & Childrens Services,CogniSoft Limited,Consultants Fees,"1,050.00",210.00,Consultant Fees
21/03/2018,City Developments and Neighbourhood,CogniSoft Limited,Internet Charges,"7,800.00","1,560.00",Internet Charges
,Education & Childrens Services,CogniSoft Limited,Professional Subscriptions,"6,561.00","1,312.20",Professional Subscriptions
,Education & Childrens Services,CogniSoft Limited,Professional Subscriptions,"6,750.00","1,350.00",Professional Subscriptions
,City Developments and Neighbourhood,Colab Enterprise Ltd,3rd party engaged consultants to be re-imbursed,999.00,199.80,Consultant Fees
,City Developments and Neighbourhood,Colab Enterprise Ltd,Marketing and Advertising,900.00,180.00,Marketing & Advertising
,City Developments and Neighbourhood,Colab Enterprise Ltd,Marketing and Advertising,999.00,199.80,Marketing & Advertising
20/03/2018,City Developments and Neighbourhood,Colas Limited,Planned,"1,068.00",213.60,Transport Infrastructure
26/03/2018,City Developments and Neighbourhood,Colas Limited,Planned,561.90,112.38,Transport Infrastructure
07/03/2018,City Developments and Neighbourhood,College Garth Limited,Farming and Fishing and Forestry and Wildlife Contracting Services,"3,580.00",716.00,Farming & Fishing & Forestry & Wildlife Services
26/03/2018,City Developments and Neighbourhood,Communicorp UK,Marketing and Advertising,"1,929.38",385.88,Marketing & Advertising
23/03/2018,Adults & Housing Department,Community Integrated Care FA SL&FSB,DAY SUPPORT,"6,149.02",0.00,LD Supported Living
23/03/2018,Adults & Housing Department,Community Integrated Care FA SL&FSB,DAY SUPPORT,"5,090.81",0.00,LD Supported Living
23/03/2018,Adults & Housing Department,Community Integrated Care FA SL&FSB,DAY SUPPORT,"1,319.60",0.00,LD Supported Living
23/03/2018,Adults & Housing Department,Community Integrated Care FA SL&FSB,DAY SUPPORT,"1,944.80",0.00,LD Supported Living
23/03/2018,Adults & Housing Department,Community Integrated Care FA SL&FSB,DAY SUPPORT,"6,006.00",0.00,LD Supported Living
23/03/2018,Adults & Housing Department,Community Integrated Care FA SL&FSB,DAY SUPPORT,"6,091.82",0.00,LD Supported Living
23/03/2018,Adults & Housing Department,Community Integrated Care FA SL&FSB,DAY SUPPORT,"1,601.60",0.00,LD Supported Living
23/03/2018,Adults & Housing Department,Community Integrated Care FA SL&FSB,DAY SUPPORT,"7,378.77",0.00,LD Supported Living
23/03/2018,Adults & Housing Department,Community Integrated Care FA SL&FSB,DAY SUPPORT,572.00,0.00,LD Supported Living
23/03/2018,Adults & Housing Department,Community Integrated Care FA SL&FSB,DAY SUPPORT,514.80,0.00,LD Supported Living
23/03/2018,Adults & Housing Department,Community Integrated Care FA SL&FSB,DAY SUPPORT,"4,347.14",0.00,LD Supported Living
23/03/2018,Adults & Housing Department,Community Integrated Care FA SL&FSB,DAY SUPPORT,"5,405.40",0.00,LD Supported Living
23/03/2018,Adults & Housing Department,Community Integrated Care FA SL&FSB,DAY SUPPORT,"5,605.60",0.00,LD Supported Living
23/03/2018,Adults & Housing Department,Community Integrated Care FA SL&FSB,DAY SUPPORT,"1,372.80",0.00,LD Supported Living
23/03/2018,Adults & Housing Department,Community Integrated Care FA SL&FSB,DAY SUPPORT,"5,805.82",0.00,LD Supported Living
23/03/2018,Adults & Housing Department,Community Integrated Care FA SL&FSB,DAY SUPPORT,"5,661.66",0.00,LD Supported Living
23/03/2018,Adults & Housing Department,Community Integrated Care FA SL&FSB,DAY SUPPORT,"3,603.60",0.00,LD Supported Living
23/03/2018,Adults & Housing Department,Community Integrated Care FA SL&FSB,DAY SUPPORT,"1,887.60",0.00,LD Supported Living
23/03/2018,Adults & Housing Department,Community Integrated Care FA SL&FSB,DAY SUPPORT,"5,033.59",0.00,LD Supported Living
23/03/2018,Adults & Housing Department,Community Integrated Care FA SL&FSB,DAY SUPPORT,"6,006.00",0.00,LD Supported Living
23/03/2018,Adults & Housing Department,Community Integrated Care FA SL&FSB,DAY SUPPORT,"5,573.57",0.00,LD Supported Living
23/03/2018,Adults & Housing Department,Community Integrated Care FA SL&FSB,DAY SUPPORT,686.40,0.00,LD Supported Living
23/03/2018,Adults & Housing Department,Community Integrated Care FA SL&FSB,DAY SUPPORT,"4,633.19",0.00,LD Supported Living
23/03/2018,Adults & Housing Department,Community Integrated Care FA SL&FSB,DAY SUPPORT,"2,287.89",0.00,LD Supported Living
23/03/2018,Adults & Housing Department,Community Integrated Care FA SL&FSB,DAY SUPPORT,"6,006.00",0.00,LD Supported Living
23/03/2018,Adults & Housing Department,Community Integrated Care FA SL&FSB,DAY SUPPORT,"3,489.20",0.00,LD Supported Living
23/03/2018,Adults & Housing Department,Community Integrated Care FA SL&FSB,DAY SUPPORT,"5,605.60",0.00,LD Supported Living
23/03/2018,Adults & Housing Department,Community Integrated Care FA SL&FSB,DAY SUPPORT,"6,006.02",0.00,LD Supported Living
23/03/2018,Adults & Housing Department,Community Integrated Care FA SL&FSB,DAY SUPPORT,"1,144.00",0.00,Physical Disability Supported Living
23/03/2018,Adults & Housing Department,Community Integrated Care FA SL&FSB,DAY SUPPORT,"1,369.37",0.00,LD Supported Living
23/03/2018,Adults & Housing Department,Community Integrated Care FA SL&FSB,SLEEP-IN SUPPORT,"2,227.68",0.00,LD Supported Living
23/03/2018,Adults & Housing Department,Community Integrated Care FA SL&FSB,SLEEP-IN SUPPORT,"1,272.96",0.00,LD Supported Living
23/03/2018,Adults & Housing Department,Community Integrated Care FA SL&FSB,SLEEP-IN SUPPORT,"1,113.84",0.00,LD Supported Living
23/03/2018,Adults & Housing Department,Community Integrated Care FA SL&FSB,SLEEP-IN SUPPORT,954.72,0.00,LD Supported Living
23/03/2018,Adults & Housing Department,Community Integrated Care FA SL&FSB,SLEEP-IN SUPPORT,"2,227.68",0.00,LD Supported Living
23/03/2018,Adults & Housing Department,Community Integrated Care FA SL&FSB,SLEEP-IN SUPPORT,"1,113.84",0.00,LD Supported Living
23/03/2018,Adults & Housing Department,Community Integrated Care FA SL&FSB,WAKING NIGHT SUPPORT,654.94,0.00,LD Supported Living
23/03/2018,Adults & Housing Department,Community Integrated Care FA SL&FSB,WAKING NIGHT SUPPORT,600.60,0.00,LD Supported Living
23/03/2018,Adults & Housing Department,Community Integrated Care FA SL&FSB,WAKING NIGHT SUPPORT,"1,201.20",0.00,LD Supported Living
23/03/2018,Adults & Housing Department,Community Integrated Care FA SL&FSB,WAKING NIGHT SUPPORT,600.60,0.00,LD Supported Living
23/03/2018,Adults & Housing Department,Community Integrated Care FA SL&FSB,WAKING NIGHT SUPPORT,600.60,0.00,LD Supported Living
23/03/2018,Adults & Housing Department,Community Integrated Care FA SL&FSB,WAKING NIGHT SUPPORT,600.60,0.00,LD Supported Living
23/03/2018,Adults & Housing Department,Community Integrated Care FA SL&FSB,WAKING NIGHT SUPPORT,"1,201.20",0.00,LD Supported Living
23/03/2018,Adults & Housing Department,Community Integrated Care FA SL&FSB,WAKING NIGHT SUPPORT,"1,201.20",0.00,LD Supported Living
23/03/2018,Adults & Housing Department,Community Integrated Care FA SL&FSB,WAKING NIGHT SUPPORT,600.60,0.00,LD Supported Living
23/03/2018,Adults & Housing Department,Community Integrated Care FA SL&FSB,WAKING NIGHT SUPPORT,600.60,0.00,LD Supported Living
23/03/2018,Adults & Housing Department,Community Integrated Care FA SL&FSB,WAKING NIGHT SUPPORT,600.60,0.00,LD Supported Living
23/03/2018,Adults & Housing Department,Community Integrated Care FA SL&FSB,WAKING NIGHT SUPPORT,600.60,0.00,LD Supported Living
23/03/2018,Adults & Housing Department,Community Integrated Care FA SL&FSB,WAKING NIGHT SUPPORT,654.94,0.00,LD Supported Living
23/03/2018,Adults & Housing Department,Community Integrated Care FA SL&FSB,WAKING NIGHT SUPPORT,600.60,0.00,LD Supported Living
23/03/2018,Adults & Housing Department,Community Integrated Care FA SL&FSB,WAKING NIGHT SUPPORT,"1,287.00",0.00,LD Supported Living
23/03/2018,Adults & Housing Department,Community Integrated Care FA SL&FSB,WAKING NIGHT SUPPORT,600.60,0.00,LD Supported Living
23/03/2018,Adults & Housing Department,Community Integrated Care FA SL&FSB,WAKING NIGHT SUPPORT,"1,781.78",0.00,LD Supported Living
23/03/2018,Adults & Housing Department,Community Integrated Care FA SL&FSB,WAKING NIGHT SUPPORT,600.60,0.00,LD Supported Living
26/03/2018,Adults & Housing Department,Community Living Project,Residential Permanent,812.00,0.00,Residential Care
26/03/2018,Adults & Housing Department,Community Living Project,Residential Permanent,"1,406.20",0.00,Residential Care
26/03/2018,Adults & Housing Department,Community Living Project,Residential Permanent,"1,830.00",0.00,Residential Care
26/03/2018,Adults & Housing Department,Community Living Project,Residential Permanent,812.00,0.00,Residential Care
26/03/2018,Adults & Housing Department,Community Living Project,Residential Permanent,"1,406.20",0.00,Residential Care
26/03/2018,Adults & Housing Department,Community Living Project,Residential Permanent,"1,830.00",0.00,Residential Care
23/03/2018,Education & Childrens Services,Compass Contract Services (UK) Ltd,Venue Hire,"2,885.50",577.10,Room & Space Hire & Entertainment Services
23/03/2018,Education & Childrens Services,Compass Contract Services (UK) Ltd,Venue Hire,"2,792.50",558.50,Room & Space Hire & Entertainment Services
02/03/2018,Education & Childrens Services,Compass Fostering Central Ltd,Independent Foster Agencies,"2,660.00",0.00,Other Agencies
02/03/2018,Education & Childrens Services,Compass Fostering Central Ltd,Independent Foster Agencies,"2,710.96",0.00,Other Agencies
06/03/2018,Education & Childrens Services,Compass Fostering Central Ltd,Independent Foster Agencies,"2,957.92",0.00,Other Agencies
06/03/2018,Education & Childrens Services,Compass Fostering Central Ltd,Independent Foster Agencies,"2,754.96",0.00,Other Agencies
06/03/2018,Education & Childrens Services,Compass Fostering Central Ltd,Independent Foster Agencies,"2,784.60",0.00,Other Agencies
07/03/2018,Education & Childrens Services,Compass Fostering Central Ltd,Independent Foster Agencies,633.84,0.00,Other Agencies
07/03/2018,Education & Childrens Services,Compass Fostering Central Ltd,Independent Foster Agencies,"3,274.84",0.00,Other Agencies
23/03/2018,Education & Childrens Services,Compass Fostering Central Ltd,Independent Foster Agencies,"2,856.00",0.00,Other Agencies
26/03/2018,Education & Childrens Services,Compass Fostering Central Ltd,Independent Foster Agencies,"2,958.00",0.00,Other Agencies
26/03/2018,Education & Childrens Services,Compass Fostering Central Ltd,Independent Foster Agencies,"3,050.14",0.00,Other Agencies
26/03/2018,Education & Childrens Services,Compass Fostering Central Ltd,Independent Foster Agencies,"3,309.43",0.00,Other Agencies
26/03/2018,Education & Childrens Services,Compass Fostering Central Ltd,Independent Foster Agencies,"3,274.84",0.00,Other Agencies
26/03/2018,Education & Childrens Services,Compass Fostering Central Ltd,Independent Foster Agencies,"2,401.14",0.00,Other Agencies
26/03/2018,Education & Childrens Services,Compass Fostering Central Ltd,Independent Foster Agencies,"3,210.67",0.00,Other Agencies
26/03/2018,Education & Childrens Services,Compass Fostering Central Ltd,Independent Foster Agencies,"3,162.00",0.00,Other Agencies
26/03/2018,Education & Childrens Services,Compass Fostering Central Ltd,Independent Foster Agencies,"2,945.00",0.00,Other Agencies
26/03/2018,Education & Childrens Services,Compass Fostering Central Ltd,Independent Foster Agencies,"3,082.95",0.00,Other Agencies
26/03/2018,Education & Childrens Services,Compass Fostering Central Ltd,Independent Foster Agencies,"3,162.00",0.00,Other Agencies
26/03/2018,Education & Childrens Services,Compass Fostering Central Ltd,Independent Foster Agencies,"3,210.67",0.00,Other Agencies
26/03/2018,Education & Childrens Services,Compass Fostering Central Ltd,Independent Foster Agencies,"1,935.33",0.00,Other Agencies
26/03/2018,Education & Childrens Services,Compass Fostering Central Ltd,Independent Foster Agencies,"3,274.84",0.00,Other Agencies
26/03/2018,Education & Childrens Services,Compass Fostering Central Ltd,Independent Foster Agencies,"3,274.84",0.00,Other Agencies
26/03/2018,Education & Childrens Services,Compass Fostering Central Ltd,Independent Foster Agencies,"3,001.42",0.00,Other Agencies
23/03/2018,City Developments and Neighbourhood,Complete Detection Systems Ltd,Responsive,"2,687.42",537.48,Building Services / Repairs & Maintenance  Fixtures & Fittings
26/03/2018,City Developments and Neighbourhood,Concerto Support Services Ltd,IT Development,"1,275.00",255.00,IT Development
26/03/2018,Corporate Resources & Support,Connolly Creative,Printing,750.00,0.00,Printing & Copying
26/03/2018,Corporate Resources & Support,Connolly Creative,Printing,930.00,0.00,Printing & Copying
26/03/2018,Corporate Resources & Support,Connolly Creative,Printing,712.50,0.00,Printing & Copying
02/03/2018,City Developments and Neighbourhood,Construct Training Ltd,Training,500.00,100.00,Employee Training
16/03/2018,City Developments and Neighbourhood,Construct Training Ltd,Training,"1,050.00",210.00,Employee Training
16/03/2018,City Developments and Neighbourhood,Construct Training Ltd,Training,900.00,180.00,Employee Training
06/03/2018,Education & Childrens Services,Cooke E-Learning Foundation,Education and Training Services,977.30,0.00,Education & Training Services
06/03/2018,Education & Childrens Services,Cooke E-Learning Foundation,Education and Training Services,873.10,0.00,Education & Training Services
16/03/2018,Education & Childrens Services,Cooke E-Learning Foundation,Education and Training Services,902.30,0.00,Education & Training Services
26/03/2018,Adults & Housing Department,COOPER HOUSE,Residential Permanent,869.04,0.00,Residential Care
26/03/2018,Adults & Housing Department,COOPER HOUSE,Residential Permanent,869.04,0.00,Residential Care
26/03/2018,Adults & Housing Department,COOPER HOUSE,Residential Permanent,869.04,0.00,Residential Care
26/03/2018,Adults & Housing Department,COOPER HOUSE,Residential Permanent,869.04,0.00,Residential Care
26/03/2018,Adults & Housing Department,COOPER HOUSE,Residential Permanent,869.04,0.00,Residential Care
26/03/2018,Adults & Housing Department,COOPER HOUSE,Residential Permanent,869.04,0.00,Residential Care
26/03/2018,Adults & Housing Department,COOPER HOUSE,Residential Permanent,869.04,0.00,Residential Care
26/03/2018,Adults & Housing Department,COOPER HOUSE,Residential Permanent,869.04,0.00,Residential Care
26/03/2018,Adults & Housing Department,COOPER HOUSE,Residential Permanent,869.04,0.00,Residential Care
26/03/2018,Adults & Housing Department,COOPER HOUSE,Residential Permanent,869.04,0.00,Residential Care
26/03/2018,Adults & Housing Department,COOPER HOUSE,Residential Permanent,869.04,0.00,Residential Care
26/03/2018,Adults & Housing Department,COOPER HOUSE,Residential Permanent,869.04,0.00,Residential Care
26/03/2018,Adults & Housing Department,COOPER HOUSE,Residential Permanent,869.04,0.00,Residential Care
26/03/2018,Adults & Housing Department,COOPER HOUSE,Residential Permanent,869.04,0.00,Residential Care
26/03/2018,Adults & Housing Department,COOPER HOUSE,Residential Permanent,869.04,0.00,Residential Care
26/03/2018,Adults & Housing Department,COOPER HOUSE,Residential Permanent,969.00,0.00,Residential Care
26/03/2018,Adults & Housing Department,COOPER HOUSE,Residential Permanent,869.04,0.00,Residential Care
26/03/2018,Adults & Housing Department,COOPER HOUSE,Residential Permanent,969.00,0.00,Residential Care
26/03/2018,Adults & Housing Department,COOPER HOUSE,Residential Permanent,869.04,0.00,Residential Care
26/03/2018,Adults & Housing Department,COOPER HOUSE,Residential Permanent,969.00,0.00,Residential Care
26/03/2018,Adults & Housing Department,COOPER HOUSE,Residential Permanent,869.04,0.00,Residential Care
26/03/2018,Adults & Housing Department,COOPER HOUSE,Residential Permanent,869.04,0.00,Residential Care
26/03/2018,Adults & Housing Department,COOPER HOUSE,Residential Permanent,969.00,0.00,Residential Care
26/03/2018,Adults & Housing Department,COOPER HOUSE,Residential Permanent,869.04,0.00,Residential Care
26/03/2018,Adults & Housing Department,COOPER HOUSE,Residential Permanent,869.04,0.00,Residential Care
26/03/2018,Adults & Housing Department,COOPER HOUSE,Residential Permanent,869.04,0.00,Residential Care
26/03/2018,Adults & Housing Department,COOPER HOUSE,Residential Permanent,869.04,0.00,Residential Care
26/03/2018,Adults & Housing Department,COOPER HOUSE,Residential Permanent,869.04,0.00,Residential Care
26/03/2018,Adults & Housing Department,COOPER HOUSE,Residential Permanent,869.04,0.00,Residential Care
26/03/2018,Adults & Housing Department,COOPER HOUSE,Residential Permanent,869.04,0.00,Residential Care
06/03/2018,Corporate Resources & Support,Copyright Licensing Agency Ltd,Licences,"12,614.67","2,522.93",Licences
14/03/2018,Education & Childrens Services,Coram Cambridgeshire Adoption,Adoption Agency Placements,"1,932.00",0.00,Other Agencies
09/03/2018,Education & Childrens Services,Core Assets Expert Services Ltd,Parenting Assessments,"2,450.00",490.00,Other Agencies
20/03/2018,Education & Childrens Services,Core Assets Expert Services Ltd,Parenting Assessments,"2,450.00",490.00,Other Agencies
20/03/2018,Education & Childrens Services,Core Assets Expert Services Ltd,Parenting Assessments,"3,197.50",639.50,Other Agencies
26/03/2018,City Developments and Neighbourhood,Core Integrated Solutions Ltd,Equipment Purchase,650.00,130.00,Equipment Purchase
23/03/2018,Education & Childrens Services,Countesthorpe Leysland Community College,Other Local Authorities,"8,569.00",0.00,Other Local Authorities
23/03/2018,Education & Childrens Services,Countesthorpe Leysland Community College,Other Local Authorities,"2,259.50",0.00,Other Local Authorities
26/03/2018,Corporate Resources & Support,County Legal Services,Legal Fees & Charges,629.26,125.85,Legal Fees & Charges
14/03/2018,Adults & Housing Department,Coventry and Warwickshire Partnership NHS Trust,STI treatment (ISHS),631.65,0.00,Community Engagement
26/03/2018,Education & Childrens Services,CPOMS Systems Ltd.,Annual Maintenance - Software,500.00,100.00,Repairs & Maintenance  IT Software
26/03/2018,Adults & Housing Department,Craegmoor Facilities Co Ltd,Residential Permanent,"3,314.00",0.00,Residential Care
26/03/2018,Adults & Housing Department,Craegmoor Facilities Co Ltd,Residential Permanent,"3,314.00",0.00,Residential Care
06/03/2018,Adults & Housing Department,Craegmoor Facilities Co Ltd t/a Craegmoor Charnwood Lodge,Residential Permanent,567.72,0.00,Residential Care
26/03/2018,Adults & Housing Department,Craegmoor Facilities Co Ltd t/a Craegmoor Charnwood Lodge,Residential Permanent,890.00,0.00,Residential Care
26/03/2018,Adults & Housing Department,Craegmoor Facilities Co Ltd t/a Craegmoor Charnwood Lodge,Residential Permanent,"3,029.42",0.00,Residential Care
26/03/2018,Adults & Housing Department,Craegmoor Facilities Co Ltd t/a Craegmoor Charnwood Lodge,Residential Permanent,826.43,0.00,Residential Care
26/03/2018,Adults & Housing Department,Craegmoor Facilities Co Ltd t/a Craegmoor Charnwood Lodge,Residential Permanent,890.00,0.00,Residential Care
26/03/2018,Adults & Housing Department,Craegmoor Facilities Co Ltd t/a Craegmoor Charnwood Lodge,Residential Permanent,"3,029.42",0.00,Residential Care
26/03/2018,Adults & Housing Department,Craegmoor Facilities Co Ltd t/a Craegmoor Charnwood Lodge,Residential Permanent,890.00,0.00,Residential Care
26/03/2018,Adults & Housing Department,Craegmoor Facilities Co Ltd t/a Craegmoor Charnwood Lodge,Residential Permanent,890.00,0.00,Residential Care
26/03/2018,Adults & Housing Department,Craegmoor Facilities Co Ltd t/a Craegmoor Landsdowne Road,Residential Permanent,883.32,0.00,Residential Care
26/03/2018,Adults & Housing Department,Craegmoor Facilities Co Ltd t/a Craegmoor Landsdowne Road,Residential Permanent,883.32,0.00,Residential Care
26/03/2018,Adults & Housing Department,Craegmoor Facilities Co Ltd t/a Craegmoor Landsdowne Road,Residential Permanent,883.32,0.00,Residential Care
26/03/2018,Adults & Housing Department,Craegmoor Facilities Co Ltd t/a Craegmoor Landsdowne Road,Residential Permanent,883.32,0.00,Residential Care
26/03/2018,Adults & Housing Department,Craegmoor Facilities Co Ltd t/a Craegmoor Landsdowne Road,Residential Permanent,647.92,0.00,Residential Care
26/03/2018,Adults & Housing Department,Craegmoor Facilities Co Ltd t/a Craegmoor Landsdowne Road,Residential Permanent,883.32,0.00,Residential Care
26/03/2018,Adults & Housing Department,Craegmoor Facilities Co Ltd t/a Craegmoor Landsdowne Road,Residential Permanent,969.00,0.00,Residential Care
26/03/2018,Adults & Housing Department,Craegmoor Facilities Co Ltd t/a Craegmoor Landsdowne Road,Residential Permanent,883.32,0.00,Residential Care
26/03/2018,Adults & Housing Department,Craegmoor Facilities Co Ltd t/a Craegmoor Landsdowne Road,Residential Permanent,883.32,0.00,Residential Care
26/03/2018,Adults & Housing Department,Craegmoor Facilities Co Ltd t/a Craegmoor Landsdowne Road,Residential Permanent,596.24,0.00,Residential Care
26/03/2018,Adults & Housing Department,Craegmoor Facilities Co Ltd t/a Craegmoor Landsdowne Road,Residential Permanent,883.32,0.00,Residential Care
26/03/2018,Adults & Housing Department,Craegmoor Facilities Co Ltd t/a Craegmoor Landsdowne Road,Residential Permanent,883.32,0.00,Residential Care
26/03/2018,Adults & Housing Department,Craegmoor Facilities Co Ltd t/a Craegmoor Landsdowne Road,Residential Permanent,741.98,0.00,Residential Care
26/03/2018,Adults & Housing Department,Craegmoor Facilities Co Ltd t/a Craegmoor Landsdowne Road,Residential Permanent,"1,377.00",0.00,Residential Care
26/03/2018,Adults & Housing Department,Craegmoor Facilities Co Ltd t/a Craegmoor Landsdowne Road,Residential Permanent,578.56,0.00,Residential Care
26/03/2018,Adults & Housing Department,Craegmoor Facilities Co Ltd t/a Craegmoor Landsdowne Road,Residential Permanent,883.32,0.00,Residential Care
